{"text_format":"3","workbook":"xlsx","n_sheets":5,"sheets":["НАЧАЛО","ПЛАНИРАНИ РАЗХОДИ","ДЕЙСТВИТЕЛНИ РАЗХОДИ","РАЗЛИКИ В РАЗХОДИТЕ","АНАЛИЗ НА РАЗХОДИТЕ"],"not_rendered":{"charts":3,"images":3,"defined_names":1},"read":"whole","date_system":"1900"}

{"sheet":"НАЧАЛО","index":0,"n_rows":8,"n_cols":2,"rows_kept":8}
[null,"ЗА ТОЗИ ШАБЛОН"]
[null,"Използвайте тази работна книга за бюджет на разходите на фирмата, за да проследявате планираните и действителните разходи и разликите."]
[null,"Попълнете име на фирмата и добавете емблема."]
[null,"Въведете подробните данни в таблиците в работните листове \"Планирани разходи\" и \"Действителни разходи\"."]
[null,"Таблиците се актуализират автоматично в работния лист \"Разлики в разходите\" и диаграмите в работния лист \"Анализ на разходите\""]
[null,"Забележка: "]
[null,"Допълнителни инструкции са предоставени в колона A във всеки работен лист. Този текст е скрит нарочно. За да премахнете текста, изберете колона А, след което изберете DELETE. За да покажете текст, изберете колона A, след което променете цвета на шрифта."]
[null,"За да научите повече за таблиците, натиснете SHIFT и след това F10 в таблица, изберете опцията ТАБЛИЦА, след което изберете АЛТЕРНАТИВЕН ТЕКСТ"]

{"sheet":"ПЛАНИРАНИ РАЗХОДИ","index":1,"n_rows":37,"n_cols":18,"rows_kept":37,"merged":[[1,1,2,3],[1,10,1,12],[1,13,2,14],[2,10,2,12],[3,17,12,19],[8,1,8,2],[19,1,19,2],[28,1,28,2],[33,1,33,2]]}
["Въведете планираните разходи за служители, офис, маркетинг и обучения или пътувания в съответните таблици в този работен лист. Общи суми се изчисляват автоматично. Полезни инструкции как да използвате този работен лист, можете да намерите в клетките в тази колона. Натиснете стрелката надолу, за да започнете.",{"$nulls":14}," "]
["Въведете име на фирмата в клетката отдясно и добавете емблема в клетка N2. Заглавието на този работен лист е в клетка K2.","Име на фирмата",{"$nulls":8},"Подробни прогнози за разходите",null,null,"Контейнерът за емблемата е в тази клетка."]
["Пояснението е в клетка K3.",{"$nulls":9},"Оцветените клетки се изчисляват."]
["Етикетът \"Планирани разходи\" е в клетката отдясно, месеците – в клетки от C4 до N4, етикетът \"Година\" – в О4, а инструкциите как да използвате този шаблон – в клетка R4.","ПЛАНИРАНИ РАЗХОДИ","ЯНР","ФЕВ","МАР","АПР","МАЙ","ЮНИ","ЮЛИ","АВГ","СЕПТ","ОКТ","НОЕ","ДЕК","ГОДИНА",null,null,"Пояснение: КАК СЕ ИЗПОЛЗВА ТОЗИ ШАБЛОН\nВъведете данни в белите клетки в работните листове ПЛАНИРАНИ РАЗХОДИ и ДЕЙСТВИТЕЛНИ РАЗХОДИ, а РАЗЛИКИ В РАЗХОДИТЕ и АНАЛИЗ НА РАЗХОДИТЕ ще бъдат изчислени за вас. Ако добавите ред в един лист, другите листове трябва да съвпадат."]
["Въведете разходи за служители в таблицата \"Планирани за служители\", започваща от клетката вдясно. Следващата инструкция е в клетка A10.","Разходи за служители","Янр","Фев","Мар","Апр","Май","Юни","Юли","Авг","Сеп","Окт","Ное","Дек","ГОДИНА"]
[null,"Заплати",{"v":85000,"d":"85,000.00 лв."},{"v":85000,"d":"85,000.00 лв."},{"v":85000,"d":"85,000.00 лв."},{"v":87500,"d":"87,500.00 лв."},{"v":87500,"d":"87,500.00 лв."},{"v":87500,"d":"87,500.00 лв."},{"v":87500,"d":"87,500.00 лв."},{"v":92400,"d":"92,400.00 лв."},{"v":92400,"d":"92,400.00 лв."},{"v":92400,"d":"92,400.00 лв."},{"v":92400,"d":"92,400.00 лв."},{"v":92400,"d":"92,400.00 лв."},{"$f":"SUM(C6:N6)","v":{"v":1067000,"d":"1,067,000.00 лв."}}]
[null,"Осигуровки",{"$f":"C6*0.27","v":{"v":22950,"d":"22,950.00 лв."}},{"v":22950,"d":"22,950.00 лв."},{"v":22950,"d":"22,950.00 лв."},{"v":23625,"d":"23,625.00 лв."},{"v":23625,"d":"23,625.00 лв."},{"v":23625,"d":"23,625.00 лв."},{"v":23625,"d":"23,625.00 лв."},{"v":24948,"d":"24,948.00 лв."},{"v":24948,"d":"24,948.00 лв."},{"v":24948,"d":"24,948.00 лв."},{"v":24948,"d":"24,948.00 лв."},{"v":24948,"d":"24,948.00 лв."},{"$f":"SUM(C7:N7)","v":{"v":288090,"d":"288,090.00 лв."}}]
[null,"Междинна сума",{"$f":"SUBTOTAL(109,ПланираниЗаСлужители[Янр])","v":{"v":107950,"d":"107,950.00 лв."}},{"$f":"SUBTOTAL(109,ПланираниЗаСлужители[Фев])","v":{"v":107950,"d":"107,950.00 лв."}},{"$f":"SUBTOTAL(109,ПланираниЗаСлужители[Мар])","v":{"v":107950,"d":"107,950.00 лв."}},{"$f":"SUBTOTAL(109,ПланираниЗаСлужители[Апр])","v":{"v":111125,"d":"111,125.00 лв."}},{"$f":"SUBTOTAL(109,ПланираниЗаСлужители[Май])","v":{"v":111125,"d":"111,125.00 лв."}},{"$f":"SUBTOTAL(109,ПланираниЗаСлужители[Юни])","v":{"v":111125,"d":"111,125.00 лв."}},{"$f":"SUBTOTAL(109,ПланираниЗаСлужители[Юли])","v":{"v":111125,"d":"111,125.00 лв."}},{"$f":"SUBTOTAL(109,ПланираниЗаСлужители[Авг])","v":{"v":117348,"d":"117,348.00 лв."}},{"$f":"SUBTOTAL(109,ПланираниЗаСлужители[Сеп])","v":{"v":117348,"d":"117,348.00 лв."}},{"$f":"SUBTOTAL(109,ПланираниЗаСлужители[Окт])","v":{"v":117348,"d":"117,348.00 лв."}},{"$f":"SUBTOTAL(109,ПланираниЗаСлужители[Ное])","v":{"v":117348,"d":"117,348.00 лв."}},{"$f":"SUBTOTAL(109,ПланираниЗаСлужители[Дек])","v":{"v":117348,"d":"117,348.00 лв."}},{"$f":"SUBTOTAL(109,ПланираниЗаСлужители[ГОДИНА])","v":{"v":1355090,"d":"1,355,090.00 лв."}}]
[]
["Въведете разходи за офис в таблицата \"Планирани за офис\", започваща от клетката вдясно. Следващата инструкция е в клетка A21.","Разходи за офис","Янр","Фев","Мар","Апр","Май","Юни","Юли","Авг","Сеп","Окт","Ное","Дек","ГОДИНА"]
[null,"Наем на офис",{"v":9800,"d":"9,800.00 лв."},{"v":9800,"d":"9,800.00 лв."},{"v":9800,"d":"9,800.00 лв."},{"v":9800,"d":"9,800.00 лв."},{"v":9800,"d":"9,800.00 лв."},{"v":9800,"d":"9,800.00 лв."},{"v":9800,"d":"9,800.00 лв."},{"v":9800,"d":"9,800.00 лв."},{"v":9800,"d":"9,800.00 лв."},{"v":9800,"d":"9,800.00 лв."},{"v":9800,"d":"9,800.00 лв."},{"v":9800,"d":"9,800.00 лв."},{"$f":"SUM(C11:N11)","v":{"v":117600,"d":"117,600.00 лв."}}]
[null,"Газ",null,{"v":400,"d":"400.00 лв."},{"v":400,"d":"400.00 лв."},{"v":100,"d":"100.00 лв."},{"v":100,"d":"100.00 лв."},{"v":100,"d":"100.00 лв."},{"v":100,"d":"100.00 лв."},{"v":100,"d":"100.00 лв."},{"v":100,"d":"100.00 лв."},{"v":100,"d":"100.00 лв."},{"v":400,"d":"400.00 лв."},{"v":400,"d":"400.00 лв."},{"v":2300,"d":"2,300.00 лв."}]
[null,"Ток",{"v":300,"d":"300.00 лв."},{"v":300,"d":"300.00 лв."},{"v":300,"d":"300.00 лв."},{"v":300,"d":"300.00 лв."},{"v":300,"d":"300.00 лв."},{"v":300,"d":"300.00 лв."},{"v":300,"d":"300.00 лв."},{"v":300,"d":"300.00 лв."},{"v":300,"d":"300.00 лв."},{"v":300,"d":"300.00 лв."},{"v":300,"d":"300.00 лв."},{"v":300,"d":"300.00 лв."},{"v":3600,"d":"3,600.00 лв."}]
[null,"Вода",{"v":40,"d":"40.00 лв."},{"v":40,"d":"40.00 лв."},{"v":40,"d":"40.00 лв."},{"v":40,"d":"40.00 лв."},{"v":40,"d":"40.00 лв."},{"v":40,"d":"40.00 лв."},{"v":40,"d":"40.00 лв."},{"v":40,"d":"40.00 лв."},{"v":40,"d":"40.00 лв."},{"v":40,"d":"40.00 лв."},{"v":40,"d":"40.00 лв."},{"v":40,"d":"40.00 лв."},{"v":480,"d":"480.00 лв."}]
[null,"Телефон",{"v":250,"d":"250.00 лв."},{"v":250,"d":"250.00 лв."},{"v":250,"d":"250.00 лв."},{"v":250,"d":"250.00 лв."},{"v":250,"d":"250.00 лв."},{"v":250,"d":"250.00 лв."},{"v":250,"d":"250.00 лв."},{"v":250,"d":"250.00 лв."},{"v":250,"d":"250.00 лв."},{"v":250,"d":"250.00 лв."},{"v":250,"d":"250.00 лв."},{"v":250,"d":"250.00 лв."},{"v":3000,"d":"3,000.00 лв."}]
[null,"Достъп до интернет",{"v":180,"d":"180.00 лв."},{"v":180,"d":"180.00 лв."},{"v":180,"d":"180.00 лв."},{"v":180,"d":"180.00 лв."},{"v":180,"d":"180.00 лв."},{"v":180,"d":"180.00 лв."},{"v":180,"d":"180.00 лв."},{"v":180,"d":"180.00 лв."},{"v":180,"d":"180.00 лв."},{"v":180,"d":"180.00 лв."},{"v":180,"d":"180.00 лв."},{"v":180,"d":"180.00 лв."},{"v":2160,"d":"2,160.00 лв."}]
[null,"Канцеларски материали",{"v":200,"d":"200.00 лв."},{"v":200,"d":"200.00 лв."},{"v":200,"d":"200.00 лв."},{"v":200,"d":"200.00 лв."},{"v":200,"d":"200.00 лв."},{"v":200,"d":"200.00 лв."},{"v":200,"d":"200.00 лв."},{"v":200,"d":"200.00 лв."},{"v":200,"d":"200.00 лв."},{"v":200,"d":"200.00 лв."},{"v":200,"d":"200.00 лв."},{"v":200,"d":"200.00 лв."},{"v":2400,"d":"2,400.00 лв."}]
[null,"Охрана",{"v":600,"d":"600.00 лв."},{"v":600,"d":"600.00 лв."},{"v":600,"d":"600.00 лв."},{"v":600,"d":"600.00 лв."},{"v":600,"d":"600.00 лв."},{"v":600,"d":"600.00 лв."},{"v":600,"d":"600.00 лв."},{"v":600,"d":"600.00 лв."},{"v":600,"d":"600.00 лв."},{"v":600,"d":"600.00 лв."},{"v":600,"d":"600.00 лв."},{"v":600,"d":"600.00 лв."},{"v":7200,"d":"7,200.00 лв."}]
[null,"Междинна сума",{"$f":"SUBTOTAL(109,ПланираниЗаОфис[Янр])","v":{"v":11370,"d":"11,370.00 лв."}},{"$f":"SUBTOTAL(109,ПланираниЗаОфис[Фев])","v":{"v":11770,"d":"11,770.00 лв."}},{"$f":"SUBTOTAL(109,ПланираниЗаОфис[Мар])","v":{"v":11770,"d":"11,770.00 лв."}},{"$f":"SUBTOTAL(109,ПланираниЗаОфис[Апр])","v":{"v":11470,"d":"11,470.00 лв."}},{"$f":"SUBTOTAL(109,ПланираниЗаОфис[Май])","v":{"v":11470,"d":"11,470.00 лв."}},{"$f":"SUBTOTAL(109,ПланираниЗаОфис[Юни])","v":{"v":11470,"d":"11,470.00 лв."}},{"$f":"SUBTOTAL(109,ПланираниЗаОфис[Юли])","v":{"v":11470,"d":"11,470.00 лв."}},{"$f":"SUBTOTAL(109,ПланираниЗаОфис[Авг])","v":{"v":11470,"d":"11,470.00 лв."}},{"$f":"SUBTOTAL(109,ПланираниЗаОфис[Сеп])","v":{"v":11470,"d":"11,470.00 лв."}},{"$f":"SUBTOTAL(109,ПланираниЗаОфис[Окт])","v":{"v":11470,"d":"11,470.00 лв."}},{"$f":"SUBTOTAL(109,ПланираниЗаОфис[Ное])","v":{"v":11770,"d":"11,770.00 лв."}},{"$f":"SUBTOTAL(109,ПланираниЗаОфис[Дек])","v":{"v":11770,"d":"11,770.00 лв."}},{"$f":"SUBTOTAL(109,ПланираниЗаОфис[ГОДИНА])","v":{"v":138740,"d":"138,740.00 лв."}}]
[]
["Въведете разходите за маркетинг в таблицата \"Планирани за маркетинг\", започваща от клетката вдясно. Следващата инструкция е в клетка A30.","Разходи за маркетинг","Янр","Фев","Мар","Апр","Май","Юни","Юли","Авг","Сеп","Окт","Ное","Дек","ГОДИНА"]
[null,"Хостинг на уеб сайт",{"v":500,"d":"500.00 лв."},{"v":500,"d":"500.00 лв."},{"v":500,"d":"500.00 лв."},{"v":500,"d":"500.00 лв."},{"v":500,"d":"500.00 лв."},{"v":500,"d":"500.00 лв."},{"v":500,"d":"500.00 лв."},{"v":500,"d":"500.00 лв."},{"v":500,"d":"500.00 лв."},{"v":500,"d":"500.00 лв."},{"v":500,"d":"500.00 лв."},{"v":500,"d":"500.00 лв."},{"$f":"SUM(C22:N22)","v":{"v":6000,"d":"6,000.00 лв."}}]
[null,"Актуализации на уеб сайт",{"v":200,"d":"200.00 лв."},{"v":200,"d":"200.00 лв."},{"v":200,"d":"200.00 лв."},{"v":200,"d":"200.00 лв."},{"v":200,"d":"200.00 лв."},{"v":1000,"d":"1,000.00 лв."},{"v":200,"d":"200.00 лв."},{"v":200,"d":"200.00 лв."},{"v":200,"d":"200.00 лв."},{"v":200,"d":"200.00 лв."},{"v":200,"d":"200.00 лв."},{"v":1000,"d":"1,000.00 лв."},{"v":4000,"d":"4,000.00 лв."}]
[null,"Подготовка на маркетингови материали",{"v":5000,"d":"5,000.00 лв."},{"v":0,"d":"0.00 лв."},{"v":0,"d":"0.00 лв."},{"v":5000,"d":"5,000.00 лв."},{"v":0,"d":"0.00 лв."},{"v":0,"d":"0.00 лв."},{"v":5000,"d":"5,000.00 лв."},{"v":0,"d":"0.00 лв."},{"v":0,"d":"0.00 лв."},{"v":5000,"d":"5,000.00 лв."},{"v":0,"d":"0.00 лв."},{"v":0,"d":"0.00 лв."},{"v":20000,"d":"20,000.00 лв."}]
[null,"Печат на маркетингови материали",{"v":200,"d":"200.00 лв."},{"v":200,"d":"200.00 лв."},{"v":200,"d":"200.00 лв."},{"v":200,"d":"200.00 лв."},{"v":200,"d":"200.00 лв."},{"v":200,"d":"200.00 лв."},{"v":200,"d":"200.00 лв."},{"v":200,"d":"200.00 лв."},{"v":200,"d":"200.00 лв."},{"v":200,"d":"200.00 лв."},{"v":200,"d":"200.00 лв."},{"v":200,"d":"200.00 лв."},{"v":2400,"d":"2,400.00 лв."}]
[null,"Маркетингови събития",{"v":2000,"d":"2,000.00 лв."},{"v":2000,"d":"2,000.00 лв."},{"v":2000,"d":"2,000.00 лв."},{"v":5000,"d":"5,000.00 лв."},{"v":2000,"d":"2,000.00 лв."},{"v":2000,"d":"2,000.00 лв."},{"v":2000,"d":"2,000.00 лв."},{"v":5000,"d":"5,000.00 лв."},{"v":2000,"d":"2,000.00 лв."},{"v":2000,"d":"2,000.00 лв."},{"v":2000,"d":"2,000.00 лв."},{"v":5000,"d":"5,000.00 лв."},{"v":33000,"d":"33,000.00 лв."}]
[null,"Разни разходи",{"v":200,"d":"200.00 лв."},{"v":200,"d":"200.00 лв."},{"v":200,"d":"200.00 лв."},{"v":200,"d":"200.00 лв."},{"v":200,"d":"200.00 лв."},{"v":200,"d":"200.00 лв."},{"v":200,"d":"200.00 лв."},{"v":200,"d":"200.00 лв."},{"v":200,"d":"200.00 лв."},{"v":200,"d":"200.00 лв."},{"v":200,"d":"200.00 лв."},{"v":200,"d":"200.00 лв."},{"v":2400,"d":"2,400.00 лв."}]
[null,"Междинна сума",{"$f":"SUBTOTAL(109,ПланираниЗаМаркетинг[Янр])","v":{"v":8100,"d":"8,100.00 лв."}},{"$f":"SUBTOTAL(109,ПланираниЗаМаркетинг[Фев])","v":{"v":3100,"d":"3,100.00 лв."}},{"$f":"SUBTOTAL(109,ПланираниЗаМаркетинг[Мар])","v":{"v":3100,"d":"3,100.00 лв."}},{"$f":"SUBTOTAL(109,ПланираниЗаМаркетинг[Апр])","v":{"v":11100,"d":"11,100.00 лв."}},{"$f":"SUBTOTAL(109,ПланираниЗаМаркетинг[Май])","v":{"v":3100,"d":"3,100.00 лв."}},{"$f":"SUBTOTAL(109,ПланираниЗаМаркетинг[Юни])","v":{"v":3900,"d":"3,900.00 лв."}},{"$f":"SUBTOTAL(109,ПланираниЗаМаркетинг[Юли])","v":{"v":8100,"d":"8,100.00 лв."}},{"$f":"SUBTOTAL(109,ПланираниЗаМаркетинг[Авг])","v":{"v":6100,"d":"6,100.00 лв."}},{"$f":"SUBTOTAL(109,ПланираниЗаМаркетинг[Сеп])","v":{"v":3100,"d":"3,100.00 лв."}},{"$f":"SUBTOTAL(109,ПланираниЗаМаркетинг[Окт])","v":{"v":8100,"d":"8,100.00 лв."}},{"$f":"SUBTOTAL(109,ПланираниЗаМаркетинг[Ное])","v":{"v":3100,"d":"3,100.00 лв."}},{"$f":"SUBTOTAL(109,ПланираниЗаМаркетинг[Дек])","v":{"v":6900,"d":"6,900.00 лв."}},{"$f":"SUBTOTAL(109,ПланираниЗаМаркетинг[ГОДИНА])","v":{"v":67800,"d":"67,800.00 лв."}}]
[]
["Въведете разходите за обучения и пътувания в таблицата \"Планирани за обучения и пътувания\", започваща от клетката вдясно. Следващата инструкция е в клетка A35.","Обучения/пътувания","Янр","Фев","Мар","Апр","Май","Юни","Юли","Авг","Сеп","Окт","Ное","Дек","ГОДИНА"]
[null,"Курсове за обучение",{"v":2000,"d":"2,000.00 лв."},{"v":2000,"d":"2,000.00 лв."},{"v":2000,"d":"2,000.00 лв."},{"v":2000,"d":"2,000.00 лв."},{"v":2000,"d":"2,000.00 лв."},{"v":2000,"d":"2,000.00 лв."},{"v":2000,"d":"2,000.00 лв."},{"v":2000,"d":"2,000.00 лв."},{"v":2000,"d":"2,000.00 лв."},{"v":2000,"d":"2,000.00 лв."},{"v":2000,"d":"2,000.00 лв."},{"v":2000,"d":"2,000.00 лв."},{"$f":"SUM(C31:N31)","v":{"v":24000,"d":"24,000.00 лв."}}]
[null,"Пътни разходи, свързани с обучение",{"v":2000,"d":"2,000.00 лв."},{"v":2000,"d":"2,000.00 лв."},{"v":2000,"d":"2,000.00 лв."},{"v":2000,"d":"2,000.00 лв."},{"v":2000,"d":"2,000.00 лв."},{"v":2000,"d":"2,000.00 лв."},{"v":2000,"d":"2,000.00 лв."},{"v":2000,"d":"2,000.00 лв."},{"v":2000,"d":"2,000.00 лв."},{"v":2000,"d":"2,000.00 лв."},{"v":2000,"d":"2,000.00 лв."},{"v":2000,"d":"2,000.00 лв."},{"$f":"SUM(C32:N32)","v":{"v":24000,"d":"24,000.00 лв."}}]
[null,"Междинна сума",{"$f":"SUBTOTAL(109,ПланираниЗаОбученияИПътувания[Янр])","v":{"v":4000,"d":"4,000.00 лв."}},{"$f":"SUBTOTAL(109,ПланираниЗаОбученияИПътувания[Фев])","v":{"v":4000,"d":"4,000.00 лв."}},{"$f":"SUBTOTAL(109,ПланираниЗаОбученияИПътувания[Мар])","v":{"v":4000,"d":"4,000.00 лв."}},{"$f":"SUBTOTAL(109,ПланираниЗаОбученияИПътувания[Апр])","v":{"v":4000,"d":"4,000.00 лв."}},{"$f":"SUBTOTAL(109,ПланираниЗаОбученияИПътувания[Май])","v":{"v":4000,"d":"4,000.00 лв."}},{"$f":"SUBTOTAL(109,ПланираниЗаОбученияИПътувания[Юни])","v":{"v":4000,"d":"4,000.00 лв."}},{"$f":"SUBTOTAL(109,ПланираниЗаОбученияИПътувания[Юли])","v":{"v":4000,"d":"4,000.00 лв."}},{"$f":"SUBTOTAL(109,ПланираниЗаОбученияИПътувания[Авг])","v":{"v":4000,"d":"4,000.00 лв."}},{"$f":"SUBTOTAL(109,ПланираниЗаОбученияИПътувания[Сеп])","v":{"v":4000,"d":"4,000.00 лв."}},{"$f":"SUBTOTAL(109,ПланираниЗаОбученияИПътувания[Окт])","v":{"v":4000,"d":"4,000.00 лв."}},{"$f":"SUBTOTAL(109,ПланираниЗаОбученияИПътувания[Ное])","v":{"v":4000,"d":"4,000.00 лв."}},{"$f":"SUBTOTAL(109,ПланираниЗаОбученияИПътувания[Дек])","v":{"v":4000,"d":"4,000.00 лв."}},{"$f":"SUBTOTAL(109,ПланираниЗаОбученияИПътувания[ГОДИНА])","v":{"v":48000,"d":"48,000.00 лв."}}]
[]
["Общи суми се изчисляват автоматично в таблицата \"Общо планирани\", започваща от клетката вдясно.","ОБЩИ СУМИ","Янр","Фев","Мар","Апр","Май","Юни","Юли","Авг","Сеп","Окт","Ное","Дек","Година"]
[null,"Месечни планирани разходи",{"$f":"ПланираниЗаОбученияИПътувания[[#Totals],[Янр]]+ПланираниЗаМаркетинг[[#Totals],[Янр]]+ПланираниЗаОфис[[#Totals],[Янр]]+ПланираниЗаСлужители[[#Totals],[Янр]]","v":{"v":131420,"d":"131,420.00 лв."}},{"$f":"ПланираниЗаОбученияИПътувания[[#Totals],[Фев]]+ПланираниЗаМаркетинг[[#Totals],[Фев]]+ПланираниЗаОфис[[#Totals],[Фев]]+ПланираниЗаСлужители[[#Totals],[Фев]]","v":{"v":126820,"d":"126,820.00 лв."}},{"$f":"ПланираниЗаОбученияИПътувания[[#Totals],[Мар]]+ПланираниЗаМаркетинг[[#Totals],[Мар]]+ПланираниЗаОфис[[#Totals],[Мар]]+ПланираниЗаСлужители[[#Totals],[Мар]]","v":{"v":126820,"d":"126,820.00 лв."}},{"$f":"ПланираниЗаОбученияИПътувания[[#Totals],[Апр]]+ПланираниЗаМаркетинг[[#Totals],[Апр]]+ПланираниЗаОфис[[#Totals],[Апр]]+ПланираниЗаСлужители[[#Totals],[Апр]]","v":{"v":137695,"d":"137,695.00 лв."}},{"$f":"ПланираниЗаОбученияИПътувания[[#Totals],[Май]]+ПланираниЗаМаркетинг[[#Totals],[Май]]+ПланираниЗаОфис[[#Totals],[Май]]+ПланираниЗаСлужители[[#Totals],[Май]]","v":{"v":129695,"d":"129,695.00 лв."}},{"$f":"ПланираниЗаОбученияИПътувания[[#Totals],[Юни]]+ПланираниЗаМаркетинг[[#Totals],[Юни]]+ПланираниЗаОфис[[#Totals],[Юни]]+ПланираниЗаСлужители[[#Totals],[Юни]]","v":{"v":130495,"d":"130,495.00 лв."}},{"$f":"ПланираниЗаОбученияИПътувания[[#Totals],[Юли]]+ПланираниЗаМаркетинг[[#Totals],[Юли]]+ПланираниЗаОфис[[#Totals],[Юли]]+ПланираниЗаСлужители[[#Totals],[Юли]]","v":{"v":134695,"d":"134,695.00 лв."}},{"$f":"ПланираниЗаОбученияИПътувания[[#Totals],[Авг]]+ПланираниЗаМаркетинг[[#Totals],[Авг]]+ПланираниЗаОфис[[#Totals],[Авг]]+ПланираниЗаСлужители[[#Totals],[Авг]]","v":{"v":138918,"d":"138,918.00 лв."}},{"$f":"ПланираниЗаОбученияИПътувания[[#Totals],[Сеп]]+ПланираниЗаМаркетинг[[#Totals],[Сеп]]+ПланираниЗаОфис[[#Totals],[Сеп]]+ПланираниЗаСлужители[[#Totals],[Сеп]]","v":{"v":135918,"d":"135,918.00 лв."}},{"$f":"ПланираниЗаОбученияИПътувания[[#Totals],[Окт]]+ПланираниЗаМаркетинг[[#Totals],[Окт]]+ПланираниЗаОфис[[#Totals],[Окт]]+ПланираниЗаСлужители[[#Totals],[Окт]]","v":{"v":140918,"d":"140,918.00 лв."}},{"$f":"ПланираниЗаОбученияИПътувания[[#Totals],[Ное]]+ПланираниЗаМаркетинг[[#Totals],[Ное]]+ПланираниЗаОфис[[#Totals],[Ное]]+ПланираниЗаСлужители[[#Totals],[Ное]]","v":{"v":136218,"d":"136,218.00 лв."}},{"$f":"ПланираниЗаОбученияИПътувания[[#Totals],[Дек]]+ПланираниЗаМаркетинг[[#Totals],[Дек]]+ПланираниЗаОфис[[#Totals],[Дек]]+ПланираниЗаСлужители[[#Totals],[Дек]]","v":{"v":140018,"d":"140,018.00 лв."}},{"$f":"ПланираниЗаОбученияИПътувания[[#Totals],[ГОДИНА]]+ПланираниЗаМаркетинг[[#Totals],[ГОДИНА]]+ПланираниЗаОфис[[#Totals],[ГОДИНА]]+ПланираниЗаСлужители[[#Totals],[ГОДИНА]]","v":{"v":1609630,"d":"1,609,630.00 лв."}}]
[null,"ОБЩИ планирани разходи",{"$f":"SUM($C$36:C36)","v":{"v":131420,"d":"131,420.00 лв."}},{"$f":"SUM($C$36:D36)","v":{"v":258240,"d":"258,240.00 лв."}},{"$f":"SUM($C$36:E36)","v":{"v":385060,"d":"385,060.00 лв."}},{"$f":"SUM($C$36:F36)","v":{"v":522755,"d":"522,755.00 лв."}},{"$f":"SUM($C$36:G36)","v":{"v":652450,"d":"652,450.00 лв."}},{"$f":"SUM($C$36:H36)","v":{"v":782945,"d":"782,945.00 лв."}},{"$f":"SUM($C$36:I36)","v":{"v":917640,"d":"917,640.00 лв."}},{"$f":"SUM($C$36:J36)","v":{"v":1056558,"d":"1,056,558.00 лв."}},{"$f":"SUM($C$36:K36)","v":{"v":1192476,"d":"1,192,476.00 лв."}},{"$f":"SUM($C$36:L36)","v":{"v":1333394,"d":"1,333,394.00 лв."}},{"$f":"SUM($C$36:M36)","v":{"v":1469612,"d":"1,469,612.00 лв."}},{"$f":"SUM($C$36:N36)","v":{"v":1609630,"d":"1,609,630.00 лв."}}]

{"sheet":"ДЕЙСТВИТЕЛНИ РАЗХОДИ","index":2,"n_rows":37,"n_cols":16,"rows_kept":37,"merged":[[1,1,2,3],[1,10,1,12],[1,13,2,14],[2,10,2,12],[8,1,8,2],[19,1,19,2],[28,1,28,2],[33,1,33,2]]}
["Въведете действителните разходи за служители, офис, маркетинг и обучения или пътувания в съответните таблици в този работен лист. Общи суми се изчисляват автоматично. Полезни инструкции как да използвате този работен лист, можете да намерите в клетките в тази колона. Натиснете стрелката надолу, за да започнете.",{"$nulls":14}," "]
["Име на фирмата се актуализира автоматично в клетката отдясно. Заглавието на този работен лист е в клетка K2. Добавете емблема в клетка N2.",{"$f":"'ПЛАНИРАНИ РАЗХОДИ'!B2:D3","v":"Име на фирмата"},{"$nulls":8},{"$f":"заглавие_работен_лист","v":"Подробни прогнози за разходите"},null,null,"Контейнерът за емблемата е в тази клетка."]
["Пояснението е в клетка K3.",{"$nulls":9},"Оцветените клетки се изчисляват."]
["Етикетът \"Действителни разходи\" е в клетката отдясно, месеците – в клетки от C4 до N4, а етикетът \"Година\" – в O4.","ДЕЙСТВИТЕЛНИ РАЗХОДИ","ЯНР","ФЕВ","МАР","АПР","МАЙ","ЮНИ","ЮЛИ","АВГ","СЕПТ","ОКТ","НОЕ","ДЕК","ГОДИНА"]
["Въведете разходи за служители в таблицата \"Действителни за служители\", започваща от клетката вдясно. Следващата инструкция е в клетка A10.","Разходи за служители","Янр","Фев","Мар","Апр","Май","Юни","Юли","Авг","Сеп","Окт","Ное","Дек","ГОДИНА"]
[null,"Заплати",{"v":85000,"d":"85,000.00 лв."},{"v":85000,"d":"85,000.00 лв."},{"v":85000,"d":"85,000.00 лв."},{"v":88000,"d":"88,000.00 лв."},{"v":88000,"d":"88,000.00 лв."},{"v":88000,"d":"88,000.00 лв."},{"$nulls":6},{"$f":"SUM(C6:N6)","v":{"v":519000,"d":"519,000.00 лв."}}]
[null,"Осигуровки",{"$f":"C6*0.27","v":{"v":22950,"d":"22,950.00 лв."}},{"v":22950,"d":"22,950.00 лв."},{"v":22950,"d":"22,950.00 лв."},{"v":23760,"d":"23,760.00 лв."},{"v":23760,"d":"23,760.00 лв."},{"v":23760,"d":"23,760.00 лв."},{"v":0,"d":"0.00 лв."},{"v":0,"d":"0.00 лв."},{"v":0,"d":"0.00 лв."},{"v":0,"d":"0.00 лв."},{"v":0,"d":"0.00 лв."},{"v":0,"d":"0.00 лв."},{"$f":"SUM(C7:N7)","v":{"v":140130,"d":"140,130.00 лв."}}]
[null,"Междинна сума",{"$f":"SUBTOTAL(109,ДействителниЗаСлужители[Янр])","v":{"v":107950,"d":"107,950.00 лв."}},{"$f":"SUBTOTAL(109,ДействителниЗаСлужители[Фев])","v":{"v":107950,"d":"107,950.00 лв."}},{"$f":"SUBTOTAL(109,ДействителниЗаСлужители[Мар])","v":{"v":107950,"d":"107,950.00 лв."}},{"$f":"SUBTOTAL(109,ДействителниЗаСлужители[Апр])","v":{"v":111760,"d":"111,760.00 лв."}},{"$f":"SUBTOTAL(109,ДействителниЗаСлужители[Май])","v":{"v":111760,"d":"111,760.00 лв."}},{"$f":"SUBTOTAL(109,ДействителниЗаСлужители[Юни])","v":{"v":111760,"d":"111,760.00 лв."}},{"$f":"SUBTOTAL(109,ДействителниЗаСлужители[Юли])","v":{"v":0,"d":"0.00 лв."}},{"$f":"SUBTOTAL(109,ДействителниЗаСлужители[Авг])","v":{"v":0,"d":"0.00 лв."}},{"$f":"SUBTOTAL(109,ДействителниЗаСлужители[Сеп])","v":{"v":0,"d":"0.00 лв."}},{"$f":"SUBTOTAL(109,ДействителниЗаСлужители[Окт])","v":{"v":0,"d":"0.00 лв."}},{"$f":"SUBTOTAL(109,ДействителниЗаСлужители[Ное])","v":{"v":0,"d":"0.00 лв."}},{"$f":"SUBTOTAL(109,ДействителниЗаСлужители[Дек])","v":{"v":0,"d":"0.00 лв."}},{"$f":"SUBTOTAL(109,ДействителниЗаСлужители[ГОДИНА])","v":{"v":659130,"d":"659,130.00 лв."}}]
[]
["Въведете разходи за офис в таблицата \"Действители за офис\", започваща от клетката вдясно. Следващата инструкция е в клетка A21.","Разходи за офис","Янр","Фев","Мар","Апр","Май","Юни","Юли","Авг","Сеп","Окт","Ное","Дек","ГОДИНА"]
[null,"Наем на офис",{"v":9800,"d":"9,800.00 лв."},{"v":9800,"d":"9,800.00 лв."},{"v":9800,"d":"9,800.00 лв."},{"v":9800,"d":"9,800.00 лв."},{"v":9800,"d":"9,800.00 лв."},{"v":9800,"d":"9,800.00 лв."},{"$nulls":6},{"$f":"SUM(C11:N11)","v":{"v":58800,"d":"58,800.00 лв."}}]
[null,"Газ",{"v":4,"d":"4.00 лв."},{"v":430,"d":"430.00 лв."},{"v":385,"d":"385.00 лв."},{"v":230,"d":"230.00 лв."},{"v":87,"d":"87.00 лв."},{"v":88,"d":"88.00 лв."},{"$nulls":6},{"v":1224,"d":"1,224.00 лв."}]
[null,"Ток",{"v":288,"d":"288.00 лв."},{"v":278,"d":"278.00 лв."},{"v":268,"d":"268.00 лв."},{"v":299,"d":"299.00 лв."},{"v":306,"d":"306.00 лв."},{"v":290,"d":"290.00 лв."},{"$nulls":6},{"v":1729,"d":"1,729.00 лв."}]
[null,"Вода",{"v":35,"d":"35.00 лв."},{"v":33,"d":"33.00 лв."},{"v":34,"d":"34.00 лв."},{"v":36,"d":"36.00 лв."},{"v":34,"d":"34.00 лв."},{"v":36,"d":"36.00 лв."},{"$nulls":6},{"v":208,"d":"208.00 лв."}]
[null,"Телефон",{"v":224,"d":"224.00 лв."},{"v":235,"d":"235.00 лв."},{"v":265,"d":"265.00 лв."},{"v":245,"d":"245.00 лв."},{"v":245,"d":"245.00 лв."},{"v":220,"d":"220.00 лв."},{"$nulls":6},{"v":1434,"d":"1,434.00 лв."}]
[null,"Достъп до интернет",{"v":180,"d":"180.00 лв."},{"v":180,"d":"180.00 лв."},{"v":180,"d":"180.00 лв."},{"v":180,"d":"180.00 лв."},{"v":180,"d":"180.00 лв."},{"v":180,"d":"180.00 лв."},{"$nulls":6},{"v":1080,"d":"1,080.00 лв."}]
[null,"Канцеларски материали",{"v":256,"d":"256.00 лв."},{"v":142,"d":"142.00 лв."},{"v":160,"d":"160.00 лв."},{"v":221,"d":"221.00 лв."},{"v":256,"d":"256.00 лв."},{"v":240,"d":"240.00 лв."},{"$nulls":6},{"v":1275,"d":"1,275.00 лв."}]
[null,"Охрана",{"v":600,"d":"600.00 лв."},{"v":600,"d":"600.00 лв."},{"v":600,"d":"600.00 лв."},{"v":600,"d":"600.00 лв."},{"v":600,"d":"600.00 лв."},{"v":600,"d":"600.00 лв."},{"$nulls":6},{"v":3600,"d":"3,600.00 лв."}]
[null,"Междинна сума",{"$f":"SUBTOTAL(109,ДействителиЗаОфис[Янр])","v":{"v":11387,"d":"11,387.00 лв."}},{"$f":"SUBTOTAL(109,ДействителиЗаОфис[Фев])","v":{"v":11698,"d":"11,698.00 лв."}},{"$f":"SUBTOTAL(109,ДействителиЗаОфис[Мар])","v":{"v":11692,"d":"11,692.00 лв."}},{"$f":"SUBTOTAL(109,ДействителиЗаОфис[Апр])","v":{"v":11611,"d":"11,611.00 лв."}},{"$f":"SUBTOTAL(109,ДействителиЗаОфис[Май])","v":{"v":11508,"d":"11,508.00 лв."}},{"$f":"SUBTOTAL(109,ДействителиЗаОфис[Юни])","v":{"v":11454,"d":"11,454.00 лв."}},{"$f":"SUBTOTAL(109,ДействителиЗаОфис[Юли])","v":{"v":0,"d":"0.00 лв."}},{"$f":"SUBTOTAL(109,ДействителиЗаОфис[Авг])","v":{"v":0,"d":"0.00 лв."}},{"$f":"SUBTOTAL(109,ДействителиЗаОфис[Сеп])","v":{"v":0,"d":"0.00 лв."}},{"$f":"SUBTOTAL(109,ДействителиЗаОфис[Окт])","v":{"v":0,"d":"0.00 лв."}},{"$f":"SUBTOTAL(109,ДействителиЗаОфис[Ное])","v":{"v":0,"d":"0.00 лв."}},{"$f":"SUBTOTAL(109,ДействителиЗаОфис[Дек])","v":{"v":0,"d":"0.00 лв."}},{"$f":"SUBTOTAL(109,ДействителиЗаОфис[ГОДИНА])","v":{"v":69350,"d":"69,350.00 лв."}}]
[]
["Въведете разходи за маркетинг в таблицата \"Действителни за маркетинг\", започваща от клетката вдясно. Следващата инструкция е в клетка A30.","Разходи за маркетинг","Янр","Фев","Мар","Апр","Май","Юни","Юли","Авг","Сеп","Окт","Ное","Дек","ГОДИНА"]
[null,"Хостинг на уеб сайт",{"v":500,"d":"500.00 лв."},{"v":500,"d":"500.00 лв."},{"v":500,"d":"500.00 лв."},{"v":500,"d":"500.00 лв."},{"v":500,"d":"500.00 лв."},{"v":500,"d":"500.00 лв."},{"$nulls":6},{"$f":"SUM(C22:N22)","v":{"v":3000,"d":"3,000.00 лв."}}]
[null,"Актуализации на уеб сайт",{"v":200,"d":"200.00 лв."},{"v":200,"d":"200.00 лв."},{"v":200,"d":"200.00 лв."},{"v":200,"d":"200.00 лв."},{"v":200,"d":"200.00 лв."},{"v":1500,"d":"1,500.00 лв."},{"$nulls":6},{"v":2500,"d":"2,500.00 лв."}]
[null,"Подготовка на маркетингови материали",{"v":4800,"d":"4,800.00 лв."},{"v":0,"d":"0.00 лв."},{"v":0,"d":"0.00 лв."},{"v":5500,"d":"5,500.00 лв."},{"v":0,"d":"0.00 лв."},{"v":0,"d":"0.00 лв."},{"$nulls":6},{"v":10300,"d":"10,300.00 лв."}]
[null,"Печат на маркетингови материали",{"v":100,"d":"100.00 лв."},{"v":500,"d":"500.00 лв."},{"v":100,"d":"100.00 лв."},{"v":100,"d":"100.00 лв."},{"v":600,"d":"600.00 лв."},{"v":180,"d":"180.00 лв."},{"$nulls":6},{"v":1580,"d":"1,580.00 лв."}]
[null,"Маркетингови събития",{"v":1800,"d":"1,800.00 лв."},{"v":2200,"d":"2,200.00 лв."},{"v":2200,"d":"2,200.00 лв."},{"v":4700,"d":"4,700.00 лв."},{"v":1500,"d":"1,500.00 лв."},{"v":2300,"d":"2,300.00 лв."},{"$nulls":6},{"v":14700,"d":"14,700.00 лв."}]
[null,"Разни разходи",{"v":145,"d":"145.00 лв."},{"v":156,"d":"156.00 лв."},{"v":123,"d":"123.00 лв."},{"v":223,"d":"223.00 лв."},{"v":187,"d":"187.00 лв."},{"v":245,"d":"245.00 лв."},{"$nulls":6},{"v":1079,"d":"1,079.00 лв."}]
[null,"Междинна сума",{"$f":"SUBTOTAL(109,ДействителниЗаМаркетинг[Янр])","v":{"v":7545,"d":"7,545.00 лв."}},{"$f":"SUBTOTAL(109,ДействителниЗаМаркетинг[Фев])","v":{"v":3556,"d":"3,556.00 лв."}},{"$f":"SUBTOTAL(109,ДействителниЗаМаркетинг[Мар])","v":{"v":3123,"d":"3,123.00 лв."}},{"$f":"SUBTOTAL(109,ДействителниЗаМаркетинг[Апр])","v":{"v":11223,"d":"11,223.00 лв."}},{"$f":"SUBTOTAL(109,ДействителниЗаМаркетинг[Май])","v":{"v":2987,"d":"2,987.00 лв."}},{"$f":"SUBTOTAL(109,ДействителниЗаМаркетинг[Юни])","v":{"v":4725,"d":"4,725.00 лв."}},{"$f":"SUBTOTAL(109,ДействителниЗаМаркетинг[Юли])","v":{"v":0,"d":"0.00 лв."}},{"$f":"SUBTOTAL(109,ДействителниЗаМаркетинг[Авг])","v":{"v":0,"d":"0.00 лв."}},{"$f":"SUBTOTAL(109,ДействителниЗаМаркетинг[Сеп])","v":{"v":0,"d":"0.00 лв."}},{"$f":"SUBTOTAL(109,ДействителниЗаМаркетинг[Окт])","v":{"v":0,"d":"0.00 лв."}},{"$f":"SUBTOTAL(109,ДействителниЗаМаркетинг[Ное])","v":{"v":0,"d":"0.00 лв."}},{"$f":"SUBTOTAL(109,ДействителниЗаМаркетинг[Дек])","v":{"v":0,"d":"0.00 лв."}},{"$f":"SUBTOTAL(109,ДействителниЗаМаркетинг[ГОДИНА])","v":{"v":33159,"d":"33,159.00 лв."}}]
[]
["Въведете разходите за обучения или пътувания в таблицата \"Действителни за обучения и пътувания\", започваща от клетката вдясно. Следващата инструкция е в клетка A35.","Обучения/пътувания","Янр","Фев","Мар","Апр","Май","Юни","Юли","Авг","Сеп","Окт","Ное","Дек","ГОДИНА"]
[null,"Курсове за обучение",{"v":1600,"d":"1,600.00 лв."},{"v":2400,"d":"2,400.00 лв."},{"v":1400,"d":"1,400.00 лв."},{"v":1600,"d":"1,600.00 лв."},{"v":1200,"d":"1,200.00 лв."},{"v":2800,"d":"2,800.00 лв."},{"$nulls":6},{"$f":"SUM(C31:N31)","v":{"v":11000,"d":"11,000.00 лв."}}]
[null,"Пътни разходи, свързани с обучение",{"v":1200,"d":"1,200.00 лв."},{"v":2200,"d":"2,200.00 лв."},{"v":1400,"d":"1,400.00 лв."},{"v":1200,"d":"1,200.00 лв."},{"v":800,"d":"800.00 лв."},{"v":3500,"d":"3,500.00 лв."},{"$nulls":6},{"$f":"SUM(C32:N32)","v":{"v":10300,"d":"10,300.00 лв."}}]
[null,"Междинна сума",{"$f":"SUBTOTAL(109,ДействителниЗаОбученияИПътувания[Янр])","v":{"v":2800,"d":"2,800.00 лв."}},{"$f":"SUBTOTAL(109,ДействителниЗаОбученияИПътувания[Фев])","v":{"v":4600,"d":"4,600.00 лв."}},{"$f":"SUBTOTAL(109,ДействителниЗаОбученияИПътувания[Мар])","v":{"v":2800,"d":"2,800.00 лв."}},{"$f":"SUBTOTAL(109,ДействителниЗаОбученияИПътувания[Апр])","v":{"v":2800,"d":"2,800.00 лв."}},{"$f":"SUBTOTAL(109,ДействителниЗаОбученияИПътувания[Май])","v":{"v":2000,"d":"2,000.00 лв."}},{"$f":"SUBTOTAL(109,ДействителниЗаОбученияИПътувания[Юни])","v":{"v":6300,"d":"6,300.00 лв."}},{"$f":"SUBTOTAL(109,ДействителниЗаОбученияИПътувания[Юли])","v":{"v":0,"d":"0.00 лв."}},{"$f":"SUBTOTAL(109,ДействителниЗаОбученияИПътувания[Авг])","v":{"v":0,"d":"0.00 лв."}},{"$f":"SUBTOTAL(109,ДействителниЗаОбученияИПътувания[Сеп])","v":{"v":0,"d":"0.00 лв."}},{"$f":"SUBTOTAL(109,ДействителниЗаОбученияИПътувания[Окт])","v":{"v":0,"d":"0.00 лв."}},{"$f":"SUBTOTAL(109,ДействителниЗаОбученияИПътувания[Ное])","v":{"v":0,"d":"0.00 лв."}},{"$f":"SUBTOTAL(109,ДействителниЗаОбученияИПътувания[Дек])","v":{"v":0,"d":"0.00 лв."}},{"$f":"SUBTOTAL(109,ДействителниЗаОбученияИПътувания[ГОДИНА])","v":{"v":21300,"d":"21,300.00 лв."}}]
[]
["Общи действителни разходи се изчисляват автоматично в таблицата \"Общо действителни\", започваща от клетката вдясно.","ОБЩИ планирани разходи","Янр","Фев","Мар","Апр","Май","Юни","Юли","Авг","Сеп","Окт","Ное","Дек","Година"]
[null,"Месечни действителни разходи",{"$f":"ДействителниЗаОбученияИПътувания[[#Totals],[Янр]]+ДействителниЗаМаркетинг[[#Totals],[Янр]]+ДействителиЗаОфис[[#Totals],[Янр]]+ДействителниЗаСлужители[[#Totals],[Янр]]","v":{"v":129682,"d":"129,682.00 лв."}},{"$f":"ДействителниЗаОбученияИПътувания[[#Totals],[Фев]]+ДействителниЗаМаркетинг[[#Totals],[Фев]]+ДействителиЗаОфис[[#Totals],[Фев]]+ДействителниЗаСлужители[[#Totals],[Фев]]","v":{"v":127804,"d":"127,804.00 лв."}},{"$f":"ДействителниЗаОбученияИПътувания[[#Totals],[Мар]]+ДействителниЗаМаркетинг[[#Totals],[Мар]]+ДействителиЗаОфис[[#Totals],[Мар]]+ДействителниЗаСлужители[[#Totals],[Мар]]","v":{"v":125565,"d":"125,565.00 лв."}},{"$f":"ДействителниЗаОбученияИПътувания[[#Totals],[Апр]]+ДействителниЗаМаркетинг[[#Totals],[Апр]]+ДействителиЗаОфис[[#Totals],[Апр]]+ДействителниЗаСлужители[[#Totals],[Апр]]","v":{"v":137394,"d":"137,394.00 лв."}},{"$f":"ДействителниЗаОбученияИПътувания[[#Totals],[Май]]+ДействителниЗаМаркетинг[[#Totals],[Май]]+ДействителиЗаОфис[[#Totals],[Май]]+ДействителниЗаСлужители[[#Totals],[Май]]","v":{"v":128255,"d":"128,255.00 лв."}},{"$f":"ДействителниЗаОбученияИПътувания[[#Totals],[Юни]]+ДействителниЗаМаркетинг[[#Totals],[Юни]]+ДействителиЗаОфис[[#Totals],[Юни]]+ДействителниЗаСлужители[[#Totals],[Юни]]","v":{"v":134239,"d":"134,239.00 лв."}},{"$f":"ДействителниЗаОбученияИПътувания[[#Totals],[Юли]]+ДействителниЗаМаркетинг[[#Totals],[Юли]]+ДействителиЗаОфис[[#Totals],[Юли]]+ДействителниЗаСлужители[[#Totals],[Юли]]","v":{"v":0,"d":"0.00 лв."}},{"$f":"ДействителниЗаОбученияИПътувания[[#Totals],[Авг]]+ДействителниЗаМаркетинг[[#Totals],[Авг]]+ДействителиЗаОфис[[#Totals],[Авг]]+ДействителниЗаСлужители[[#Totals],[Авг]]","v":{"v":0,"d":"0.00 лв."}},{"$f":"ДействителниЗаОбученияИПътувания[[#Totals],[Сеп]]+ДействителниЗаМаркетинг[[#Totals],[Сеп]]+ДействителиЗаОфис[[#Totals],[Сеп]]+ДействителниЗаСлужители[[#Totals],[Сеп]]","v":{"v":0,"d":"0.00 лв."}},{"$f":"ДействителниЗаОбученияИПътувания[[#Totals],[Окт]]+ДействителниЗаМаркетинг[[#Totals],[Окт]]+ДействителиЗаОфис[[#Totals],[Окт]]+ДействителниЗаСлужители[[#Totals],[Окт]]","v":{"v":0,"d":"0.00 лв."}},{"$f":"ДействителниЗаОбученияИПътувания[[#Totals],[Ное]]+ДействителниЗаМаркетинг[[#Totals],[Ное]]+ДействителиЗаОфис[[#Totals],[Ное]]+ДействителниЗаСлужители[[#Totals],[Ное]]","v":{"v":0,"d":"0.00 лв."}},{"$f":"ДействителниЗаОбученияИПътувания[[#Totals],[Дек]]+ДействителниЗаМаркетинг[[#Totals],[Дек]]+ДействителиЗаОфис[[#Totals],[Дек]]+ДействителниЗаСлужители[[#Totals],[Дек]]","v":{"v":0,"d":"0.00 лв."}},{"$f":"ДействителниЗаОбученияИПътувания[[#Totals],[ГОДИНА]]+ДействителниЗаМаркетинг[[#Totals],[ГОДИНА]]+ДействителиЗаОфис[[#Totals],[ГОДИНА]]+ДействителниЗаСлужители[[#Totals],[ГОДИНА]]","v":{"v":782939,"d":"782,939.00 лв."}}]
[null,"ОБЩИ действителни разходи",{"$f":"SUM($C$36:C36)","v":{"v":129682,"d":"129,682.00 лв."}},{"$f":"SUM($C$36:D36)","v":{"v":257486,"d":"257,486.00 лв."}},{"$f":"SUM($C$36:E36)","v":{"v":383051,"d":"383,051.00 лв."}},{"$f":"SUM($C$36:F36)","v":{"v":520445,"d":"520,445.00 лв."}},{"$f":"SUM($C$36:G36)","v":{"v":648700,"d":"648,700.00 лв."}},{"$f":"SUM($C$36:H36)","v":{"v":782939,"d":"782,939.00 лв."}},{"$f":"SUM($C$36:I36)","v":{"v":782939,"d":"782,939.00 лв."}},{"$f":"SUM($C$36:J36)","v":{"v":782939,"d":"782,939.00 лв."}},{"$f":"SUM($C$36:K36)","v":{"v":782939,"d":"782,939.00 лв."}},{"$f":"SUM($C$36:L36)","v":{"v":782939,"d":"782,939.00 лв."}},{"$f":"SUM($C$36:M36)","v":{"v":782939,"d":"782,939.00 лв."}},{"$f":"SUM($C$36:N36)","v":{"v":782939,"d":"782,939.00 лв."}}]

{"sheet":"РАЗЛИКИ В РАЗХОДИТЕ","index":3,"n_rows":37,"n_cols":16,"rows_kept":37,"merged":[[1,1,2,3],[1,10,1,12],[1,13,2,14],[2,10,2,12],[8,1,8,2],[19,1,19,2],[28,1,28,2],[33,1,33,2]]}
["Разликите в разходите се изчисляват автоматично в този работен лист за разходи за служители, офис, маркетинг и обучения или пътувания в съответните таблици в този работен лист. Полезни инструкции как да използвате този работен лист, можете да намерите в клетките в тази колона. Натиснете стрелката надолу, за да започнете.",{"$nulls":14}," "]
["Име на фирмата се актуализира автоматично в клетката отдясно. Заглавието на този работен лист е в клетка K2. Добавете емблема в клетка N2.",{"$f":"'ПЛАНИРАНИ РАЗХОДИ'!B2:D3","v":"Име на фирмата"},{"$nulls":8},{"$f":"заглавие_работен_лист","v":"Подробни прогнози за разходите"},null,null,"Контейнерът за емблемата е в тази клетка."]
["Пояснението е в клетка K3.",{"$nulls":9},"Оцветените клетки се изчисляват."]
["Етикетът \"Разлики в разходите\" е в клетката отдясно, месеците – в клетки от C4 до N4, а етикетът \"Година\" – в O4.","РАЗЛИКИ В РАЗХОДИТЕ","ЯНР","ФЕВ","МАР","АПР","МАЙ","ЮНИ","ЮЛИ","АВГ","СЕПТ","ОКТ","НОЕ","ДЕК","ГОДИНА"]
["Разликата в разходи за служители се изчислява автоматично в таблицата \"Разлики за служители\", започваща от клетката вдясно. Следващата инструкция е в клетка A10.","Разходи за служители","Янр","Фев","Мар","Апр","Май","Юни","Юли","Авг","Сеп","Окт","Ное","Дек","ГОДИНА"]
[null,"Заплати",{"$f":"INDEX(ПланираниЗаСлужители[],MATCH(INDEX(РазликиЗаСлужители[],ROW()-ROW(РазликиЗаСлужители[[#Headers],[Янр]]),1),INDEX(ПланираниЗаСлужители[],,1),0),MATCH(РазликиЗаСлужители[[#Headers],[Янр]],ПланираниЗаСлужители[#Headers],0))-INDEX(ДействителниЗаСлужители[],MATCH(INDEX(РазликиЗаСлужители[],ROW()-ROW(РазликиЗаСлужители[[#Headers],[Янр]]),1),INDEX(ПланираниЗаСлужители[],,1),0),MATCH(РазликиЗаСлужители[[#Headers],[Янр]],ДействителниЗаСлужители[#Headers],0))","v":{"v":0,"d":"0.00 лв."}},{"$f":"INDEX(ПланираниЗаСлужители[],MATCH(INDEX(РазликиЗаСлужители[],ROW()-ROW(РазликиЗаСлужители[[#Headers],[Фев]]),1),INDEX(ПланираниЗаСлужители[],,1),0),MATCH(РазликиЗаСлужители[[#Headers],[Фев]],ПланираниЗаСлужители[#Headers],0))-INDEX(ДействителниЗаСлужители[],MATCH(INDEX(РазликиЗаСлужители[],ROW()-ROW(РазликиЗаСлужители[[#Headers],[Фев]]),1),INDEX(ПланираниЗаСлужители[],,1),0),MATCH(РазликиЗаСлужители[[#Headers],[Фев]],ДействителниЗаСлужители[#Headers],0))","v":{"v":0,"d":"0.00 лв."}},{"$f":"INDEX(ПланираниЗаСлужители[],MATCH(INDEX(РазликиЗаСлужители[],ROW()-ROW(РазликиЗаСлужители[[#Headers],[Мар]]),1),INDEX(ПланираниЗаСлужители[],,1),0),MATCH(РазликиЗаСлужители[[#Headers],[Мар]],ПланираниЗаСлужители[#Headers],0))-INDEX(ДействителниЗаСлужители[],MATCH(INDEX(РазликиЗаСлужители[],ROW()-ROW(РазликиЗаСлужители[[#Headers],[Мар]]),1),INDEX(ПланираниЗаСлужители[],,1),0),MATCH(РазликиЗаСлужители[[#Headers],[Мар]],ДействителниЗаСлужители[#Headers],0))","v":{"v":0,"d":"0.00 лв."}},{"$f":"INDEX(ПланираниЗаСлужители[],MATCH(INDEX(РазликиЗаСлужители[],ROW()-ROW(РазликиЗаСлужители[[#Headers],[Апр]]),1),INDEX(ПланираниЗаСлужители[],,1),0),MATCH(РазликиЗаСлужители[[#Headers],[Апр]],ПланираниЗаСлужители[#Headers],0))-INDEX(ДействителниЗаСлужители[],MATCH(INDEX(РазликиЗаСлужители[],ROW()-ROW(РазликиЗаСлужители[[#Headers],[Апр]]),1),INDEX(ПланираниЗаСлужители[],,1),0),MATCH(РазликиЗаСлужители[[#Headers],[Апр]],ДействителниЗаСлужители[#Headers],0))","v":{"v":-500,"d":"-500.00 лв."}},{"$f":"INDEX(ПланираниЗаСлужители[],MATCH(INDEX(РазликиЗаСлужители[],ROW()-ROW(РазликиЗаСлужители[[#Headers],[Май]]),1),INDEX(ПланираниЗаСлужители[],,1),0),MATCH(РазликиЗаСлужители[[#Headers],[Май]],ПланираниЗаСлужители[#Headers],0))-INDEX(ДействителниЗаСлужители[],MATCH(INDEX(РазликиЗаСлужители[],ROW()-ROW(РазликиЗаСлужители[[#Headers],[Май]]),1),INDEX(ПланираниЗаСлужители[],,1),0),MATCH(РазликиЗаСлужители[[#Headers],[Май]],ДействителниЗаСлужители[#Headers],0))","v":{"v":-500,"d":"-500.00 лв."}},{"$f":"INDEX(ПланираниЗаСлужители[],MATCH(INDEX(РазликиЗаСлужители[],ROW()-ROW(РазликиЗаСлужители[[#Headers],[Юни]]),1),INDEX(ПланираниЗаСлужители[],,1),0),MATCH(РазликиЗаСлужители[[#Headers],[Юни]],ПланираниЗаСлужители[#Headers],0))-INDEX(ДействителниЗаСлужители[],MATCH(INDEX(РазликиЗаСлужители[],ROW()-ROW(РазликиЗаСлужители[[#Headers],[Юни]]),1),INDEX(ПланираниЗаСлужители[],,1),0),MATCH(РазликиЗаСлужители[[#Headers],[Юни]],ДействителниЗаСлужители[#Headers],0))","v":{"v":-500,"d":"-500.00 лв."}},{"$f":"INDEX(ПланираниЗаСлужители[],MATCH(INDEX(РазликиЗаСлужители[],ROW()-ROW(РазликиЗаСлужители[[#Headers],[Юли]]),1),INDEX(ПланираниЗаСлужители[],,1),0),MATCH(РазликиЗаСлужители[[#Headers],[Юли]],ПланираниЗаСлужители[#Headers],0))-INDEX(ДействителниЗаСлужители[],MATCH(INDEX(РазликиЗаСлужители[],ROW()-ROW(РазликиЗаСлужители[[#Headers],[Юли]]),1),INDEX(ПланираниЗаСлужители[],,1),0),MATCH(РазликиЗаСлужители[[#Headers],[Юли]],ДействителниЗаСлужители[#Headers],0))","v":{"v":87500,"d":"87,500.00 лв."}},{"$f":"INDEX(ПланираниЗаСлужители[],MATCH(INDEX(РазликиЗаСлужители[],ROW()-ROW(РазликиЗаСлужители[[#Headers],[Авг]]),1),INDEX(ПланираниЗаСлужители[],,1),0),MATCH(РазликиЗаСлужители[[#Headers],[Авг]],ПланираниЗаСлужители[#Headers],0))-INDEX(ДействителниЗаСлужители[],MATCH(INDEX(РазликиЗаСлужители[],ROW()-ROW(РазликиЗаСлужители[[#Headers],[Авг]]),1),INDEX(ПланираниЗаСлужители[],,1),0),MATCH(РазликиЗаСлужители[[#Headers],[Авг]],ДействителниЗаСлужители[#Headers],0))","v":{"v":92400,"d":"92,400.00 лв."}},{"$f":"INDEX(ПланираниЗаСлужители[],MATCH(INDEX(РазликиЗаСлужители[],ROW()-ROW(РазликиЗаСлужители[[#Headers],[Сеп]]),1),INDEX(ПланираниЗаСлужители[],,1),0),MATCH(РазликиЗаСлужители[[#Headers],[Сеп]],ПланираниЗаСлужители[#Headers],0))-INDEX(ДействителниЗаСлужители[],MATCH(INDEX(РазликиЗаСлужители[],ROW()-ROW(РазликиЗаСлужители[[#Headers],[Сеп]]),1),INDEX(ПланираниЗаСлужители[],,1),0),MATCH(РазликиЗаСлужители[[#Headers],[Сеп]],ДействителниЗаСлужители[#Headers],0))","v":{"v":92400,"d":"92,400.00 лв."}},{"$f":"INDEX(ПланираниЗаСлужители[],MATCH(INDEX(РазликиЗаСлужители[],ROW()-ROW(РазликиЗаСлужители[[#Headers],[Окт]]),1),INDEX(ПланираниЗаСлужители[],,1),0),MATCH(РазликиЗаСлужители[[#Headers],[Окт]],ПланираниЗаСлужители[#Headers],0))-INDEX(ДействителниЗаСлужители[],MATCH(INDEX(РазликиЗаСлужители[],ROW()-ROW(РазликиЗаСлужители[[#Headers],[Окт]]),1),INDEX(ПланираниЗаСлужители[],,1),0),MATCH(РазликиЗаСлужители[[#Headers],[Окт]],ДействителниЗаСлужители[#Headers],0))","v":{"v":92400,"d":"92,400.00 лв."}},{"$f":"INDEX(ПланираниЗаСлужители[],MATCH(INDEX(РазликиЗаСлужители[],ROW()-ROW(РазликиЗаСлужители[[#Headers],[Ное]]),1),INDEX(ПланираниЗаСлужители[],,1),0),MATCH(РазликиЗаСлужители[[#Headers],[Ное]],ПланираниЗаСлужители[#Headers],0))-INDEX(ДействителниЗаСлужители[],MATCH(INDEX(РазликиЗаСлужители[],ROW()-ROW(РазликиЗаСлужители[[#Headers],[Ное]]),1),INDEX(ПланираниЗаСлужители[],,1),0),MATCH(РазликиЗаСлужители[[#Headers],[Ное]],ДействителниЗаСлужители[#Headers],0))","v":{"v":92400,"d":"92,400.00 лв."}},{"$f":"INDEX(ПланираниЗаСлужители[],MATCH(INDEX(РазликиЗаСлужители[],ROW()-ROW(РазликиЗаСлужители[[#Headers],[Дек]]),1),INDEX(ПланираниЗаСлужители[],,1),0),MATCH(РазликиЗаСлужители[[#Headers],[Дек]],ПланираниЗаСлужители[#Headers],0))-INDEX(ДействителниЗаСлужители[],MATCH(INDEX(РазликиЗаСлужители[],ROW()-ROW(РазликиЗаСлужители[[#Headers],[Дек]]),1),INDEX(ПланираниЗаСлужители[],,1),0),MATCH(РазликиЗаСлужители[[#Headers],[Дек]],ДействителниЗаСлужители[#Headers],0))","v":{"v":92400,"d":"92,400.00 лв."}},{"$f":"SUM(РазликиЗаСлужители[[#This Row],[Янр]:[Дек]])","v":{"v":548000,"d":"548,000.00 лв."}}]
[null,"Осигуровки",{"$f":"INDEX(ПланираниЗаСлужители[],MATCH(INDEX(РазликиЗаСлужители[],ROW()-ROW(РазликиЗаСлужители[[#Headers],[Янр]]),1),INDEX(ПланираниЗаСлужители[],,1),0),MATCH(РазликиЗаСлужители[[#Headers],[Янр]],ПланираниЗаСлужители[#Headers],0))-INDEX(ДействителниЗаСлужители[],MATCH(INDEX(РазликиЗаСлужители[],ROW()-ROW(РазликиЗаСлужители[[#Headers],[Янр]]),1),INDEX(ПланираниЗаСлужители[],,1),0),MATCH(РазликиЗаСлужители[[#Headers],[Янр]],ДействителниЗаСлужители[#Headers],0))","v":{"v":0,"d":"0.00 лв."}},{"$f":"INDEX(ПланираниЗаСлужители[],MATCH(INDEX(РазликиЗаСлужители[],ROW()-ROW(РазликиЗаСлужители[[#Headers],[Фев]]),1),INDEX(ПланираниЗаСлужители[],,1),0),MATCH(РазликиЗаСлужители[[#Headers],[Фев]],ПланираниЗаСлужители[#Headers],0))-INDEX(ДействителниЗаСлужители[],MATCH(INDEX(РазликиЗаСлужители[],ROW()-ROW(РазликиЗаСлужители[[#Headers],[Фев]]),1),INDEX(ПланираниЗаСлужители[],,1),0),MATCH(РазликиЗаСлужители[[#Headers],[Фев]],ДействителниЗаСлужители[#Headers],0))","v":{"v":0,"d":"0.00 лв."}},{"$f":"INDEX(ПланираниЗаСлужители[],MATCH(INDEX(РазликиЗаСлужители[],ROW()-ROW(РазликиЗаСлужители[[#Headers],[Мар]]),1),INDEX(ПланираниЗаСлужители[],,1),0),MATCH(РазликиЗаСлужители[[#Headers],[Мар]],ПланираниЗаСлужители[#Headers],0))-INDEX(ДействителниЗаСлужители[],MATCH(INDEX(РазликиЗаСлужители[],ROW()-ROW(РазликиЗаСлужители[[#Headers],[Мар]]),1),INDEX(ПланираниЗаСлужители[],,1),0),MATCH(РазликиЗаСлужители[[#Headers],[Мар]],ДействителниЗаСлужители[#Headers],0))","v":{"v":0,"d":"0.00 лв."}},{"$f":"INDEX(ПланираниЗаСлужители[],MATCH(INDEX(РазликиЗаСлужители[],ROW()-ROW(РазликиЗаСлужители[[#Headers],[Апр]]),1),INDEX(ПланираниЗаСлужители[],,1),0),MATCH(РазликиЗаСлужители[[#Headers],[Апр]],ПланираниЗаСлужители[#Headers],0))-INDEX(ДействителниЗаСлужители[],MATCH(INDEX(РазликиЗаСлужители[],ROW()-ROW(РазликиЗаСлужители[[#Headers],[Апр]]),1),INDEX(ПланираниЗаСлужители[],,1),0),MATCH(РазликиЗаСлужители[[#Headers],[Апр]],ДействителниЗаСлужители[#Headers],0))","v":{"v":-135,"d":"-135.00 лв."}},{"$f":"INDEX(ПланираниЗаСлужители[],MATCH(INDEX(РазликиЗаСлужители[],ROW()-ROW(РазликиЗаСлужители[[#Headers],[Май]]),1),INDEX(ПланираниЗаСлужители[],,1),0),MATCH(РазликиЗаСлужители[[#Headers],[Май]],ПланираниЗаСлужители[#Headers],0))-INDEX(ДействителниЗаСлужители[],MATCH(INDEX(РазликиЗаСлужители[],ROW()-ROW(РазликиЗаСлужители[[#Headers],[Май]]),1),INDEX(ПланираниЗаСлужители[],,1),0),MATCH(РазликиЗаСлужители[[#Headers],[Май]],ДействителниЗаСлужители[#Headers],0))","v":{"v":-135,"d":"-135.00 лв."}},{"$f":"INDEX(ПланираниЗаСлужители[],MATCH(INDEX(РазликиЗаСлужители[],ROW()-ROW(РазликиЗаСлужители[[#Headers],[Юни]]),1),INDEX(ПланираниЗаСлужители[],,1),0),MATCH(РазликиЗаСлужители[[#Headers],[Юни]],ПланираниЗаСлужители[#Headers],0))-INDEX(ДействителниЗаСлужители[],MATCH(INDEX(РазликиЗаСлужители[],ROW()-ROW(РазликиЗаСлужители[[#Headers],[Юни]]),1),INDEX(ПланираниЗаСлужители[],,1),0),MATCH(РазликиЗаСлужители[[#Headers],[Юни]],ДействителниЗаСлужители[#Headers],0))","v":{"v":-135,"d":"-135.00 лв."}},{"$f":"INDEX(ПланираниЗаСлужители[],MATCH(INDEX(РазликиЗаСлужители[],ROW()-ROW(РазликиЗаСлужители[[#Headers],[Юли]]),1),INDEX(ПланираниЗаСлужители[],,1),0),MATCH(РазликиЗаСлужители[[#Headers],[Юли]],ПланираниЗаСлужители[#Headers],0))-INDEX(ДействителниЗаСлужители[],MATCH(INDEX(РазликиЗаСлужители[],ROW()-ROW(РазликиЗаСлужители[[#Headers],[Юли]]),1),INDEX(ПланираниЗаСлужители[],,1),0),MATCH(РазликиЗаСлужители[[#Headers],[Юли]],ДействителниЗаСлужители[#Headers],0))","v":{"v":23625,"d":"23,625.00 лв."}},{"$f":"INDEX(ПланираниЗаСлужители[],MATCH(INDEX(РазликиЗаСлужители[],ROW()-ROW(РазликиЗаСлужители[[#Headers],[Авг]]),1),INDEX(ПланираниЗаСлужители[],,1),0),MATCH(РазликиЗаСлужители[[#Headers],[Авг]],ПланираниЗаСлужители[#Headers],0))-INDEX(ДействителниЗаСлужители[],MATCH(INDEX(РазликиЗаСлужители[],ROW()-ROW(РазликиЗаСлужители[[#Headers],[Авг]]),1),INDEX(ПланираниЗаСлужители[],,1),0),MATCH(РазликиЗаСлужители[[#Headers],[Авг]],ДействителниЗаСлужители[#Headers],0))","v":{"v":24948,"d":"24,948.00 лв."}},{"$f":"INDEX(ПланираниЗаСлужители[],MATCH(INDEX(РазликиЗаСлужители[],ROW()-ROW(РазликиЗаСлужители[[#Headers],[Сеп]]),1),INDEX(ПланираниЗаСлужители[],,1),0),MATCH(РазликиЗаСлужители[[#Headers],[Сеп]],ПланираниЗаСлужители[#Headers],0))-INDEX(ДействителниЗаСлужители[],MATCH(INDEX(РазликиЗаСлужители[],ROW()-ROW(РазликиЗаСлужители[[#Headers],[Сеп]]),1),INDEX(ПланираниЗаСлужители[],,1),0),MATCH(РазликиЗаСлужители[[#Headers],[Сеп]],ДействителниЗаСлужители[#Headers],0))","v":{"v":24948,"d":"24,948.00 лв."}},{"$f":"INDEX(ПланираниЗаСлужители[],MATCH(INDEX(РазликиЗаСлужители[],ROW()-ROW(РазликиЗаСлужители[[#Headers],[Окт]]),1),INDEX(ПланираниЗаСлужители[],,1),0),MATCH(РазликиЗаСлужители[[#Headers],[Окт]],ПланираниЗаСлужители[#Headers],0))-INDEX(ДействителниЗаСлужители[],MATCH(INDEX(РазликиЗаСлужители[],ROW()-ROW(РазликиЗаСлужители[[#Headers],[Окт]]),1),INDEX(ПланираниЗаСлужители[],,1),0),MATCH(РазликиЗаСлужители[[#Headers],[Окт]],ДействителниЗаСлужители[#Headers],0))","v":{"v":24948,"d":"24,948.00 лв."}},{"$f":"INDEX(ПланираниЗаСлужители[],MATCH(INDEX(РазликиЗаСлужители[],ROW()-ROW(РазликиЗаСлужители[[#Headers],[Ное]]),1),INDEX(ПланираниЗаСлужители[],,1),0),MATCH(РазликиЗаСлужители[[#Headers],[Ное]],ПланираниЗаСлужители[#Headers],0))-INDEX(ДействителниЗаСлужители[],MATCH(INDEX(РазликиЗаСлужители[],ROW()-ROW(РазликиЗаСлужители[[#Headers],[Ное]]),1),INDEX(ПланираниЗаСлужители[],,1),0),MATCH(РазликиЗаСлужители[[#Headers],[Ное]],ДействителниЗаСлужители[#Headers],0))","v":{"v":24948,"d":"24,948.00 лв."}},{"$f":"INDEX(ПланираниЗаСлужители[],MATCH(INDEX(РазликиЗаСлужители[],ROW()-ROW(РазликиЗаСлужители[[#Headers],[Дек]]),1),INDEX(ПланираниЗаСлужители[],,1),0),MATCH(РазликиЗаСлужители[[#Headers],[Дек]],ПланираниЗаСлужители[#Headers],0))-INDEX(ДействителниЗаСлужители[],MATCH(INDEX(РазликиЗаСлужители[],ROW()-ROW(РазликиЗаСлужители[[#Headers],[Дек]]),1),INDEX(ПланираниЗаСлужители[],,1),0),MATCH(РазликиЗаСлужители[[#Headers],[Дек]],ДействителниЗаСлужители[#Headers],0))","v":{"v":24948,"d":"24,948.00 лв."}},{"$f":"SUM(РазликиЗаСлужители[[#This Row],[Янр]:[Дек]])","v":{"v":147960,"d":"147,960.00 лв."}}]
[null,"Междинна сума",{"$f":"SUBTOTAL(109,РазликиЗаСлужители[Янр])","v":{"v":0,"d":"0.00 лв."}},{"$f":"SUBTOTAL(109,РазликиЗаСлужители[Фев])","v":{"v":0,"d":"0.00 лв."}},{"$f":"SUBTOTAL(109,РазликиЗаСлужители[Мар])","v":{"v":0,"d":"0.00 лв."}},{"$f":"SUBTOTAL(109,РазликиЗаСлужители[Апр])","v":{"v":-635,"d":"-635.00 лв."}},{"$f":"SUBTOTAL(109,РазликиЗаСлужители[Май])","v":{"v":-635,"d":"-635.00 лв."}},{"$f":"SUBTOTAL(109,РазликиЗаСлужители[Юни])","v":{"v":-635,"d":"-635.00 лв."}},{"$f":"SUBTOTAL(109,РазликиЗаСлужители[Юли])","v":{"v":111125,"d":"111,125.00 лв."}},{"$f":"SUBTOTAL(109,РазликиЗаСлужители[Авг])","v":{"v":117348,"d":"117,348.00 лв."}},{"$f":"SUBTOTAL(109,РазликиЗаСлужители[Сеп])","v":{"v":117348,"d":"117,348.00 лв."}},{"$f":"SUBTOTAL(109,РазликиЗаСлужители[Окт])","v":{"v":117348,"d":"117,348.00 лв."}},{"$f":"SUBTOTAL(109,РазликиЗаСлужители[Ное])","v":{"v":117348,"d":"117,348.00 лв."}},{"$f":"SUBTOTAL(109,РазликиЗаСлужители[Дек])","v":{"v":117348,"d":"117,348.00 лв."}},{"$f":"SUBTOTAL(109,РазликиЗаСлужители[ГОДИНА])","v":{"v":695960,"d":"695,960.00 лв."}}]
[]
["Разликата в разходи за офис се изчислява автоматично в таблицата \"Разлики за офис\", започваща от клетката вдясно. Следващата инструкция е в клетка A21.","Разходи за офис","Янр","Фев","Мар","Апр","Май","Юни","Юли","Авг","Сеп","Окт","Ное","Дек","ГОДИНА"]
[null,"Наем на офис",{"$f":"INDEX(ПланираниЗаОфис[],MATCH(INDEX(РазликиЗаОфис[],ROW()-ROW(РазликиЗаОфис[[#Headers],[Янр]]),1),INDEX(ПланираниЗаОфис[],,1),0),MATCH(РазликиЗаОфис[[#Headers],[Янр]],ПланираниЗаОфис[#Headers],0))-INDEX(ДействителиЗаОфис[],MATCH(INDEX(РазликиЗаОфис[],ROW()-ROW(РазликиЗаОфис[[#Headers],[Янр]]),1),INDEX(ПланираниЗаОфис[],,1),0),MATCH(РазликиЗаОфис[[#Headers],[Янр]],ДействителиЗаОфис[#Headers],0))","v":{"v":0,"d":"0.00 лв."}},{"$f":"INDEX(ПланираниЗаОфис[],MATCH(INDEX(РазликиЗаОфис[],ROW()-ROW(РазликиЗаОфис[[#Headers],[Фев]]),1),INDEX(ПланираниЗаОфис[],,1),0),MATCH(РазликиЗаОфис[[#Headers],[Фев]],ПланираниЗаОфис[#Headers],0))-INDEX(ДействителиЗаОфис[],MATCH(INDEX(РазликиЗаОфис[],ROW()-ROW(РазликиЗаОфис[[#Headers],[Фев]]),1),INDEX(ПланираниЗаОфис[],,1),0),MATCH(РазликиЗаОфис[[#Headers],[Фев]],ДействителиЗаОфис[#Headers],0))","v":{"v":0,"d":"0.00 лв."}},{"$f":"INDEX(ПланираниЗаОфис[],MATCH(INDEX(РазликиЗаОфис[],ROW()-ROW(РазликиЗаОфис[[#Headers],[Мар]]),1),INDEX(ПланираниЗаОфис[],,1),0),MATCH(РазликиЗаОфис[[#Headers],[Мар]],ПланираниЗаОфис[#Headers],0))-INDEX(ДействителиЗаОфис[],MATCH(INDEX(РазликиЗаОфис[],ROW()-ROW(РазликиЗаОфис[[#Headers],[Мар]]),1),INDEX(ПланираниЗаОфис[],,1),0),MATCH(РазликиЗаОфис[[#Headers],[Мар]],ДействителиЗаОфис[#Headers],0))","v":{"v":0,"d":"0.00 лв."}},{"$f":"INDEX(ПланираниЗаОфис[],MATCH(INDEX(РазликиЗаОфис[],ROW()-ROW(РазликиЗаОфис[[#Headers],[Апр]]),1),INDEX(ПланираниЗаОфис[],,1),0),MATCH(РазликиЗаОфис[[#Headers],[Апр]],ПланираниЗаОфис[#Headers],0))-INDEX(ДействителиЗаОфис[],MATCH(INDEX(РазликиЗаОфис[],ROW()-ROW(РазликиЗаОфис[[#Headers],[Апр]]),1),INDEX(ПланираниЗаОфис[],,1),0),MATCH(РазликиЗаОфис[[#Headers],[Апр]],ДействителиЗаОфис[#Headers],0))","v":{"v":0,"d":"0.00 лв."}},{"$f":"INDEX(ПланираниЗаОфис[],MATCH(INDEX(РазликиЗаОфис[],ROW()-ROW(РазликиЗаОфис[[#Headers],[Май]]),1),INDEX(ПланираниЗаОфис[],,1),0),MATCH(РазликиЗаОфис[[#Headers],[Май]],ПланираниЗаОфис[#Headers],0))-INDEX(ДействителиЗаОфис[],MATCH(INDEX(РазликиЗаОфис[],ROW()-ROW(РазликиЗаОфис[[#Headers],[Май]]),1),INDEX(ПланираниЗаОфис[],,1),0),MATCH(РазликиЗаОфис[[#Headers],[Май]],ДействителиЗаОфис[#Headers],0))","v":{"v":0,"d":"0.00 лв."}},{"$f":"INDEX(ПланираниЗаОфис[],MATCH(INDEX(РазликиЗаОфис[],ROW()-ROW(РазликиЗаОфис[[#Headers],[Юни]]),1),INDEX(ПланираниЗаОфис[],,1),0),MATCH(РазликиЗаОфис[[#Headers],[Юни]],ПланираниЗаОфис[#Headers],0))-INDEX(ДействителиЗаОфис[],MATCH(INDEX(РазликиЗаОфис[],ROW()-ROW(РазликиЗаОфис[[#Headers],[Юни]]),1),INDEX(ПланираниЗаОфис[],,1),0),MATCH(РазликиЗаОфис[[#Headers],[Юни]],ДействителиЗаОфис[#Headers],0))","v":{"v":0,"d":"0.00 лв."}},{"$f":"INDEX(ПланираниЗаОфис[],MATCH(INDEX(РазликиЗаОфис[],ROW()-ROW(РазликиЗаОфис[[#Headers],[Юли]]),1),INDEX(ПланираниЗаОфис[],,1),0),MATCH(РазликиЗаОфис[[#Headers],[Юли]],ПланираниЗаОфис[#Headers],0))-INDEX(ДействителиЗаОфис[],MATCH(INDEX(РазликиЗаОфис[],ROW()-ROW(РазликиЗаОфис[[#Headers],[Юли]]),1),INDEX(ПланираниЗаОфис[],,1),0),MATCH(РазликиЗаОфис[[#Headers],[Юли]],ДействителиЗаОфис[#Headers],0))","v":{"v":9800,"d":"9,800.00 лв."}},{"$f":"INDEX(ПланираниЗаОфис[],MATCH(INDEX(РазликиЗаОфис[],ROW()-ROW(РазликиЗаОфис[[#Headers],[Авг]]),1),INDEX(ПланираниЗаОфис[],,1),0),MATCH(РазликиЗаОфис[[#Headers],[Авг]],ПланираниЗаОфис[#Headers],0))-INDEX(ДействителиЗаОфис[],MATCH(INDEX(РазликиЗаОфис[],ROW()-ROW(РазликиЗаОфис[[#Headers],[Авг]]),1),INDEX(ПланираниЗаОфис[],,1),0),MATCH(РазликиЗаОфис[[#Headers],[Авг]],ДействителиЗаОфис[#Headers],0))","v":{"v":9800,"d":"9,800.00 лв."}},{"$f":"INDEX(ПланираниЗаОфис[],MATCH(INDEX(РазликиЗаОфис[],ROW()-ROW(РазликиЗаОфис[[#Headers],[Сеп]]),1),INDEX(ПланираниЗаОфис[],,1),0),MATCH(РазликиЗаОфис[[#Headers],[Сеп]],ПланираниЗаОфис[#Headers],0))-INDEX(ДействителиЗаОфис[],MATCH(INDEX(РазликиЗаОфис[],ROW()-ROW(РазликиЗаОфис[[#Headers],[Сеп]]),1),INDEX(ПланираниЗаОфис[],,1),0),MATCH(РазликиЗаОфис[[#Headers],[Сеп]],ДействителиЗаОфис[#Headers],0))","v":{"v":9800,"d":"9,800.00 лв."}},{"$f":"INDEX(ПланираниЗаОфис[],MATCH(INDEX(РазликиЗаОфис[],ROW()-ROW(РазликиЗаОфис[[#Headers],[Окт]]),1),INDEX(ПланираниЗаОфис[],,1),0),MATCH(РазликиЗаОфис[[#Headers],[Окт]],ПланираниЗаОфис[#Headers],0))-INDEX(ДействителиЗаОфис[],MATCH(INDEX(РазликиЗаОфис[],ROW()-ROW(РазликиЗаОфис[[#Headers],[Окт]]),1),INDEX(ПланираниЗаОфис[],,1),0),MATCH(РазликиЗаОфис[[#Headers],[Окт]],ДействителиЗаОфис[#Headers],0))","v":{"v":9800,"d":"9,800.00 лв."}},{"$f":"INDEX(ПланираниЗаОфис[],MATCH(INDEX(РазликиЗаОфис[],ROW()-ROW(РазликиЗаОфис[[#Headers],[Ное]]),1),INDEX(ПланираниЗаОфис[],,1),0),MATCH(РазликиЗаОфис[[#Headers],[Ное]],ПланираниЗаОфис[#Headers],0))-INDEX(ДействителиЗаОфис[],MATCH(INDEX(РазликиЗаОфис[],ROW()-ROW(РазликиЗаОфис[[#Headers],[Ное]]),1),INDEX(ПланираниЗаОфис[],,1),0),MATCH(РазликиЗаОфис[[#Headers],[Ное]],ДействителиЗаОфис[#Headers],0))","v":{"v":9800,"d":"9,800.00 лв."}},{"$f":"INDEX(ПланираниЗаОфис[],MATCH(INDEX(РазликиЗаОфис[],ROW()-ROW(РазликиЗаОфис[[#Headers],[Дек]]),1),INDEX(ПланираниЗаОфис[],,1),0),MATCH(РазликиЗаОфис[[#Headers],[Дек]],ПланираниЗаОфис[#Headers],0))-INDEX(ДействителиЗаОфис[],MATCH(INDEX(РазликиЗаОфис[],ROW()-ROW(РазликиЗаОфис[[#Headers],[Дек]]),1),INDEX(ПланираниЗаОфис[],,1),0),MATCH(РазликиЗаОфис[[#Headers],[Дек]],ДействителиЗаОфис[#Headers],0))","v":{"v":9800,"d":"9,800.00 лв."}},{"$f":"SUM(РазликиЗаОфис[[#This Row],[Янр]:[Дек]])","v":{"v":58800,"d":"58,800.00 лв."}}]
[null,"Газ",{"$f":"INDEX(ПланираниЗаОфис[],MATCH(INDEX(РазликиЗаОфис[],ROW()-ROW(РазликиЗаОфис[[#Headers],[Янр]]),1),INDEX(ПланираниЗаОфис[],,1),0),MATCH(РазликиЗаОфис[[#Headers],[Янр]],ПланираниЗаОфис[#Headers],0))-INDEX(ДействителиЗаОфис[],MATCH(INDEX(РазликиЗаОфис[],ROW()-ROW(РазликиЗаОфис[[#Headers],[Янр]]),1),INDEX(ПланираниЗаОфис[],,1),0),MATCH(РазликиЗаОфис[[#Headers],[Янр]],ДействителиЗаОфис[#Headers],0))","v":{"v":-4,"d":"-4.00 лв."}},{"$f":"INDEX(ПланираниЗаОфис[],MATCH(INDEX(РазликиЗаОфис[],ROW()-ROW(РазликиЗаОфис[[#Headers],[Фев]]),1),INDEX(ПланираниЗаОфис[],,1),0),MATCH(РазликиЗаОфис[[#Headers],[Фев]],ПланираниЗаОфис[#Headers],0))-INDEX(ДействителиЗаОфис[],MATCH(INDEX(РазликиЗаОфис[],ROW()-ROW(РазликиЗаОфис[[#Headers],[Фев]]),1),INDEX(ПланираниЗаОфис[],,1),0),MATCH(РазликиЗаОфис[[#Headers],[Фев]],ДействителиЗаОфис[#Headers],0))","v":{"v":-30,"d":"-30.00 лв."}},{"$f":"INDEX(ПланираниЗаОфис[],MATCH(INDEX(РазликиЗаОфис[],ROW()-ROW(РазликиЗаОфис[[#Headers],[Мар]]),1),INDEX(ПланираниЗаОфис[],,1),0),MATCH(РазликиЗаОфис[[#Headers],[Мар]],ПланираниЗаОфис[#Headers],0))-INDEX(ДействителиЗаОфис[],MATCH(INDEX(РазликиЗаОфис[],ROW()-ROW(РазликиЗаОфис[[#Headers],[Мар]]),1),INDEX(ПланираниЗаОфис[],,1),0),MATCH(РазликиЗаОфис[[#Headers],[Мар]],ДействителиЗаОфис[#Headers],0))","v":{"v":15,"d":"15.00 лв."}},{"$f":"INDEX(ПланираниЗаОфис[],MATCH(INDEX(РазликиЗаОфис[],ROW()-ROW(РазликиЗаОфис[[#Headers],[Апр]]),1),INDEX(ПланираниЗаОфис[],,1),0),MATCH(РазликиЗаОфис[[#Headers],[Апр]],ПланираниЗаОфис[#Headers],0))-INDEX(ДействителиЗаОфис[],MATCH(INDEX(РазликиЗаОфис[],ROW()-ROW(РазликиЗаОфис[[#Headers],[Апр]]),1),INDEX(ПланираниЗаОфис[],,1),0),MATCH(РазликиЗаОфис[[#Headers],[Апр]],ДействителиЗаОфис[#Headers],0))","v":{"v":-130,"d":"-130.00 лв."}},{"$f":"INDEX(ПланираниЗаОфис[],MATCH(INDEX(РазликиЗаОфис[],ROW()-ROW(РазликиЗаОфис[[#Headers],[Май]]),1),INDEX(ПланираниЗаОфис[],,1),0),MATCH(РазликиЗаОфис[[#Headers],[Май]],ПланираниЗаОфис[#Headers],0))-INDEX(ДействителиЗаОфис[],MATCH(INDEX(РазликиЗаОфис[],ROW()-ROW(РазликиЗаОфис[[#Headers],[Май]]),1),INDEX(ПланираниЗаОфис[],,1),0),MATCH(РазликиЗаОфис[[#Headers],[Май]],ДействителиЗаОфис[#Headers],0))","v":{"v":13,"d":"13.00 лв."}},{"$f":"INDEX(ПланираниЗаОфис[],MATCH(INDEX(РазликиЗаОфис[],ROW()-ROW(РазликиЗаОфис[[#Headers],[Юни]]),1),INDEX(ПланираниЗаОфис[],,1),0),MATCH(РазликиЗаОфис[[#Headers],[Юни]],ПланираниЗаОфис[#Headers],0))-INDEX(ДействителиЗаОфис[],MATCH(INDEX(РазликиЗаОфис[],ROW()-ROW(РазликиЗаОфис[[#Headers],[Юни]]),1),INDEX(ПланираниЗаОфис[],,1),0),MATCH(РазликиЗаОфис[[#Headers],[Юни]],ДействителиЗаОфис[#Headers],0))","v":{"v":12,"d":"12.00 лв."}},{"$f":"INDEX(ПланираниЗаОфис[],MATCH(INDEX(РазликиЗаОфис[],ROW()-ROW(РазликиЗаОфис[[#Headers],[Юли]]),1),INDEX(ПланираниЗаОфис[],,1),0),MATCH(РазликиЗаОфис[[#Headers],[Юли]],ПланираниЗаОфис[#Headers],0))-INDEX(ДействителиЗаОфис[],MATCH(INDEX(РазликиЗаОфис[],ROW()-ROW(РазликиЗаОфис[[#Headers],[Юли]]),1),INDEX(ПланираниЗаОфис[],,1),0),MATCH(РазликиЗаОфис[[#Headers],[Юли]],ДействителиЗаОфис[#Headers],0))","v":{"v":100,"d":"100.00 лв."}},{"$f":"INDEX(ПланираниЗаОфис[],MATCH(INDEX(РазликиЗаОфис[],ROW()-ROW(РазликиЗаОфис[[#Headers],[Авг]]),1),INDEX(ПланираниЗаОфис[],,1),0),MATCH(РазликиЗаОфис[[#Headers],[Авг]],ПланираниЗаОфис[#Headers],0))-INDEX(ДействителиЗаОфис[],MATCH(INDEX(РазликиЗаОфис[],ROW()-ROW(РазликиЗаОфис[[#Headers],[Авг]]),1),INDEX(ПланираниЗаОфис[],,1),0),MATCH(РазликиЗаОфис[[#Headers],[Авг]],ДействителиЗаОфис[#Headers],0))","v":{"v":100,"d":"100.00 лв."}},{"$f":"INDEX(ПланираниЗаОфис[],MATCH(INDEX(РазликиЗаОфис[],ROW()-ROW(РазликиЗаОфис[[#Headers],[Сеп]]),1),INDEX(ПланираниЗаОфис[],,1),0),MATCH(РазликиЗаОфис[[#Headers],[Сеп]],ПланираниЗаОфис[#Headers],0))-INDEX(ДействителиЗаОфис[],MATCH(INDEX(РазликиЗаОфис[],ROW()-ROW(РазликиЗаОфис[[#Headers],[Сеп]]),1),INDEX(ПланираниЗаОфис[],,1),0),MATCH(РазликиЗаОфис[[#Headers],[Сеп]],ДействителиЗаОфис[#Headers],0))","v":{"v":100,"d":"100.00 лв."}},{"$f":"INDEX(ПланираниЗаОфис[],MATCH(INDEX(РазликиЗаОфис[],ROW()-ROW(РазликиЗаОфис[[#Headers],[Окт]]),1),INDEX(ПланираниЗаОфис[],,1),0),MATCH(РазликиЗаОфис[[#Headers],[Окт]],ПланираниЗаОфис[#Headers],0))-INDEX(ДействителиЗаОфис[],MATCH(INDEX(РазликиЗаОфис[],ROW()-ROW(РазликиЗаОфис[[#Headers],[Окт]]),1),INDEX(ПланираниЗаОфис[],,1),0),MATCH(РазликиЗаОфис[[#Headers],[Окт]],ДействителиЗаОфис[#Headers],0))","v":{"v":100,"d":"100.00 лв."}},{"$f":"INDEX(ПланираниЗаОфис[],MATCH(INDEX(РазликиЗаОфис[],ROW()-ROW(РазликиЗаОфис[[#Headers],[Ное]]),1),INDEX(ПланираниЗаОфис[],,1),0),MATCH(РазликиЗаОфис[[#Headers],[Ное]],ПланираниЗаОфис[#Headers],0))-INDEX(ДействителиЗаОфис[],MATCH(INDEX(РазликиЗаОфис[],ROW()-ROW(РазликиЗаОфис[[#Headers],[Ное]]),1),INDEX(ПланираниЗаОфис[],,1),0),MATCH(РазликиЗаОфис[[#Headers],[Ное]],ДействителиЗаОфис[#Headers],0))","v":{"v":400,"d":"400.00 лв."}},{"$f":"INDEX(ПланираниЗаОфис[],MATCH(INDEX(РазликиЗаОфис[],ROW()-ROW(РазликиЗаОфис[[#Headers],[Дек]]),1),INDEX(ПланираниЗаОфис[],,1),0),MATCH(РазликиЗаОфис[[#Headers],[Дек]],ПланираниЗаОфис[#Headers],0))-INDEX(ДействителиЗаОфис[],MATCH(INDEX(РазликиЗаОфис[],ROW()-ROW(РазликиЗаОфис[[#Headers],[Дек]]),1),INDEX(ПланираниЗаОфис[],,1),0),MATCH(РазликиЗаОфис[[#Headers],[Дек]],ДействителиЗаОфис[#Headers],0))","v":{"v":400,"d":"400.00 лв."}},{"$f":"SUM(РазликиЗаОфис[[#This Row],[Янр]:[Дек]])","v":{"v":1076,"d":"1,076.00 лв."}}]
[null,"Ток",{"$f":"INDEX(ПланираниЗаОфис[],MATCH(INDEX(РазликиЗаОфис[],ROW()-ROW(РазликиЗаОфис[[#Headers],[Янр]]),1),INDEX(ПланираниЗаОфис[],,1),0),MATCH(РазликиЗаОфис[[#Headers],[Янр]],ПланираниЗаОфис[#Headers],0))-INDEX(ДействителиЗаОфис[],MATCH(INDEX(РазликиЗаОфис[],ROW()-ROW(РазликиЗаОфис[[#Headers],[Янр]]),1),INDEX(ПланираниЗаОфис[],,1),0),MATCH(РазликиЗаОфис[[#Headers],[Янр]],ДействителиЗаОфис[#Headers],0))","v":{"v":12,"d":"12.00 лв."}},{"$f":"INDEX(ПланираниЗаОфис[],MATCH(INDEX(РазликиЗаОфис[],ROW()-ROW(РазликиЗаОфис[[#Headers],[Фев]]),1),INDEX(ПланираниЗаОфис[],,1),0),MATCH(РазликиЗаОфис[[#Headers],[Фев]],ПланираниЗаОфис[#Headers],0))-INDEX(ДействителиЗаОфис[],MATCH(INDEX(РазликиЗаОфис[],ROW()-ROW(РазликиЗаОфис[[#Headers],[Фев]]),1),INDEX(ПланираниЗаОфис[],,1),0),MATCH(РазликиЗаОфис[[#Headers],[Фев]],ДействителиЗаОфис[#Headers],0))","v":{"v":22,"d":"22.00 лв."}},{"$f":"INDEX(ПланираниЗаОфис[],MATCH(INDEX(РазликиЗаОфис[],ROW()-ROW(РазликиЗаОфис[[#Headers],[Мар]]),1),INDEX(ПланираниЗаОфис[],,1),0),MATCH(РазликиЗаОфис[[#Headers],[Мар]],ПланираниЗаОфис[#Headers],0))-INDEX(ДействителиЗаОфис[],MATCH(INDEX(РазликиЗаОфис[],ROW()-ROW(РазликиЗаОфис[[#Headers],[Мар]]),1),INDEX(ПланираниЗаОфис[],,1),0),MATCH(РазликиЗаОфис[[#Headers],[Мар]],ДействителиЗаОфис[#Headers],0))","v":{"v":32,"d":"32.00 лв."}},{"$f":"INDEX(ПланираниЗаОфис[],MATCH(INDEX(РазликиЗаОфис[],ROW()-ROW(РазликиЗаОфис[[#Headers],[Апр]]),1),INDEX(ПланираниЗаОфис[],,1),0),MATCH(РазликиЗаОфис[[#Headers],[Апр]],ПланираниЗаОфис[#Headers],0))-INDEX(ДействителиЗаОфис[],MATCH(INDEX(РазликиЗаОфис[],ROW()-ROW(РазликиЗаОфис[[#Headers],[Апр]]),1),INDEX(ПланираниЗаОфис[],,1),0),MATCH(РазликиЗаОфис[[#Headers],[Апр]],ДействителиЗаОфис[#Headers],0))","v":{"v":1,"d":"1.00 лв."}},{"$f":"INDEX(ПланираниЗаОфис[],MATCH(INDEX(РазликиЗаОфис[],ROW()-ROW(РазликиЗаОфис[[#Headers],[Май]]),1),INDEX(ПланираниЗаОфис[],,1),0),MATCH(РазликиЗаОфис[[#Headers],[Май]],ПланираниЗаОфис[#Headers],0))-INDEX(ДействителиЗаОфис[],MATCH(INDEX(РазликиЗаОфис[],ROW()-ROW(РазликиЗаОфис[[#Headers],[Май]]),1),INDEX(ПланираниЗаОфис[],,1),0),MATCH(РазликиЗаОфис[[#Headers],[Май]],ДействителиЗаОфис[#Headers],0))","v":{"v":-6,"d":"-6.00 лв."}},{"$f":"INDEX(ПланираниЗаОфис[],MATCH(INDEX(РазликиЗаОфис[],ROW()-ROW(РазликиЗаОфис[[#Headers],[Юни]]),1),INDEX(ПланираниЗаОфис[],,1),0),MATCH(РазликиЗаОфис[[#Headers],[Юни]],ПланираниЗаОфис[#Headers],0))-INDEX(ДействителиЗаОфис[],MATCH(INDEX(РазликиЗаОфис[],ROW()-ROW(РазликиЗаОфис[[#Headers],[Юни]]),1),INDEX(ПланираниЗаОфис[],,1),0),MATCH(РазликиЗаОфис[[#Headers],[Юни]],ДействителиЗаОфис[#Headers],0))","v":{"v":10,"d":"10.00 лв."}},{"$f":"INDEX(ПланираниЗаОфис[],MATCH(INDEX(РазликиЗаОфис[],ROW()-ROW(РазликиЗаОфис[[#Headers],[Юли]]),1),INDEX(ПланираниЗаОфис[],,1),0),MATCH(РазликиЗаОфис[[#Headers],[Юли]],ПланираниЗаОфис[#Headers],0))-INDEX(ДействителиЗаОфис[],MATCH(INDEX(РазликиЗаОфис[],ROW()-ROW(РазликиЗаОфис[[#Headers],[Юли]]),1),INDEX(ПланираниЗаОфис[],,1),0),MATCH(РазликиЗаОфис[[#Headers],[Юли]],ДействителиЗаОфис[#Headers],0))","v":{"v":300,"d":"300.00 лв."}},{"$f":"INDEX(ПланираниЗаОфис[],MATCH(INDEX(РазликиЗаОфис[],ROW()-ROW(РазликиЗаОфис[[#Headers],[Авг]]),1),INDEX(ПланираниЗаОфис[],,1),0),MATCH(РазликиЗаОфис[[#Headers],[Авг]],ПланираниЗаОфис[#Headers],0))-INDEX(ДействителиЗаОфис[],MATCH(INDEX(РазликиЗаОфис[],ROW()-ROW(РазликиЗаОфис[[#Headers],[Авг]]),1),INDEX(ПланираниЗаОфис[],,1),0),MATCH(РазликиЗаОфис[[#Headers],[Авг]],ДействителиЗаОфис[#Headers],0))","v":{"v":300,"d":"300.00 лв."}},{"$f":"INDEX(ПланираниЗаОфис[],MATCH(INDEX(РазликиЗаОфис[],ROW()-ROW(РазликиЗаОфис[[#Headers],[Сеп]]),1),INDEX(ПланираниЗаОфис[],,1),0),MATCH(РазликиЗаОфис[[#Headers],[Сеп]],ПланираниЗаОфис[#Headers],0))-INDEX(ДействителиЗаОфис[],MATCH(INDEX(РазликиЗаОфис[],ROW()-ROW(РазликиЗаОфис[[#Headers],[Сеп]]),1),INDEX(ПланираниЗаОфис[],,1),0),MATCH(РазликиЗаОфис[[#Headers],[Сеп]],ДействителиЗаОфис[#Headers],0))","v":{"v":300,"d":"300.00 лв."}},{"$f":"INDEX(ПланираниЗаОфис[],MATCH(INDEX(РазликиЗаОфис[],ROW()-ROW(РазликиЗаОфис[[#Headers],[Окт]]),1),INDEX(ПланираниЗаОфис[],,1),0),MATCH(РазликиЗаОфис[[#Headers],[Окт]],ПланираниЗаОфис[#Headers],0))-INDEX(ДействителиЗаОфис[],MATCH(INDEX(РазликиЗаОфис[],ROW()-ROW(РазликиЗаОфис[[#Headers],[Окт]]),1),INDEX(ПланираниЗаОфис[],,1),0),MATCH(РазликиЗаОфис[[#Headers],[Окт]],ДействителиЗаОфис[#Headers],0))","v":{"v":300,"d":"300.00 лв."}},{"$f":"INDEX(ПланираниЗаОфис[],MATCH(INDEX(РазликиЗаОфис[],ROW()-ROW(РазликиЗаОфис[[#Headers],[Ное]]),1),INDEX(ПланираниЗаОфис[],,1),0),MATCH(РазликиЗаОфис[[#Headers],[Ное]],ПланираниЗаОфис[#Headers],0))-INDEX(ДействителиЗаОфис[],MATCH(INDEX(РазликиЗаОфис[],ROW()-ROW(РазликиЗаОфис[[#Headers],[Ное]]),1),INDEX(ПланираниЗаОфис[],,1),0),MATCH(РазликиЗаОфис[[#Headers],[Ное]],ДействителиЗаОфис[#Headers],0))","v":{"v":300,"d":"300.00 лв."}},{"$f":"INDEX(ПланираниЗаОфис[],MATCH(INDEX(РазликиЗаОфис[],ROW()-ROW(РазликиЗаОфис[[#Headers],[Дек]]),1),INDEX(ПланираниЗаОфис[],,1),0),MATCH(РазликиЗаОфис[[#Headers],[Дек]],ПланираниЗаОфис[#Headers],0))-INDEX(ДействителиЗаОфис[],MATCH(INDEX(РазликиЗаОфис[],ROW()-ROW(РазликиЗаОфис[[#Headers],[Дек]]),1),INDEX(ПланираниЗаОфис[],,1),0),MATCH(РазликиЗаОфис[[#Headers],[Дек]],ДействителиЗаОфис[#Headers],0))","v":{"v":300,"d":"300.00 лв."}},{"$f":"SUM(РазликиЗаОфис[[#This Row],[Янр]:[Дек]])","v":{"v":1871,"d":"1,871.00 лв."}}]
[null,"Вода",{"$f":"INDEX(ПланираниЗаОфис[],MATCH(INDEX(РазликиЗаОфис[],ROW()-ROW(РазликиЗаОфис[[#Headers],[Янр]]),1),INDEX(ПланираниЗаОфис[],,1),0),MATCH(РазликиЗаОфис[[#Headers],[Янр]],ПланираниЗаОфис[#Headers],0))-INDEX(ДействителиЗаОфис[],MATCH(INDEX(РазликиЗаОфис[],ROW()-ROW(РазликиЗаОфис[[#Headers],[Янр]]),1),INDEX(ПланираниЗаОфис[],,1),0),MATCH(РазликиЗаОфис[[#Headers],[Янр]],ДействителиЗаОфис[#Headers],0))","v":{"v":5,"d":"5.00 лв."}},{"$f":"INDEX(ПланираниЗаОфис[],MATCH(INDEX(РазликиЗаОфис[],ROW()-ROW(РазликиЗаОфис[[#Headers],[Фев]]),1),INDEX(ПланираниЗаОфис[],,1),0),MATCH(РазликиЗаОфис[[#Headers],[Фев]],ПланираниЗаОфис[#Headers],0))-INDEX(ДействителиЗаОфис[],MATCH(INDEX(РазликиЗаОфис[],ROW()-ROW(РазликиЗаОфис[[#Headers],[Фев]]),1),INDEX(ПланираниЗаОфис[],,1),0),MATCH(РазликиЗаОфис[[#Headers],[Фев]],ДействителиЗаОфис[#Headers],0))","v":{"v":7,"d":"7.00 лв."}},{"$f":"INDEX(ПланираниЗаОфис[],MATCH(INDEX(РазликиЗаОфис[],ROW()-ROW(РазликиЗаОфис[[#Headers],[Мар]]),1),INDEX(ПланираниЗаОфис[],,1),0),MATCH(РазликиЗаОфис[[#Headers],[Мар]],ПланираниЗаОфис[#Headers],0))-INDEX(ДействителиЗаОфис[],MATCH(INDEX(РазликиЗаОфис[],ROW()-ROW(РазликиЗаОфис[[#Headers],[Мар]]),1),INDEX(ПланираниЗаОфис[],,1),0),MATCH(РазликиЗаОфис[[#Headers],[Мар]],ДействителиЗаОфис[#Headers],0))","v":{"v":6,"d":"6.00 лв."}},{"$f":"INDEX(ПланираниЗаОфис[],MATCH(INDEX(РазликиЗаОфис[],ROW()-ROW(РазликиЗаОфис[[#Headers],[Апр]]),1),INDEX(ПланираниЗаОфис[],,1),0),MATCH(РазликиЗаОфис[[#Headers],[Апр]],ПланираниЗаОфис[#Headers],0))-INDEX(ДействителиЗаОфис[],MATCH(INDEX(РазликиЗаОфис[],ROW()-ROW(РазликиЗаОфис[[#Headers],[Апр]]),1),INDEX(ПланираниЗаОфис[],,1),0),MATCH(РазликиЗаОфис[[#Headers],[Апр]],ДействителиЗаОфис[#Headers],0))","v":{"v":4,"d":"4.00 лв."}},{"$f":"INDEX(ПланираниЗаОфис[],MATCH(INDEX(РазликиЗаОфис[],ROW()-ROW(РазликиЗаОфис[[#Headers],[Май]]),1),INDEX(ПланираниЗаОфис[],,1),0),MATCH(РазликиЗаОфис[[#Headers],[Май]],ПланираниЗаОфис[#Headers],0))-INDEX(ДействителиЗаОфис[],MATCH(INDEX(РазликиЗаОфис[],ROW()-ROW(РазликиЗаОфис[[#Headers],[Май]]),1),INDEX(ПланираниЗаОфис[],,1),0),MATCH(РазликиЗаОфис[[#Headers],[Май]],ДействителиЗаОфис[#Headers],0))","v":{"v":6,"d":"6.00 лв."}},{"$f":"INDEX(ПланираниЗаОфис[],MATCH(INDEX(РазликиЗаОфис[],ROW()-ROW(РазликиЗаОфис[[#Headers],[Юни]]),1),INDEX(ПланираниЗаОфис[],,1),0),MATCH(РазликиЗаОфис[[#Headers],[Юни]],ПланираниЗаОфис[#Headers],0))-INDEX(ДействителиЗаОфис[],MATCH(INDEX(РазликиЗаОфис[],ROW()-ROW(РазликиЗаОфис[[#Headers],[Юни]]),1),INDEX(ПланираниЗаОфис[],,1),0),MATCH(РазликиЗаОфис[[#Headers],[Юни]],ДействителиЗаОфис[#Headers],0))","v":{"v":4,"d":"4.00 лв."}},{"$f":"INDEX(ПланираниЗаОфис[],MATCH(INDEX(РазликиЗаОфис[],ROW()-ROW(РазликиЗаОфис[[#Headers],[Юли]]),1),INDEX(ПланираниЗаОфис[],,1),0),MATCH(РазликиЗаОфис[[#Headers],[Юли]],ПланираниЗаОфис[#Headers],0))-INDEX(ДействителиЗаОфис[],MATCH(INDEX(РазликиЗаОфис[],ROW()-ROW(РазликиЗаОфис[[#Headers],[Юли]]),1),INDEX(ПланираниЗаОфис[],,1),0),MATCH(РазликиЗаОфис[[#Headers],[Юли]],ДействителиЗаОфис[#Headers],0))","v":{"v":40,"d":"40.00 лв."}},{"$f":"INDEX(ПланираниЗаОфис[],MATCH(INDEX(РазликиЗаОфис[],ROW()-ROW(РазликиЗаОфис[[#Headers],[Авг]]),1),INDEX(ПланираниЗаОфис[],,1),0),MATCH(РазликиЗаОфис[[#Headers],[Авг]],ПланираниЗаОфис[#Headers],0))-INDEX(ДействителиЗаОфис[],MATCH(INDEX(РазликиЗаОфис[],ROW()-ROW(РазликиЗаОфис[[#Headers],[Авг]]),1),INDEX(ПланираниЗаОфис[],,1),0),MATCH(РазликиЗаОфис[[#Headers],[Авг]],ДействителиЗаОфис[#Headers],0))","v":{"v":40,"d":"40.00 лв."}},{"$f":"INDEX(ПланираниЗаОфис[],MATCH(INDEX(РазликиЗаОфис[],ROW()-ROW(РазликиЗаОфис[[#Headers],[Сеп]]),1),INDEX(ПланираниЗаОфис[],,1),0),MATCH(РазликиЗаОфис[[#Headers],[Сеп]],ПланираниЗаОфис[#Headers],0))-INDEX(ДействителиЗаОфис[],MATCH(INDEX(РазликиЗаОфис[],ROW()-ROW(РазликиЗаОфис[[#Headers],[Сеп]]),1),INDEX(ПланираниЗаОфис[],,1),0),MATCH(РазликиЗаОфис[[#Headers],[Сеп]],ДействителиЗаОфис[#Headers],0))","v":{"v":40,"d":"40.00 лв."}},{"$f":"INDEX(ПланираниЗаОфис[],MATCH(INDEX(РазликиЗаОфис[],ROW()-ROW(РазликиЗаОфис[[#Headers],[Окт]]),1),INDEX(ПланираниЗаОфис[],,1),0),MATCH(РазликиЗаОфис[[#Headers],[Окт]],ПланираниЗаОфис[#Headers],0))-INDEX(ДействителиЗаОфис[],MATCH(INDEX(РазликиЗаОфис[],ROW()-ROW(РазликиЗаОфис[[#Headers],[Окт]]),1),INDEX(ПланираниЗаОфис[],,1),0),MATCH(РазликиЗаОфис[[#Headers],[Окт]],ДействителиЗаОфис[#Headers],0))","v":{"v":40,"d":"40.00 лв."}},{"$f":"INDEX(ПланираниЗаОфис[],MATCH(INDEX(РазликиЗаОфис[],ROW()-ROW(РазликиЗаОфис[[#Headers],[Ное]]),1),INDEX(ПланираниЗаОфис[],,1),0),MATCH(РазликиЗаОфис[[#Headers],[Ное]],ПланираниЗаОфис[#Headers],0))-INDEX(ДействителиЗаОфис[],MATCH(INDEX(РазликиЗаОфис[],ROW()-ROW(РазликиЗаОфис[[#Headers],[Ное]]),1),INDEX(ПланираниЗаОфис[],,1),0),MATCH(РазликиЗаОфис[[#Headers],[Ное]],ДействителиЗаОфис[#Headers],0))","v":{"v":40,"d":"40.00 лв."}},{"$f":"INDEX(ПланираниЗаОфис[],MATCH(INDEX(РазликиЗаОфис[],ROW()-ROW(РазликиЗаОфис[[#Headers],[Дек]]),1),INDEX(ПланираниЗаОфис[],,1),0),MATCH(РазликиЗаОфис[[#Headers],[Дек]],ПланираниЗаОфис[#Headers],0))-INDEX(ДействителиЗаОфис[],MATCH(INDEX(РазликиЗаОфис[],ROW()-ROW(РазликиЗаОфис[[#Headers],[Дек]]),1),INDEX(ПланираниЗаОфис[],,1),0),MATCH(РазликиЗаОфис[[#Headers],[Дек]],ДействителиЗаОфис[#Headers],0))","v":{"v":40,"d":"40.00 лв."}},{"$f":"SUM(РазликиЗаОфис[[#This Row],[Янр]:[Дек]])","v":{"v":272,"d":"272.00 лв."}}]
[null,"Телефон",{"$f":"INDEX(ПланираниЗаОфис[],MATCH(INDEX(РазликиЗаОфис[],ROW()-ROW(РазликиЗаОфис[[#Headers],[Янр]]),1),INDEX(ПланираниЗаОфис[],,1),0),MATCH(РазликиЗаОфис[[#Headers],[Янр]],ПланираниЗаОфис[#Headers],0))-INDEX(ДействителиЗаОфис[],MATCH(INDEX(РазликиЗаОфис[],ROW()-ROW(РазликиЗаОфис[[#Headers],[Янр]]),1),INDEX(ПланираниЗаОфис[],,1),0),MATCH(РазликиЗаОфис[[#Headers],[Янр]],ДействителиЗаОфис[#Headers],0))","v":{"v":26,"d":"26.00 лв."}},{"$f":"INDEX(ПланираниЗаОфис[],MATCH(INDEX(РазликиЗаОфис[],ROW()-ROW(РазликиЗаОфис[[#Headers],[Фев]]),1),INDEX(ПланираниЗаОфис[],,1),0),MATCH(РазликиЗаОфис[[#Headers],[Фев]],ПланираниЗаОфис[#Headers],0))-INDEX(ДействителиЗаОфис[],MATCH(INDEX(РазликиЗаОфис[],ROW()-ROW(РазликиЗаОфис[[#Headers],[Фев]]),1),INDEX(ПланираниЗаОфис[],,1),0),MATCH(РазликиЗаОфис[[#Headers],[Фев]],ДействителиЗаОфис[#Headers],0))","v":{"v":15,"d":"15.00 лв."}},{"$f":"INDEX(ПланираниЗаОфис[],MATCH(INDEX(РазликиЗаОфис[],ROW()-ROW(РазликиЗаОфис[[#Headers],[Мар]]),1),INDEX(ПланираниЗаОфис[],,1),0),MATCH(РазликиЗаОфис[[#Headers],[Мар]],ПланираниЗаОфис[#Headers],0))-INDEX(ДействителиЗаОфис[],MATCH(INDEX(РазликиЗаОфис[],ROW()-ROW(РазликиЗаОфис[[#Headers],[Мар]]),1),INDEX(ПланираниЗаОфис[],,1),0),MATCH(РазликиЗаОфис[[#Headers],[Мар]],ДействителиЗаОфис[#Headers],0))","v":{"v":-15,"d":"-15.00 лв."}},{"$f":"INDEX(ПланираниЗаОфис[],MATCH(INDEX(РазликиЗаОфис[],ROW()-ROW(РазликиЗаОфис[[#Headers],[Апр]]),1),INDEX(ПланираниЗаОфис[],,1),0),MATCH(РазликиЗаОфис[[#Headers],[Апр]],ПланираниЗаОфис[#Headers],0))-INDEX(ДействителиЗаОфис[],MATCH(INDEX(РазликиЗаОфис[],ROW()-ROW(РазликиЗаОфис[[#Headers],[Апр]]),1),INDEX(ПланираниЗаОфис[],,1),0),MATCH(РазликиЗаОфис[[#Headers],[Апр]],ДействителиЗаОфис[#Headers],0))","v":{"v":5,"d":"5.00 лв."}},{"$f":"INDEX(ПланираниЗаОфис[],MATCH(INDEX(РазликиЗаОфис[],ROW()-ROW(РазликиЗаОфис[[#Headers],[Май]]),1),INDEX(ПланираниЗаОфис[],,1),0),MATCH(РазликиЗаОфис[[#Headers],[Май]],ПланираниЗаОфис[#Headers],0))-INDEX(ДействителиЗаОфис[],MATCH(INDEX(РазликиЗаОфис[],ROW()-ROW(РазликиЗаОфис[[#Headers],[Май]]),1),INDEX(ПланираниЗаОфис[],,1),0),MATCH(РазликиЗаОфис[[#Headers],[Май]],ДействителиЗаОфис[#Headers],0))","v":{"v":5,"d":"5.00 лв."}},{"$f":"INDEX(ПланираниЗаОфис[],MATCH(INDEX(РазликиЗаОфис[],ROW()-ROW(РазликиЗаОфис[[#Headers],[Юни]]),1),INDEX(ПланираниЗаОфис[],,1),0),MATCH(РазликиЗаОфис[[#Headers],[Юни]],ПланираниЗаОфис[#Headers],0))-INDEX(ДействителиЗаОфис[],MATCH(INDEX(РазликиЗаОфис[],ROW()-ROW(РазликиЗаОфис[[#Headers],[Юни]]),1),INDEX(ПланираниЗаОфис[],,1),0),MATCH(РазликиЗаОфис[[#Headers],[Юни]],ДействителиЗаОфис[#Headers],0))","v":{"v":30,"d":"30.00 лв."}},{"$f":"INDEX(ПланираниЗаОфис[],MATCH(INDEX(РазликиЗаОфис[],ROW()-ROW(РазликиЗаОфис[[#Headers],[Юли]]),1),INDEX(ПланираниЗаОфис[],,1),0),MATCH(РазликиЗаОфис[[#Headers],[Юли]],ПланираниЗаОфис[#Headers],0))-INDEX(ДействителиЗаОфис[],MATCH(INDEX(РазликиЗаОфис[],ROW()-ROW(РазликиЗаОфис[[#Headers],[Юли]]),1),INDEX(ПланираниЗаОфис[],,1),0),MATCH(РазликиЗаОфис[[#Headers],[Юли]],ДействителиЗаОфис[#Headers],0))","v":{"v":250,"d":"250.00 лв."}},{"$f":"INDEX(ПланираниЗаОфис[],MATCH(INDEX(РазликиЗаОфис[],ROW()-ROW(РазликиЗаОфис[[#Headers],[Авг]]),1),INDEX(ПланираниЗаОфис[],,1),0),MATCH(РазликиЗаОфис[[#Headers],[Авг]],ПланираниЗаОфис[#Headers],0))-INDEX(ДействителиЗаОфис[],MATCH(INDEX(РазликиЗаОфис[],ROW()-ROW(РазликиЗаОфис[[#Headers],[Авг]]),1),INDEX(ПланираниЗаОфис[],,1),0),MATCH(РазликиЗаОфис[[#Headers],[Авг]],ДействителиЗаОфис[#Headers],0))","v":{"v":250,"d":"250.00 лв."}},{"$f":"INDEX(ПланираниЗаОфис[],MATCH(INDEX(РазликиЗаОфис[],ROW()-ROW(РазликиЗаОфис[[#Headers],[Сеп]]),1),INDEX(ПланираниЗаОфис[],,1),0),MATCH(РазликиЗаОфис[[#Headers],[Сеп]],ПланираниЗаОфис[#Headers],0))-INDEX(ДействителиЗаОфис[],MATCH(INDEX(РазликиЗаОфис[],ROW()-ROW(РазликиЗаОфис[[#Headers],[Сеп]]),1),INDEX(ПланираниЗаОфис[],,1),0),MATCH(РазликиЗаОфис[[#Headers],[Сеп]],ДействителиЗаОфис[#Headers],0))","v":{"v":250,"d":"250.00 лв."}},{"$f":"INDEX(ПланираниЗаОфис[],MATCH(INDEX(РазликиЗаОфис[],ROW()-ROW(РазликиЗаОфис[[#Headers],[Окт]]),1),INDEX(ПланираниЗаОфис[],,1),0),MATCH(РазликиЗаОфис[[#Headers],[Окт]],ПланираниЗаОфис[#Headers],0))-INDEX(ДействителиЗаОфис[],MATCH(INDEX(РазликиЗаОфис[],ROW()-ROW(РазликиЗаОфис[[#Headers],[Окт]]),1),INDEX(ПланираниЗаОфис[],,1),0),MATCH(РазликиЗаОфис[[#Headers],[Окт]],ДействителиЗаОфис[#Headers],0))","v":{"v":250,"d":"250.00 лв."}},{"$f":"INDEX(ПланираниЗаОфис[],MATCH(INDEX(РазликиЗаОфис[],ROW()-ROW(РазликиЗаОфис[[#Headers],[Ное]]),1),INDEX(ПланираниЗаОфис[],,1),0),MATCH(РазликиЗаОфис[[#Headers],[Ное]],ПланираниЗаОфис[#Headers],0))-INDEX(ДействителиЗаОфис[],MATCH(INDEX(РазликиЗаОфис[],ROW()-ROW(РазликиЗаОфис[[#Headers],[Ное]]),1),INDEX(ПланираниЗаОфис[],,1),0),MATCH(РазликиЗаОфис[[#Headers],[Ное]],ДействителиЗаОфис[#Headers],0))","v":{"v":250,"d":"250.00 лв."}},{"$f":"INDEX(ПланираниЗаОфис[],MATCH(INDEX(РазликиЗаОфис[],ROW()-ROW(РазликиЗаОфис[[#Headers],[Дек]]),1),INDEX(ПланираниЗаОфис[],,1),0),MATCH(РазликиЗаОфис[[#Headers],[Дек]],ПланираниЗаОфис[#Headers],0))-INDEX(ДействителиЗаОфис[],MATCH(INDEX(РазликиЗаОфис[],ROW()-ROW(РазликиЗаОфис[[#Headers],[Дек]]),1),INDEX(ПланираниЗаОфис[],,1),0),MATCH(РазликиЗаОфис[[#Headers],[Дек]],ДействителиЗаОфис[#Headers],0))","v":{"v":250,"d":"250.00 лв."}},{"$f":"SUM(РазликиЗаОфис[[#This Row],[Янр]:[Дек]])","v":{"v":1566,"d":"1,566.00 лв."}}]
[null,"Достъп до интернет",{"$f":"INDEX(ПланираниЗаОфис[],MATCH(INDEX(РазликиЗаОфис[],ROW()-ROW(РазликиЗаОфис[[#Headers],[Янр]]),1),INDEX(ПланираниЗаОфис[],,1),0),MATCH(РазликиЗаОфис[[#Headers],[Янр]],ПланираниЗаОфис[#Headers],0))-INDEX(ДействителиЗаОфис[],MATCH(INDEX(РазликиЗаОфис[],ROW()-ROW(РазликиЗаОфис[[#Headers],[Янр]]),1),INDEX(ПланираниЗаОфис[],,1),0),MATCH(РазликиЗаОфис[[#Headers],[Янр]],ДействителиЗаОфис[#Headers],0))","v":{"v":0,"d":"0.00 лв."}},{"$f":"INDEX(ПланираниЗаОфис[],MATCH(INDEX(РазликиЗаОфис[],ROW()-ROW(РазликиЗаОфис[[#Headers],[Фев]]),1),INDEX(ПланираниЗаОфис[],,1),0),MATCH(РазликиЗаОфис[[#Headers],[Фев]],ПланираниЗаОфис[#Headers],0))-INDEX(ДействителиЗаОфис[],MATCH(INDEX(РазликиЗаОфис[],ROW()-ROW(РазликиЗаОфис[[#Headers],[Фев]]),1),INDEX(ПланираниЗаОфис[],,1),0),MATCH(РазликиЗаОфис[[#Headers],[Фев]],ДействителиЗаОфис[#Headers],0))","v":{"v":0,"d":"0.00 лв."}},{"$f":"INDEX(ПланираниЗаОфис[],MATCH(INDEX(РазликиЗаОфис[],ROW()-ROW(РазликиЗаОфис[[#Headers],[Мар]]),1),INDEX(ПланираниЗаОфис[],,1),0),MATCH(РазликиЗаОфис[[#Headers],[Мар]],ПланираниЗаОфис[#Headers],0))-INDEX(ДействителиЗаОфис[],MATCH(INDEX(РазликиЗаОфис[],ROW()-ROW(РазликиЗаОфис[[#Headers],[Мар]]),1),INDEX(ПланираниЗаОфис[],,1),0),MATCH(РазликиЗаОфис[[#Headers],[Мар]],ДействителиЗаОфис[#Headers],0))","v":{"v":0,"d":"0.00 лв."}},{"$f":"INDEX(ПланираниЗаОфис[],MATCH(INDEX(РазликиЗаОфис[],ROW()-ROW(РазликиЗаОфис[[#Headers],[Апр]]),1),INDEX(ПланираниЗаОфис[],,1),0),MATCH(РазликиЗаОфис[[#Headers],[Апр]],ПланираниЗаОфис[#Headers],0))-INDEX(ДействителиЗаОфис[],MATCH(INDEX(РазликиЗаОфис[],ROW()-ROW(РазликиЗаОфис[[#Headers],[Апр]]),1),INDEX(ПланираниЗаОфис[],,1),0),MATCH(РазликиЗаОфис[[#Headers],[Апр]],ДействителиЗаОфис[#Headers],0))","v":{"v":0,"d":"0.00 лв."}},{"$f":"INDEX(ПланираниЗаОфис[],MATCH(INDEX(РазликиЗаОфис[],ROW()-ROW(РазликиЗаОфис[[#Headers],[Май]]),1),INDEX(ПланираниЗаОфис[],,1),0),MATCH(РазликиЗаОфис[[#Headers],[Май]],ПланираниЗаОфис[#Headers],0))-INDEX(ДействителиЗаОфис[],MATCH(INDEX(РазликиЗаОфис[],ROW()-ROW(РазликиЗаОфис[[#Headers],[Май]]),1),INDEX(ПланираниЗаОфис[],,1),0),MATCH(РазликиЗаОфис[[#Headers],[Май]],ДействителиЗаОфис[#Headers],0))","v":{"v":0,"d":"0.00 лв."}},{"$f":"INDEX(ПланираниЗаОфис[],MATCH(INDEX(РазликиЗаОфис[],ROW()-ROW(РазликиЗаОфис[[#Headers],[Юни]]),1),INDEX(ПланираниЗаОфис[],,1),0),MATCH(РазликиЗаОфис[[#Headers],[Юни]],ПланираниЗаОфис[#Headers],0))-INDEX(ДействителиЗаОфис[],MATCH(INDEX(РазликиЗаОфис[],ROW()-ROW(РазликиЗаОфис[[#Headers],[Юни]]),1),INDEX(ПланираниЗаОфис[],,1),0),MATCH(РазликиЗаОфис[[#Headers],[Юни]],ДействителиЗаОфис[#Headers],0))","v":{"v":0,"d":"0.00 лв."}},{"$f":"INDEX(ПланираниЗаОфис[],MATCH(INDEX(РазликиЗаОфис[],ROW()-ROW(РазликиЗаОфис[[#Headers],[Юли]]),1),INDEX(ПланираниЗаОфис[],,1),0),MATCH(РазликиЗаОфис[[#Headers],[Юли]],ПланираниЗаОфис[#Headers],0))-INDEX(ДействителиЗаОфис[],MATCH(INDEX(РазликиЗаОфис[],ROW()-ROW(РазликиЗаОфис[[#Headers],[Юли]]),1),INDEX(ПланираниЗаОфис[],,1),0),MATCH(РазликиЗаОфис[[#Headers],[Юли]],ДействителиЗаОфис[#Headers],0))","v":{"v":180,"d":"180.00 лв."}},{"$f":"INDEX(ПланираниЗаОфис[],MATCH(INDEX(РазликиЗаОфис[],ROW()-ROW(РазликиЗаОфис[[#Headers],[Авг]]),1),INDEX(ПланираниЗаОфис[],,1),0),MATCH(РазликиЗаОфис[[#Headers],[Авг]],ПланираниЗаОфис[#Headers],0))-INDEX(ДействителиЗаОфис[],MATCH(INDEX(РазликиЗаОфис[],ROW()-ROW(РазликиЗаОфис[[#Headers],[Авг]]),1),INDEX(ПланираниЗаОфис[],,1),0),MATCH(РазликиЗаОфис[[#Headers],[Авг]],ДействителиЗаОфис[#Headers],0))","v":{"v":180,"d":"180.00 лв."}},{"$f":"INDEX(ПланираниЗаОфис[],MATCH(INDEX(РазликиЗаОфис[],ROW()-ROW(РазликиЗаОфис[[#Headers],[Сеп]]),1),INDEX(ПланираниЗаОфис[],,1),0),MATCH(РазликиЗаОфис[[#Headers],[Сеп]],ПланираниЗаОфис[#Headers],0))-INDEX(ДействителиЗаОфис[],MATCH(INDEX(РазликиЗаОфис[],ROW()-ROW(РазликиЗаОфис[[#Headers],[Сеп]]),1),INDEX(ПланираниЗаОфис[],,1),0),MATCH(РазликиЗаОфис[[#Headers],[Сеп]],ДействителиЗаОфис[#Headers],0))","v":{"v":180,"d":"180.00 лв."}},{"$f":"INDEX(ПланираниЗаОфис[],MATCH(INDEX(РазликиЗаОфис[],ROW()-ROW(РазликиЗаОфис[[#Headers],[Окт]]),1),INDEX(ПланираниЗаОфис[],,1),0),MATCH(РазликиЗаОфис[[#Headers],[Окт]],ПланираниЗаОфис[#Headers],0))-INDEX(ДействителиЗаОфис[],MATCH(INDEX(РазликиЗаОфис[],ROW()-ROW(РазликиЗаОфис[[#Headers],[Окт]]),1),INDEX(ПланираниЗаОфис[],,1),0),MATCH(РазликиЗаОфис[[#Headers],[Окт]],ДействителиЗаОфис[#Headers],0))","v":{"v":180,"d":"180.00 лв."}},{"$f":"INDEX(ПланираниЗаОфис[],MATCH(INDEX(РазликиЗаОфис[],ROW()-ROW(РазликиЗаОфис[[#Headers],[Ное]]),1),INDEX(ПланираниЗаОфис[],,1),0),MATCH(РазликиЗаОфис[[#Headers],[Ное]],ПланираниЗаОфис[#Headers],0))-INDEX(ДействителиЗаОфис[],MATCH(INDEX(РазликиЗаОфис[],ROW()-ROW(РазликиЗаОфис[[#Headers],[Ное]]),1),INDEX(ПланираниЗаОфис[],,1),0),MATCH(РазликиЗаОфис[[#Headers],[Ное]],ДействителиЗаОфис[#Headers],0))","v":{"v":180,"d":"180.00 лв."}},{"$f":"INDEX(ПланираниЗаОфис[],MATCH(INDEX(РазликиЗаОфис[],ROW()-ROW(РазликиЗаОфис[[#Headers],[Дек]]),1),INDEX(ПланираниЗаОфис[],,1),0),MATCH(РазликиЗаОфис[[#Headers],[Дек]],ПланираниЗаОфис[#Headers],0))-INDEX(ДействителиЗаОфис[],MATCH(INDEX(РазликиЗаОфис[],ROW()-ROW(РазликиЗаОфис[[#Headers],[Дек]]),1),INDEX(ПланираниЗаОфис[],,1),0),MATCH(РазликиЗаОфис[[#Headers],[Дек]],ДействителиЗаОфис[#Headers],0))","v":{"v":180,"d":"180.00 лв."}},{"$f":"SUM(РазликиЗаОфис[[#This Row],[Янр]:[Дек]])","v":{"v":1080,"d":"1,080.00 лв."}}]
[null,"Канцеларски материали",{"$f":"INDEX(ПланираниЗаОфис[],MATCH(INDEX(РазликиЗаОфис[],ROW()-ROW(РазликиЗаОфис[[#Headers],[Янр]]),1),INDEX(ПланираниЗаОфис[],,1),0),MATCH(РазликиЗаОфис[[#Headers],[Янр]],ПланираниЗаОфис[#Headers],0))-INDEX(ДействителиЗаОфис[],MATCH(INDEX(РазликиЗаОфис[],ROW()-ROW(РазликиЗаОфис[[#Headers],[Янр]]),1),INDEX(ПланираниЗаОфис[],,1),0),MATCH(РазликиЗаОфис[[#Headers],[Янр]],ДействителиЗаОфис[#Headers],0))","v":{"v":-56,"d":"-56.00 лв."}},{"$f":"INDEX(ПланираниЗаОфис[],MATCH(INDEX(РазликиЗаОфис[],ROW()-ROW(РазликиЗаОфис[[#Headers],[Фев]]),1),INDEX(ПланираниЗаОфис[],,1),0),MATCH(РазликиЗаОфис[[#Headers],[Фев]],ПланираниЗаОфис[#Headers],0))-INDEX(ДействителиЗаОфис[],MATCH(INDEX(РазликиЗаОфис[],ROW()-ROW(РазликиЗаОфис[[#Headers],[Фев]]),1),INDEX(ПланираниЗаОфис[],,1),0),MATCH(РазликиЗаОфис[[#Headers],[Фев]],ДействителиЗаОфис[#Headers],0))","v":{"v":58,"d":"58.00 лв."}},{"$f":"INDEX(ПланираниЗаОфис[],MATCH(INDEX(РазликиЗаОфис[],ROW()-ROW(РазликиЗаОфис[[#Headers],[Мар]]),1),INDEX(ПланираниЗаОфис[],,1),0),MATCH(РазликиЗаОфис[[#Headers],[Мар]],ПланираниЗаОфис[#Headers],0))-INDEX(ДействителиЗаОфис[],MATCH(INDEX(РазликиЗаОфис[],ROW()-ROW(РазликиЗаОфис[[#Headers],[Мар]]),1),INDEX(ПланираниЗаОфис[],,1),0),MATCH(РазликиЗаОфис[[#Headers],[Мар]],ДействителиЗаОфис[#Headers],0))","v":{"v":40,"d":"40.00 лв."}},{"$f":"INDEX(ПланираниЗаОфис[],MATCH(INDEX(РазликиЗаОфис[],ROW()-ROW(РазликиЗаОфис[[#Headers],[Апр]]),1),INDEX(ПланираниЗаОфис[],,1),0),MATCH(РазликиЗаОфис[[#Headers],[Апр]],ПланираниЗаОфис[#Headers],0))-INDEX(ДействителиЗаОфис[],MATCH(INDEX(РазликиЗаОфис[],ROW()-ROW(РазликиЗаОфис[[#Headers],[Апр]]),1),INDEX(ПланираниЗаОфис[],,1),0),MATCH(РазликиЗаОфис[[#Headers],[Апр]],ДействителиЗаОфис[#Headers],0))","v":{"v":-21,"d":"-21.00 лв."}},{"$f":"INDEX(ПланираниЗаОфис[],MATCH(INDEX(РазликиЗаОфис[],ROW()-ROW(РазликиЗаОфис[[#Headers],[Май]]),1),INDEX(ПланираниЗаОфис[],,1),0),MATCH(РазликиЗаОфис[[#Headers],[Май]],ПланираниЗаОфис[#Headers],0))-INDEX(ДействителиЗаОфис[],MATCH(INDEX(РазликиЗаОфис[],ROW()-ROW(РазликиЗаОфис[[#Headers],[Май]]),1),INDEX(ПланираниЗаОфис[],,1),0),MATCH(РазликиЗаОфис[[#Headers],[Май]],ДействителиЗаОфис[#Headers],0))","v":{"v":-56,"d":"-56.00 лв."}},{"$f":"INDEX(ПланираниЗаОфис[],MATCH(INDEX(РазликиЗаОфис[],ROW()-ROW(РазликиЗаОфис[[#Headers],[Юни]]),1),INDEX(ПланираниЗаОфис[],,1),0),MATCH(РазликиЗаОфис[[#Headers],[Юни]],ПланираниЗаОфис[#Headers],0))-INDEX(ДействителиЗаОфис[],MATCH(INDEX(РазликиЗаОфис[],ROW()-ROW(РазликиЗаОфис[[#Headers],[Юни]]),1),INDEX(ПланираниЗаОфис[],,1),0),MATCH(РазликиЗаОфис[[#Headers],[Юни]],ДействителиЗаОфис[#Headers],0))","v":{"v":-40,"d":"-40.00 лв."}},{"$f":"INDEX(ПланираниЗаОфис[],MATCH(INDEX(РазликиЗаОфис[],ROW()-ROW(РазликиЗаОфис[[#Headers],[Юли]]),1),INDEX(ПланираниЗаОфис[],,1),0),MATCH(РазликиЗаОфис[[#Headers],[Юли]],ПланираниЗаОфис[#Headers],0))-INDEX(ДействителиЗаОфис[],MATCH(INDEX(РазликиЗаОфис[],ROW()-ROW(РазликиЗаОфис[[#Headers],[Юли]]),1),INDEX(ПланираниЗаОфис[],,1),0),MATCH(РазликиЗаОфис[[#Headers],[Юли]],ДействителиЗаОфис[#Headers],0))","v":{"v":200,"d":"200.00 лв."}},{"$f":"INDEX(ПланираниЗаОфис[],MATCH(INDEX(РазликиЗаОфис[],ROW()-ROW(РазликиЗаОфис[[#Headers],[Авг]]),1),INDEX(ПланираниЗаОфис[],,1),0),MATCH(РазликиЗаОфис[[#Headers],[Авг]],ПланираниЗаОфис[#Headers],0))-INDEX(ДействителиЗаОфис[],MATCH(INDEX(РазликиЗаОфис[],ROW()-ROW(РазликиЗаОфис[[#Headers],[Авг]]),1),INDEX(ПланираниЗаОфис[],,1),0),MATCH(РазликиЗаОфис[[#Headers],[Авг]],ДействителиЗаОфис[#Headers],0))","v":{"v":200,"d":"200.00 лв."}},{"$f":"INDEX(ПланираниЗаОфис[],MATCH(INDEX(РазликиЗаОфис[],ROW()-ROW(РазликиЗаОфис[[#Headers],[Сеп]]),1),INDEX(ПланираниЗаОфис[],,1),0),MATCH(РазликиЗаОфис[[#Headers],[Сеп]],ПланираниЗаОфис[#Headers],0))-INDEX(ДействителиЗаОфис[],MATCH(INDEX(РазликиЗаОфис[],ROW()-ROW(РазликиЗаОфис[[#Headers],[Сеп]]),1),INDEX(ПланираниЗаОфис[],,1),0),MATCH(РазликиЗаОфис[[#Headers],[Сеп]],ДействителиЗаОфис[#Headers],0))","v":{"v":200,"d":"200.00 лв."}},{"$f":"INDEX(ПланираниЗаОфис[],MATCH(INDEX(РазликиЗаОфис[],ROW()-ROW(РазликиЗаОфис[[#Headers],[Окт]]),1),INDEX(ПланираниЗаОфис[],,1),0),MATCH(РазликиЗаОфис[[#Headers],[Окт]],ПланираниЗаОфис[#Headers],0))-INDEX(ДействителиЗаОфис[],MATCH(INDEX(РазликиЗаОфис[],ROW()-ROW(РазликиЗаОфис[[#Headers],[Окт]]),1),INDEX(ПланираниЗаОфис[],,1),0),MATCH(РазликиЗаОфис[[#Headers],[Окт]],ДействителиЗаОфис[#Headers],0))","v":{"v":200,"d":"200.00 лв."}},{"$f":"INDEX(ПланираниЗаОфис[],MATCH(INDEX(РазликиЗаОфис[],ROW()-ROW(РазликиЗаОфис[[#Headers],[Ное]]),1),INDEX(ПланираниЗаОфис[],,1),0),MATCH(РазликиЗаОфис[[#Headers],[Ное]],ПланираниЗаОфис[#Headers],0))-INDEX(ДействителиЗаОфис[],MATCH(INDEX(РазликиЗаОфис[],ROW()-ROW(РазликиЗаОфис[[#Headers],[Ное]]),1),INDEX(ПланираниЗаОфис[],,1),0),MATCH(РазликиЗаОфис[[#Headers],[Ное]],ДействителиЗаОфис[#Headers],0))","v":{"v":200,"d":"200.00 лв."}},{"$f":"INDEX(ПланираниЗаОфис[],MATCH(INDEX(РазликиЗаОфис[],ROW()-ROW(РазликиЗаОфис[[#Headers],[Дек]]),1),INDEX(ПланираниЗаОфис[],,1),0),MATCH(РазликиЗаОфис[[#Headers],[Дек]],ПланираниЗаОфис[#Headers],0))-INDEX(ДействителиЗаОфис[],MATCH(INDEX(РазликиЗаОфис[],ROW()-ROW(РазликиЗаОфис[[#Headers],[Дек]]),1),INDEX(ПланираниЗаОфис[],,1),0),MATCH(РазликиЗаОфис[[#Headers],[Дек]],ДействителиЗаОфис[#Headers],0))","v":{"v":200,"d":"200.00 лв."}},{"$f":"SUM(РазликиЗаОфис[[#This Row],[Янр]:[Дек]])","v":{"v":1125,"d":"1,125.00 лв."}}]
[null,"Охрана",{"$f":"INDEX(ПланираниЗаОфис[],MATCH(INDEX(РазликиЗаОфис[],ROW()-ROW(РазликиЗаОфис[[#Headers],[Янр]]),1),INDEX(ПланираниЗаОфис[],,1),0),MATCH(РазликиЗаОфис[[#Headers],[Янр]],ПланираниЗаОфис[#Headers],0))-INDEX(ДействителиЗаОфис[],MATCH(INDEX(РазликиЗаОфис[],ROW()-ROW(РазликиЗаОфис[[#Headers],[Янр]]),1),INDEX(ПланираниЗаОфис[],,1),0),MATCH(РазликиЗаОфис[[#Headers],[Янр]],ДействителиЗаОфис[#Headers],0))","v":{"v":0,"d":"0.00 лв."}},{"$f":"INDEX(ПланираниЗаОфис[],MATCH(INDEX(РазликиЗаОфис[],ROW()-ROW(РазликиЗаОфис[[#Headers],[Фев]]),1),INDEX(ПланираниЗаОфис[],,1),0),MATCH(РазликиЗаОфис[[#Headers],[Фев]],ПланираниЗаОфис[#Headers],0))-INDEX(ДействителиЗаОфис[],MATCH(INDEX(РазликиЗаОфис[],ROW()-ROW(РазликиЗаОфис[[#Headers],[Фев]]),1),INDEX(ПланираниЗаОфис[],,1),0),MATCH(РазликиЗаОфис[[#Headers],[Фев]],ДействителиЗаОфис[#Headers],0))","v":{"v":0,"d":"0.00 лв."}},{"$f":"INDEX(ПланираниЗаОфис[],MATCH(INDEX(РазликиЗаОфис[],ROW()-ROW(РазликиЗаОфис[[#Headers],[Мар]]),1),INDEX(ПланираниЗаОфис[],,1),0),MATCH(РазликиЗаОфис[[#Headers],[Мар]],ПланираниЗаОфис[#Headers],0))-INDEX(ДействителиЗаОфис[],MATCH(INDEX(РазликиЗаОфис[],ROW()-ROW(РазликиЗаОфис[[#Headers],[Мар]]),1),INDEX(ПланираниЗаОфис[],,1),0),MATCH(РазликиЗаОфис[[#Headers],[Мар]],ДействителиЗаОфис[#Headers],0))","v":{"v":0,"d":"0.00 лв."}},{"$f":"INDEX(ПланираниЗаОфис[],MATCH(INDEX(РазликиЗаОфис[],ROW()-ROW(РазликиЗаОфис[[#Headers],[Апр]]),1),INDEX(ПланираниЗаОфис[],,1),0),MATCH(РазликиЗаОфис[[#Headers],[Апр]],ПланираниЗаОфис[#Headers],0))-INDEX(ДействителиЗаОфис[],MATCH(INDEX(РазликиЗаОфис[],ROW()-ROW(РазликиЗаОфис[[#Headers],[Апр]]),1),INDEX(ПланираниЗаОфис[],,1),0),MATCH(РазликиЗаОфис[[#Headers],[Апр]],ДействителиЗаОфис[#Headers],0))","v":{"v":0,"d":"0.00 лв."}},{"$f":"INDEX(ПланираниЗаОфис[],MATCH(INDEX(РазликиЗаОфис[],ROW()-ROW(РазликиЗаОфис[[#Headers],[Май]]),1),INDEX(ПланираниЗаОфис[],,1),0),MATCH(РазликиЗаОфис[[#Headers],[Май]],ПланираниЗаОфис[#Headers],0))-INDEX(ДействителиЗаОфис[],MATCH(INDEX(РазликиЗаОфис[],ROW()-ROW(РазликиЗаОфис[[#Headers],[Май]]),1),INDEX(ПланираниЗаОфис[],,1),0),MATCH(РазликиЗаОфис[[#Headers],[Май]],ДействителиЗаОфис[#Headers],0))","v":{"v":0,"d":"0.00 лв."}},{"$f":"INDEX(ПланираниЗаОфис[],MATCH(INDEX(РазликиЗаОфис[],ROW()-ROW(РазликиЗаОфис[[#Headers],[Юни]]),1),INDEX(ПланираниЗаОфис[],,1),0),MATCH(РазликиЗаОфис[[#Headers],[Юни]],ПланираниЗаОфис[#Headers],0))-INDEX(ДействителиЗаОфис[],MATCH(INDEX(РазликиЗаОфис[],ROW()-ROW(РазликиЗаОфис[[#Headers],[Юни]]),1),INDEX(ПланираниЗаОфис[],,1),0),MATCH(РазликиЗаОфис[[#Headers],[Юни]],ДействителиЗаОфис[#Headers],0))","v":{"v":0,"d":"0.00 лв."}},{"$f":"INDEX(ПланираниЗаОфис[],MATCH(INDEX(РазликиЗаОфис[],ROW()-ROW(РазликиЗаОфис[[#Headers],[Юли]]),1),INDEX(ПланираниЗаОфис[],,1),0),MATCH(РазликиЗаОфис[[#Headers],[Юли]],ПланираниЗаОфис[#Headers],0))-INDEX(ДействителиЗаОфис[],MATCH(INDEX(РазликиЗаОфис[],ROW()-ROW(РазликиЗаОфис[[#Headers],[Юли]]),1),INDEX(ПланираниЗаОфис[],,1),0),MATCH(РазликиЗаОфис[[#Headers],[Юли]],ДействителиЗаОфис[#Headers],0))","v":{"v":600,"d":"600.00 лв."}},{"$f":"INDEX(ПланираниЗаОфис[],MATCH(INDEX(РазликиЗаОфис[],ROW()-ROW(РазликиЗаОфис[[#Headers],[Авг]]),1),INDEX(ПланираниЗаОфис[],,1),0),MATCH(РазликиЗаОфис[[#Headers],[Авг]],ПланираниЗаОфис[#Headers],0))-INDEX(ДействителиЗаОфис[],MATCH(INDEX(РазликиЗаОфис[],ROW()-ROW(РазликиЗаОфис[[#Headers],[Авг]]),1),INDEX(ПланираниЗаОфис[],,1),0),MATCH(РазликиЗаОфис[[#Headers],[Авг]],ДействителиЗаОфис[#Headers],0))","v":{"v":600,"d":"600.00 лв."}},{"$f":"INDEX(ПланираниЗаОфис[],MATCH(INDEX(РазликиЗаОфис[],ROW()-ROW(РазликиЗаОфис[[#Headers],[Сеп]]),1),INDEX(ПланираниЗаОфис[],,1),0),MATCH(РазликиЗаОфис[[#Headers],[Сеп]],ПланираниЗаОфис[#Headers],0))-INDEX(ДействителиЗаОфис[],MATCH(INDEX(РазликиЗаОфис[],ROW()-ROW(РазликиЗаОфис[[#Headers],[Сеп]]),1),INDEX(ПланираниЗаОфис[],,1),0),MATCH(РазликиЗаОфис[[#Headers],[Сеп]],ДействителиЗаОфис[#Headers],0))","v":{"v":600,"d":"600.00 лв."}},{"$f":"INDEX(ПланираниЗаОфис[],MATCH(INDEX(РазликиЗаОфис[],ROW()-ROW(РазликиЗаОфис[[#Headers],[Окт]]),1),INDEX(ПланираниЗаОфис[],,1),0),MATCH(РазликиЗаОфис[[#Headers],[Окт]],ПланираниЗаОфис[#Headers],0))-INDEX(ДействителиЗаОфис[],MATCH(INDEX(РазликиЗаОфис[],ROW()-ROW(РазликиЗаОфис[[#Headers],[Окт]]),1),INDEX(ПланираниЗаОфис[],,1),0),MATCH(РазликиЗаОфис[[#Headers],[Окт]],ДействителиЗаОфис[#Headers],0))","v":{"v":600,"d":"600.00 лв."}},{"$f":"INDEX(ПланираниЗаОфис[],MATCH(INDEX(РазликиЗаОфис[],ROW()-ROW(РазликиЗаОфис[[#Headers],[Ное]]),1),INDEX(ПланираниЗаОфис[],,1),0),MATCH(РазликиЗаОфис[[#Headers],[Ное]],ПланираниЗаОфис[#Headers],0))-INDEX(ДействителиЗаОфис[],MATCH(INDEX(РазликиЗаОфис[],ROW()-ROW(РазликиЗаОфис[[#Headers],[Ное]]),1),INDEX(ПланираниЗаОфис[],,1),0),MATCH(РазликиЗаОфис[[#Headers],[Ное]],ДействителиЗаОфис[#Headers],0))","v":{"v":600,"d":"600.00 лв."}},{"$f":"INDEX(ПланираниЗаОфис[],MATCH(INDEX(РазликиЗаОфис[],ROW()-ROW(РазликиЗаОфис[[#Headers],[Дек]]),1),INDEX(ПланираниЗаОфис[],,1),0),MATCH(РазликиЗаОфис[[#Headers],[Дек]],ПланираниЗаОфис[#Headers],0))-INDEX(ДействителиЗаОфис[],MATCH(INDEX(РазликиЗаОфис[],ROW()-ROW(РазликиЗаОфис[[#Headers],[Дек]]),1),INDEX(ПланираниЗаОфис[],,1),0),MATCH(РазликиЗаОфис[[#Headers],[Дек]],ДействителиЗаОфис[#Headers],0))","v":{"v":600,"d":"600.00 лв."}},{"$f":"SUM(РазликиЗаОфис[[#This Row],[Янр]:[Дек]])","v":{"v":3600,"d":"3,600.00 лв."}}]
[null,"Междинна сума",{"$f":"SUBTOTAL(109,РазликиЗаОфис[Янр])","v":{"v":-17,"d":"-17.00 лв."}},{"$f":"SUBTOTAL(109,РазликиЗаОфис[Фев])","v":{"v":72,"d":"72.00 лв."}},{"$f":"SUBTOTAL(109,РазликиЗаОфис[Мар])","v":{"v":78,"d":"78.00 лв."}},{"$f":"SUBTOTAL(109,РазликиЗаОфис[Апр])","v":{"v":-141,"d":"-141.00 лв."}},{"$f":"SUBTOTAL(109,РазликиЗаОфис[Май])","v":{"v":-38,"d":"-38.00 лв."}},{"$f":"SUBTOTAL(109,РазликиЗаОфис[Юни])","v":{"v":16,"d":"16.00 лв."}},{"$f":"SUBTOTAL(109,РазликиЗаОфис[Юли])","v":{"v":11470,"d":"11,470.00 лв."}},{"$f":"SUBTOTAL(109,РазликиЗаОфис[Авг])","v":{"v":11470,"d":"11,470.00 лв."}},{"$f":"SUBTOTAL(109,РазликиЗаОфис[Сеп])","v":{"v":11470,"d":"11,470.00 лв."}},{"$f":"SUBTOTAL(109,РазликиЗаОфис[Окт])","v":{"v":11470,"d":"11,470.00 лв."}},{"$f":"SUBTOTAL(109,РазликиЗаОфис[Ное])","v":{"v":11770,"d":"11,770.00 лв."}},{"$f":"SUBTOTAL(109,РазликиЗаОфис[Дек])","v":{"v":11770,"d":"11,770.00 лв."}},{"$f":"SUBTOTAL(109,РазликиЗаОфис[ГОДИНА])","v":{"v":69390,"d":"69,390.00 лв."}}]
[]
["Разликата в разходи за маркетинг се изчислява автоматично в таблицата \"Разлики за маркетинг\", започваща от клетката вдясно. Следващата инструкция е в клетка A30.","Разходи за маркетинг","Янр","Фев","Мар","Апр","Май","Юни","Юли","Авг","Сеп","Окт","Ное","Дек","ГОДИНА"]
[null,"Хостинг на уеб сайт",{"$f":"INDEX(ПланираниЗаМаркетинг[],MATCH(INDEX(РазликиЗаМаркетинг[],ROW()-ROW(РазликиЗаМаркетинг[[#Headers],[Янр]]),1),INDEX(ПланираниЗаМаркетинг[],,1),0),MATCH(РазликиЗаМаркетинг[[#Headers],[Янр]],ПланираниЗаМаркетинг[#Headers],0))-INDEX(ДействителниЗаМаркетинг[],MATCH(INDEX(РазликиЗаМаркетинг[],ROW()-ROW(РазликиЗаМаркетинг[[#Headers],[Янр]]),1),INDEX(ПланираниЗаМаркетинг[],,1),0),MATCH(РазликиЗаМаркетинг[[#Headers],[Янр]],ДействителниЗаМаркетинг[#Headers],0))","v":{"v":0,"d":"0.00 лв."}},{"$f":"INDEX(ПланираниЗаМаркетинг[],MATCH(INDEX(РазликиЗаМаркетинг[],ROW()-ROW(РазликиЗаМаркетинг[[#Headers],[Фев]]),1),INDEX(ПланираниЗаМаркетинг[],,1),0),MATCH(РазликиЗаМаркетинг[[#Headers],[Фев]],ПланираниЗаМаркетинг[#Headers],0))-INDEX(ДействителниЗаМаркетинг[],MATCH(INDEX(РазликиЗаМаркетинг[],ROW()-ROW(РазликиЗаМаркетинг[[#Headers],[Фев]]),1),INDEX(ПланираниЗаМаркетинг[],,1),0),MATCH(РазликиЗаМаркетинг[[#Headers],[Фев]],ДействителниЗаМаркетинг[#Headers],0))","v":{"v":0,"d":"0.00 лв."}},{"$f":"INDEX(ПланираниЗаМаркетинг[],MATCH(INDEX(РазликиЗаМаркетинг[],ROW()-ROW(РазликиЗаМаркетинг[[#Headers],[Мар]]),1),INDEX(ПланираниЗаМаркетинг[],,1),0),MATCH(РазликиЗаМаркетинг[[#Headers],[Мар]],ПланираниЗаМаркетинг[#Headers],0))-INDEX(ДействителниЗаМаркетинг[],MATCH(INDEX(РазликиЗаМаркетинг[],ROW()-ROW(РазликиЗаМаркетинг[[#Headers],[Мар]]),1),INDEX(ПланираниЗаМаркетинг[],,1),0),MATCH(РазликиЗаМаркетинг[[#Headers],[Мар]],ДействителниЗаМаркетинг[#Headers],0))","v":{"v":0,"d":"0.00 лв."}},{"$f":"INDEX(ПланираниЗаМаркетинг[],MATCH(INDEX(РазликиЗаМаркетинг[],ROW()-ROW(РазликиЗаМаркетинг[[#Headers],[Апр]]),1),INDEX(ПланираниЗаМаркетинг[],,1),0),MATCH(РазликиЗаМаркетинг[[#Headers],[Апр]],ПланираниЗаМаркетинг[#Headers],0))-INDEX(ДействителниЗаМаркетинг[],MATCH(INDEX(РазликиЗаМаркетинг[],ROW()-ROW(РазликиЗаМаркетинг[[#Headers],[Апр]]),1),INDEX(ПланираниЗаМаркетинг[],,1),0),MATCH(РазликиЗаМаркетинг[[#Headers],[Апр]],ДействителниЗаМаркетинг[#Headers],0))","v":{"v":0,"d":"0.00 лв."}},{"$f":"INDEX(ПланираниЗаМаркетинг[],MATCH(INDEX(РазликиЗаМаркетинг[],ROW()-ROW(РазликиЗаМаркетинг[[#Headers],[Май]]),1),INDEX(ПланираниЗаМаркетинг[],,1),0),MATCH(РазликиЗаМаркетинг[[#Headers],[Май]],ПланираниЗаМаркетинг[#Headers],0))-INDEX(ДействителниЗаМаркетинг[],MATCH(INDEX(РазликиЗаМаркетинг[],ROW()-ROW(РазликиЗаМаркетинг[[#Headers],[Май]]),1),INDEX(ПланираниЗаМаркетинг[],,1),0),MATCH(РазликиЗаМаркетинг[[#Headers],[Май]],ДействителниЗаМаркетинг[#Headers],0))","v":{"v":0,"d":"0.00 лв."}},{"$f":"INDEX(ПланираниЗаМаркетинг[],MATCH(INDEX(РазликиЗаМаркетинг[],ROW()-ROW(РазликиЗаМаркетинг[[#Headers],[Юни]]),1),INDEX(ПланираниЗаМаркетинг[],,1),0),MATCH(РазликиЗаМаркетинг[[#Headers],[Юни]],ПланираниЗаМаркетинг[#Headers],0))-INDEX(ДействителниЗаМаркетинг[],MATCH(INDEX(РазликиЗаМаркетинг[],ROW()-ROW(РазликиЗаМаркетинг[[#Headers],[Юни]]),1),INDEX(ПланираниЗаМаркетинг[],,1),0),MATCH(РазликиЗаМаркетинг[[#Headers],[Юни]],ДействителниЗаМаркетинг[#Headers],0))","v":{"v":0,"d":"0.00 лв."}},{"$f":"INDEX(ПланираниЗаМаркетинг[],MATCH(INDEX(РазликиЗаМаркетинг[],ROW()-ROW(РазликиЗаМаркетинг[[#Headers],[Юли]]),1),INDEX(ПланираниЗаМаркетинг[],,1),0),MATCH(РазликиЗаМаркетинг[[#Headers],[Юли]],ПланираниЗаМаркетинг[#Headers],0))-INDEX(ДействителниЗаМаркетинг[],MATCH(INDEX(РазликиЗаМаркетинг[],ROW()-ROW(РазликиЗаМаркетинг[[#Headers],[Юли]]),1),INDEX(ПланираниЗаМаркетинг[],,1),0),MATCH(РазликиЗаМаркетинг[[#Headers],[Юли]],ДействителниЗаМаркетинг[#Headers],0))","v":{"v":500,"d":"500.00 лв."}},{"$f":"INDEX(ПланираниЗаМаркетинг[],MATCH(INDEX(РазликиЗаМаркетинг[],ROW()-ROW(РазликиЗаМаркетинг[[#Headers],[Авг]]),1),INDEX(ПланираниЗаМаркетинг[],,1),0),MATCH(РазликиЗаМаркетинг[[#Headers],[Авг]],ПланираниЗаМаркетинг[#Headers],0))-INDEX(ДействителниЗаМаркетинг[],MATCH(INDEX(РазликиЗаМаркетинг[],ROW()-ROW(РазликиЗаМаркетинг[[#Headers],[Авг]]),1),INDEX(ПланираниЗаМаркетинг[],,1),0),MATCH(РазликиЗаМаркетинг[[#Headers],[Авг]],ДействителниЗаМаркетинг[#Headers],0))","v":{"v":500,"d":"500.00 лв."}},{"$f":"INDEX(ПланираниЗаМаркетинг[],MATCH(INDEX(РазликиЗаМаркетинг[],ROW()-ROW(РазликиЗаМаркетинг[[#Headers],[Сеп]]),1),INDEX(ПланираниЗаМаркетинг[],,1),0),MATCH(РазликиЗаМаркетинг[[#Headers],[Сеп]],ПланираниЗаМаркетинг[#Headers],0))-INDEX(ДействителниЗаМаркетинг[],MATCH(INDEX(РазликиЗаМаркетинг[],ROW()-ROW(РазликиЗаМаркетинг[[#Headers],[Сеп]]),1),INDEX(ПланираниЗаМаркетинг[],,1),0),MATCH(РазликиЗаМаркетинг[[#Headers],[Сеп]],ДействителниЗаМаркетинг[#Headers],0))","v":{"v":500,"d":"500.00 лв."}},{"$f":"INDEX(ПланираниЗаМаркетинг[],MATCH(INDEX(РазликиЗаМаркетинг[],ROW()-ROW(РазликиЗаМаркетинг[[#Headers],[Окт]]),1),INDEX(ПланираниЗаМаркетинг[],,1),0),MATCH(РазликиЗаМаркетинг[[#Headers],[Окт]],ПланираниЗаМаркетинг[#Headers],0))-INDEX(ДействителниЗаМаркетинг[],MATCH(INDEX(РазликиЗаМаркетинг[],ROW()-ROW(РазликиЗаМаркетинг[[#Headers],[Окт]]),1),INDEX(ПланираниЗаМаркетинг[],,1),0),MATCH(РазликиЗаМаркетинг[[#Headers],[Окт]],ДействителниЗаМаркетинг[#Headers],0))","v":{"v":500,"d":"500.00 лв."}},{"$f":"INDEX(ПланираниЗаМаркетинг[],MATCH(INDEX(РазликиЗаМаркетинг[],ROW()-ROW(РазликиЗаМаркетинг[[#Headers],[Ное]]),1),INDEX(ПланираниЗаМаркетинг[],,1),0),MATCH(РазликиЗаМаркетинг[[#Headers],[Ное]],ПланираниЗаМаркетинг[#Headers],0))-INDEX(ДействителниЗаМаркетинг[],MATCH(INDEX(РазликиЗаМаркетинг[],ROW()-ROW(РазликиЗаМаркетинг[[#Headers],[Ное]]),1),INDEX(ПланираниЗаМаркетинг[],,1),0),MATCH(РазликиЗаМаркетинг[[#Headers],[Ное]],ДействителниЗаМаркетинг[#Headers],0))","v":{"v":500,"d":"500.00 лв."}},{"$f":"INDEX(ПланираниЗаМаркетинг[],MATCH(INDEX(РазликиЗаМаркетинг[],ROW()-ROW(РазликиЗаМаркетинг[[#Headers],[Дек]]),1),INDEX(ПланираниЗаМаркетинг[],,1),0),MATCH(РазликиЗаМаркетинг[[#Headers],[Дек]],ПланираниЗаМаркетинг[#Headers],0))-INDEX(ДействителниЗаМаркетинг[],MATCH(INDEX(РазликиЗаМаркетинг[],ROW()-ROW(РазликиЗаМаркетинг[[#Headers],[Дек]]),1),INDEX(ПланираниЗаМаркетинг[],,1),0),MATCH(РазликиЗаМаркетинг[[#Headers],[Дек]],ДействителниЗаМаркетинг[#Headers],0))","v":{"v":500,"d":"500.00 лв."}},{"$f":"SUM(РазликиЗаМаркетинг[[#This Row],[Янр]:[Дек]])","v":{"v":3000,"d":"3,000.00 лв."}}]
[null,"Актуализации на уеб сайт",{"$f":"INDEX(ПланираниЗаМаркетинг[],MATCH(INDEX(РазликиЗаМаркетинг[],ROW()-ROW(РазликиЗаМаркетинг[[#Headers],[Янр]]),1),INDEX(ПланираниЗаМаркетинг[],,1),0),MATCH(РазликиЗаМаркетинг[[#Headers],[Янр]],ПланираниЗаМаркетинг[#Headers],0))-INDEX(ДействителниЗаМаркетинг[],MATCH(INDEX(РазликиЗаМаркетинг[],ROW()-ROW(РазликиЗаМаркетинг[[#Headers],[Янр]]),1),INDEX(ПланираниЗаМаркетинг[],,1),0),MATCH(РазликиЗаМаркетинг[[#Headers],[Янр]],ДействителниЗаМаркетинг[#Headers],0))","v":{"v":0,"d":"0.00 лв."}},{"$f":"INDEX(ПланираниЗаМаркетинг[],MATCH(INDEX(РазликиЗаМаркетинг[],ROW()-ROW(РазликиЗаМаркетинг[[#Headers],[Фев]]),1),INDEX(ПланираниЗаМаркетинг[],,1),0),MATCH(РазликиЗаМаркетинг[[#Headers],[Фев]],ПланираниЗаМаркетинг[#Headers],0))-INDEX(ДействителниЗаМаркетинг[],MATCH(INDEX(РазликиЗаМаркетинг[],ROW()-ROW(РазликиЗаМаркетинг[[#Headers],[Фев]]),1),INDEX(ПланираниЗаМаркетинг[],,1),0),MATCH(РазликиЗаМаркетинг[[#Headers],[Фев]],ДействителниЗаМаркетинг[#Headers],0))","v":{"v":0,"d":"0.00 лв."}},{"$f":"INDEX(ПланираниЗаМаркетинг[],MATCH(INDEX(РазликиЗаМаркетинг[],ROW()-ROW(РазликиЗаМаркетинг[[#Headers],[Мар]]),1),INDEX(ПланираниЗаМаркетинг[],,1),0),MATCH(РазликиЗаМаркетинг[[#Headers],[Мар]],ПланираниЗаМаркетинг[#Headers],0))-INDEX(ДействителниЗаМаркетинг[],MATCH(INDEX(РазликиЗаМаркетинг[],ROW()-ROW(РазликиЗаМаркетинг[[#Headers],[Мар]]),1),INDEX(ПланираниЗаМаркетинг[],,1),0),MATCH(РазликиЗаМаркетинг[[#Headers],[Мар]],ДействителниЗаМаркетинг[#Headers],0))","v":{"v":0,"d":"0.00 лв."}},{"$f":"INDEX(ПланираниЗаМаркетинг[],MATCH(INDEX(РазликиЗаМаркетинг[],ROW()-ROW(РазликиЗаМаркетинг[[#Headers],[Апр]]),1),INDEX(ПланираниЗаМаркетинг[],,1),0),MATCH(РазликиЗаМаркетинг[[#Headers],[Апр]],ПланираниЗаМаркетинг[#Headers],0))-INDEX(ДействителниЗаМаркетинг[],MATCH(INDEX(РазликиЗаМаркетинг[],ROW()-ROW(РазликиЗаМаркетинг[[#Headers],[Апр]]),1),INDEX(ПланираниЗаМаркетинг[],,1),0),MATCH(РазликиЗаМаркетинг[[#Headers],[Апр]],ДействителниЗаМаркетинг[#Headers],0))","v":{"v":0,"d":"0.00 лв."}},{"$f":"INDEX(ПланираниЗаМаркетинг[],MATCH(INDEX(РазликиЗаМаркетинг[],ROW()-ROW(РазликиЗаМаркетинг[[#Headers],[Май]]),1),INDEX(ПланираниЗаМаркетинг[],,1),0),MATCH(РазликиЗаМаркетинг[[#Headers],[Май]],ПланираниЗаМаркетинг[#Headers],0))-INDEX(ДействителниЗаМаркетинг[],MATCH(INDEX(РазликиЗаМаркетинг[],ROW()-ROW(РазликиЗаМаркетинг[[#Headers],[Май]]),1),INDEX(ПланираниЗаМаркетинг[],,1),0),MATCH(РазликиЗаМаркетинг[[#Headers],[Май]],ДействителниЗаМаркетинг[#Headers],0))","v":{"v":0,"d":"0.00 лв."}},{"$f":"INDEX(ПланираниЗаМаркетинг[],MATCH(INDEX(РазликиЗаМаркетинг[],ROW()-ROW(РазликиЗаМаркетинг[[#Headers],[Юни]]),1),INDEX(ПланираниЗаМаркетинг[],,1),0),MATCH(РазликиЗаМаркетинг[[#Headers],[Юни]],ПланираниЗаМаркетинг[#Headers],0))-INDEX(ДействителниЗаМаркетинг[],MATCH(INDEX(РазликиЗаМаркетинг[],ROW()-ROW(РазликиЗаМаркетинг[[#Headers],[Юни]]),1),INDEX(ПланираниЗаМаркетинг[],,1),0),MATCH(РазликиЗаМаркетинг[[#Headers],[Юни]],ДействителниЗаМаркетинг[#Headers],0))","v":{"v":-500,"d":"-500.00 лв."}},{"$f":"INDEX(ПланираниЗаМаркетинг[],MATCH(INDEX(РазликиЗаМаркетинг[],ROW()-ROW(РазликиЗаМаркетинг[[#Headers],[Юли]]),1),INDEX(ПланираниЗаМаркетинг[],,1),0),MATCH(РазликиЗаМаркетинг[[#Headers],[Юли]],ПланираниЗаМаркетинг[#Headers],0))-INDEX(ДействителниЗаМаркетинг[],MATCH(INDEX(РазликиЗаМаркетинг[],ROW()-ROW(РазликиЗаМаркетинг[[#Headers],[Юли]]),1),INDEX(ПланираниЗаМаркетинг[],,1),0),MATCH(РазликиЗаМаркетинг[[#Headers],[Юли]],ДействителниЗаМаркетинг[#Headers],0))","v":{"v":200,"d":"200.00 лв."}},{"$f":"INDEX(ПланираниЗаМаркетинг[],MATCH(INDEX(РазликиЗаМаркетинг[],ROW()-ROW(РазликиЗаМаркетинг[[#Headers],[Авг]]),1),INDEX(ПланираниЗаМаркетинг[],,1),0),MATCH(РазликиЗаМаркетинг[[#Headers],[Авг]],ПланираниЗаМаркетинг[#Headers],0))-INDEX(ДействителниЗаМаркетинг[],MATCH(INDEX(РазликиЗаМаркетинг[],ROW()-ROW(РазликиЗаМаркетинг[[#Headers],[Авг]]),1),INDEX(ПланираниЗаМаркетинг[],,1),0),MATCH(РазликиЗаМаркетинг[[#Headers],[Авг]],ДействителниЗаМаркетинг[#Headers],0))","v":{"v":200,"d":"200.00 лв."}},{"$f":"INDEX(ПланираниЗаМаркетинг[],MATCH(INDEX(РазликиЗаМаркетинг[],ROW()-ROW(РазликиЗаМаркетинг[[#Headers],[Сеп]]),1),INDEX(ПланираниЗаМаркетинг[],,1),0),MATCH(РазликиЗаМаркетинг[[#Headers],[Сеп]],ПланираниЗаМаркетинг[#Headers],0))-INDEX(ДействителниЗаМаркетинг[],MATCH(INDEX(РазликиЗаМаркетинг[],ROW()-ROW(РазликиЗаМаркетинг[[#Headers],[Сеп]]),1),INDEX(ПланираниЗаМаркетинг[],,1),0),MATCH(РазликиЗаМаркетинг[[#Headers],[Сеп]],ДействителниЗаМаркетинг[#Headers],0))","v":{"v":200,"d":"200.00 лв."}},{"$f":"INDEX(ПланираниЗаМаркетинг[],MATCH(INDEX(РазликиЗаМаркетинг[],ROW()-ROW(РазликиЗаМаркетинг[[#Headers],[Окт]]),1),INDEX(ПланираниЗаМаркетинг[],,1),0),MATCH(РазликиЗаМаркетинг[[#Headers],[Окт]],ПланираниЗаМаркетинг[#Headers],0))-INDEX(ДействителниЗаМаркетинг[],MATCH(INDEX(РазликиЗаМаркетинг[],ROW()-ROW(РазликиЗаМаркетинг[[#Headers],[Окт]]),1),INDEX(ПланираниЗаМаркетинг[],,1),0),MATCH(РазликиЗаМаркетинг[[#Headers],[Окт]],ДействителниЗаМаркетинг[#Headers],0))","v":{"v":200,"d":"200.00 лв."}},{"$f":"INDEX(ПланираниЗаМаркетинг[],MATCH(INDEX(РазликиЗаМаркетинг[],ROW()-ROW(РазликиЗаМаркетинг[[#Headers],[Ное]]),1),INDEX(ПланираниЗаМаркетинг[],,1),0),MATCH(РазликиЗаМаркетинг[[#Headers],[Ное]],ПланираниЗаМаркетинг[#Headers],0))-INDEX(ДействителниЗаМаркетинг[],MATCH(INDEX(РазликиЗаМаркетинг[],ROW()-ROW(РазликиЗаМаркетинг[[#Headers],[Ное]]),1),INDEX(ПланираниЗаМаркетинг[],,1),0),MATCH(РазликиЗаМаркетинг[[#Headers],[Ное]],ДействителниЗаМаркетинг[#Headers],0))","v":{"v":200,"d":"200.00 лв."}},{"$f":"INDEX(ПланираниЗаМаркетинг[],MATCH(INDEX(РазликиЗаМаркетинг[],ROW()-ROW(РазликиЗаМаркетинг[[#Headers],[Дек]]),1),INDEX(ПланираниЗаМаркетинг[],,1),0),MATCH(РазликиЗаМаркетинг[[#Headers],[Дек]],ПланираниЗаМаркетинг[#Headers],0))-INDEX(ДействителниЗаМаркетинг[],MATCH(INDEX(РазликиЗаМаркетинг[],ROW()-ROW(РазликиЗаМаркетинг[[#Headers],[Дек]]),1),INDEX(ПланираниЗаМаркетинг[],,1),0),MATCH(РазликиЗаМаркетинг[[#Headers],[Дек]],ДействителниЗаМаркетинг[#Headers],0))","v":{"v":1000,"d":"1,000.00 лв."}},{"$f":"SUM(РазликиЗаМаркетинг[[#This Row],[Янр]:[Дек]])","v":{"v":1500,"d":"1,500.00 лв."}}]
[null,"Подготовка на маркетингови материали",{"$f":"INDEX(ПланираниЗаМаркетинг[],MATCH(INDEX(РазликиЗаМаркетинг[],ROW()-ROW(РазликиЗаМаркетинг[[#Headers],[Янр]]),1),INDEX(ПланираниЗаМаркетинг[],,1),0),MATCH(РазликиЗаМаркетинг[[#Headers],[Янр]],ПланираниЗаМаркетинг[#Headers],0))-INDEX(ДействителниЗаМаркетинг[],MATCH(INDEX(РазликиЗаМаркетинг[],ROW()-ROW(РазликиЗаМаркетинг[[#Headers],[Янр]]),1),INDEX(ПланираниЗаМаркетинг[],,1),0),MATCH(РазликиЗаМаркетинг[[#Headers],[Янр]],ДействителниЗаМаркетинг[#Headers],0))","v":{"v":200,"d":"200.00 лв."}},{"$f":"INDEX(ПланираниЗаМаркетинг[],MATCH(INDEX(РазликиЗаМаркетинг[],ROW()-ROW(РазликиЗаМаркетинг[[#Headers],[Фев]]),1),INDEX(ПланираниЗаМаркетинг[],,1),0),MATCH(РазликиЗаМаркетинг[[#Headers],[Фев]],ПланираниЗаМаркетинг[#Headers],0))-INDEX(ДействителниЗаМаркетинг[],MATCH(INDEX(РазликиЗаМаркетинг[],ROW()-ROW(РазликиЗаМаркетинг[[#Headers],[Фев]]),1),INDEX(ПланираниЗаМаркетинг[],,1),0),MATCH(РазликиЗаМаркетинг[[#Headers],[Фев]],ДействителниЗаМаркетинг[#Headers],0))","v":{"v":0,"d":"0.00 лв."}},{"$f":"INDEX(ПланираниЗаМаркетинг[],MATCH(INDEX(РазликиЗаМаркетинг[],ROW()-ROW(РазликиЗаМаркетинг[[#Headers],[Мар]]),1),INDEX(ПланираниЗаМаркетинг[],,1),0),MATCH(РазликиЗаМаркетинг[[#Headers],[Мар]],ПланираниЗаМаркетинг[#Headers],0))-INDEX(ДействителниЗаМаркетинг[],MATCH(INDEX(РазликиЗаМаркетинг[],ROW()-ROW(РазликиЗаМаркетинг[[#Headers],[Мар]]),1),INDEX(ПланираниЗаМаркетинг[],,1),0),MATCH(РазликиЗаМаркетинг[[#Headers],[Мар]],ДействителниЗаМаркетинг[#Headers],0))","v":{"v":0,"d":"0.00 лв."}},{"$f":"INDEX(ПланираниЗаМаркетинг[],MATCH(INDEX(РазликиЗаМаркетинг[],ROW()-ROW(РазликиЗаМаркетинг[[#Headers],[Апр]]),1),INDEX(ПланираниЗаМаркетинг[],,1),0),MATCH(РазликиЗаМаркетинг[[#Headers],[Апр]],ПланираниЗаМаркетинг[#Headers],0))-INDEX(ДействителниЗаМаркетинг[],MATCH(INDEX(РазликиЗаМаркетинг[],ROW()-ROW(РазликиЗаМаркетинг[[#Headers],[Апр]]),1),INDEX(ПланираниЗаМаркетинг[],,1),0),MATCH(РазликиЗаМаркетинг[[#Headers],[Апр]],ДействителниЗаМаркетинг[#Headers],0))","v":{"v":-500,"d":"-500.00 лв."}},{"$f":"INDEX(ПланираниЗаМаркетинг[],MATCH(INDEX(РазликиЗаМаркетинг[],ROW()-ROW(РазликиЗаМаркетинг[[#Headers],[Май]]),1),INDEX(ПланираниЗаМаркетинг[],,1),0),MATCH(РазликиЗаМаркетинг[[#Headers],[Май]],ПланираниЗаМаркетинг[#Headers],0))-INDEX(ДействителниЗаМаркетинг[],MATCH(INDEX(РазликиЗаМаркетинг[],ROW()-ROW(РазликиЗаМаркетинг[[#Headers],[Май]]),1),INDEX(ПланираниЗаМаркетинг[],,1),0),MATCH(РазликиЗаМаркетинг[[#Headers],[Май]],ДействителниЗаМаркетинг[#Headers],0))","v":{"v":0,"d":"0.00 лв."}},{"$f":"INDEX(ПланираниЗаМаркетинг[],MATCH(INDEX(РазликиЗаМаркетинг[],ROW()-ROW(РазликиЗаМаркетинг[[#Headers],[Юни]]),1),INDEX(ПланираниЗаМаркетинг[],,1),0),MATCH(РазликиЗаМаркетинг[[#Headers],[Юни]],ПланираниЗаМаркетинг[#Headers],0))-INDEX(ДействителниЗаМаркетинг[],MATCH(INDEX(РазликиЗаМаркетинг[],ROW()-ROW(РазликиЗаМаркетинг[[#Headers],[Юни]]),1),INDEX(ПланираниЗаМаркетинг[],,1),0),MATCH(РазликиЗаМаркетинг[[#Headers],[Юни]],ДействителниЗаМаркетинг[#Headers],0))","v":{"v":0,"d":"0.00 лв."}},{"$f":"INDEX(ПланираниЗаМаркетинг[],MATCH(INDEX(РазликиЗаМаркетинг[],ROW()-ROW(РазликиЗаМаркетинг[[#Headers],[Юли]]),1),INDEX(ПланираниЗаМаркетинг[],,1),0),MATCH(РазликиЗаМаркетинг[[#Headers],[Юли]],ПланираниЗаМаркетинг[#Headers],0))-INDEX(ДействителниЗаМаркетинг[],MATCH(INDEX(РазликиЗаМаркетинг[],ROW()-ROW(РазликиЗаМаркетинг[[#Headers],[Юли]]),1),INDEX(ПланираниЗаМаркетинг[],,1),0),MATCH(РазликиЗаМаркетинг[[#Headers],[Юли]],ДействителниЗаМаркетинг[#Headers],0))","v":{"v":5000,"d":"5,000.00 лв."}},{"$f":"INDEX(ПланираниЗаМаркетинг[],MATCH(INDEX(РазликиЗаМаркетинг[],ROW()-ROW(РазликиЗаМаркетинг[[#Headers],[Авг]]),1),INDEX(ПланираниЗаМаркетинг[],,1),0),MATCH(РазликиЗаМаркетинг[[#Headers],[Авг]],ПланираниЗаМаркетинг[#Headers],0))-INDEX(ДействителниЗаМаркетинг[],MATCH(INDEX(РазликиЗаМаркетинг[],ROW()-ROW(РазликиЗаМаркетинг[[#Headers],[Авг]]),1),INDEX(ПланираниЗаМаркетинг[],,1),0),MATCH(РазликиЗаМаркетинг[[#Headers],[Авг]],ДействителниЗаМаркетинг[#Headers],0))","v":{"v":0,"d":"0.00 лв."}},{"$f":"INDEX(ПланираниЗаМаркетинг[],MATCH(INDEX(РазликиЗаМаркетинг[],ROW()-ROW(РазликиЗаМаркетинг[[#Headers],[Сеп]]),1),INDEX(ПланираниЗаМаркетинг[],,1),0),MATCH(РазликиЗаМаркетинг[[#Headers],[Сеп]],ПланираниЗаМаркетинг[#Headers],0))-INDEX(ДействителниЗаМаркетинг[],MATCH(INDEX(РазликиЗаМаркетинг[],ROW()-ROW(РазликиЗаМаркетинг[[#Headers],[Сеп]]),1),INDEX(ПланираниЗаМаркетинг[],,1),0),MATCH(РазликиЗаМаркетинг[[#Headers],[Сеп]],ДействителниЗаМаркетинг[#Headers],0))","v":{"v":0,"d":"0.00 лв."}},{"$f":"INDEX(ПланираниЗаМаркетинг[],MATCH(INDEX(РазликиЗаМаркетинг[],ROW()-ROW(РазликиЗаМаркетинг[[#Headers],[Окт]]),1),INDEX(ПланираниЗаМаркетинг[],,1),0),MATCH(РазликиЗаМаркетинг[[#Headers],[Окт]],ПланираниЗаМаркетинг[#Headers],0))-INDEX(ДействителниЗаМаркетинг[],MATCH(INDEX(РазликиЗаМаркетинг[],ROW()-ROW(РазликиЗаМаркетинг[[#Headers],[Окт]]),1),INDEX(ПланираниЗаМаркетинг[],,1),0),MATCH(РазликиЗаМаркетинг[[#Headers],[Окт]],ДействителниЗаМаркетинг[#Headers],0))","v":{"v":5000,"d":"5,000.00 лв."}},{"$f":"INDEX(ПланираниЗаМаркетинг[],MATCH(INDEX(РазликиЗаМаркетинг[],ROW()-ROW(РазликиЗаМаркетинг[[#Headers],[Ное]]),1),INDEX(ПланираниЗаМаркетинг[],,1),0),MATCH(РазликиЗаМаркетинг[[#Headers],[Ное]],ПланираниЗаМаркетинг[#Headers],0))-INDEX(ДействителниЗаМаркетинг[],MATCH(INDEX(РазликиЗаМаркетинг[],ROW()-ROW(РазликиЗаМаркетинг[[#Headers],[Ное]]),1),INDEX(ПланираниЗаМаркетинг[],,1),0),MATCH(РазликиЗаМаркетинг[[#Headers],[Ное]],ДействителниЗаМаркетинг[#Headers],0))","v":{"v":0,"d":"0.00 лв."}},{"$f":"INDEX(ПланираниЗаМаркетинг[],MATCH(INDEX(РазликиЗаМаркетинг[],ROW()-ROW(РазликиЗаМаркетинг[[#Headers],[Дек]]),1),INDEX(ПланираниЗаМаркетинг[],,1),0),MATCH(РазликиЗаМаркетинг[[#Headers],[Дек]],ПланираниЗаМаркетинг[#Headers],0))-INDEX(ДействителниЗаМаркетинг[],MATCH(INDEX(РазликиЗаМаркетинг[],ROW()-ROW(РазликиЗаМаркетинг[[#Headers],[Дек]]),1),INDEX(ПланираниЗаМаркетинг[],,1),0),MATCH(РазликиЗаМаркетинг[[#Headers],[Дек]],ДействителниЗаМаркетинг[#Headers],0))","v":{"v":0,"d":"0.00 лв."}},{"$f":"SUM(РазликиЗаМаркетинг[[#This Row],[Янр]:[Дек]])","v":{"v":9700,"d":"9,700.00 лв."}}]
[null,"Печат на маркетингови материали",{"$f":"INDEX(ПланираниЗаМаркетинг[],MATCH(INDEX(РазликиЗаМаркетинг[],ROW()-ROW(РазликиЗаМаркетинг[[#Headers],[Янр]]),1),INDEX(ПланираниЗаМаркетинг[],,1),0),MATCH(РазликиЗаМаркетинг[[#Headers],[Янр]],ПланираниЗаМаркетинг[#Headers],0))-INDEX(ДействителниЗаМаркетинг[],MATCH(INDEX(РазликиЗаМаркетинг[],ROW()-ROW(РазликиЗаМаркетинг[[#Headers],[Янр]]),1),INDEX(ПланираниЗаМаркетинг[],,1),0),MATCH(РазликиЗаМаркетинг[[#Headers],[Янр]],ДействителниЗаМаркетинг[#Headers],0))","v":{"v":100,"d":"100.00 лв."}},{"$f":"INDEX(ПланираниЗаМаркетинг[],MATCH(INDEX(РазликиЗаМаркетинг[],ROW()-ROW(РазликиЗаМаркетинг[[#Headers],[Фев]]),1),INDEX(ПланираниЗаМаркетинг[],,1),0),MATCH(РазликиЗаМаркетинг[[#Headers],[Фев]],ПланираниЗаМаркетинг[#Headers],0))-INDEX(ДействителниЗаМаркетинг[],MATCH(INDEX(РазликиЗаМаркетинг[],ROW()-ROW(РазликиЗаМаркетинг[[#Headers],[Фев]]),1),INDEX(ПланираниЗаМаркетинг[],,1),0),MATCH(РазликиЗаМаркетинг[[#Headers],[Фев]],ДействителниЗаМаркетинг[#Headers],0))","v":{"v":-300,"d":"-300.00 лв."}},{"$f":"INDEX(ПланираниЗаМаркетинг[],MATCH(INDEX(РазликиЗаМаркетинг[],ROW()-ROW(РазликиЗаМаркетинг[[#Headers],[Мар]]),1),INDEX(ПланираниЗаМаркетинг[],,1),0),MATCH(РазликиЗаМаркетинг[[#Headers],[Мар]],ПланираниЗаМаркетинг[#Headers],0))-INDEX(ДействителниЗаМаркетинг[],MATCH(INDEX(РазликиЗаМаркетинг[],ROW()-ROW(РазликиЗаМаркетинг[[#Headers],[Мар]]),1),INDEX(ПланираниЗаМаркетинг[],,1),0),MATCH(РазликиЗаМаркетинг[[#Headers],[Мар]],ДействителниЗаМаркетинг[#Headers],0))","v":{"v":100,"d":"100.00 лв."}},{"$f":"INDEX(ПланираниЗаМаркетинг[],MATCH(INDEX(РазликиЗаМаркетинг[],ROW()-ROW(РазликиЗаМаркетинг[[#Headers],[Апр]]),1),INDEX(ПланираниЗаМаркетинг[],,1),0),MATCH(РазликиЗаМаркетинг[[#Headers],[Апр]],ПланираниЗаМаркетинг[#Headers],0))-INDEX(ДействителниЗаМаркетинг[],MATCH(INDEX(РазликиЗаМаркетинг[],ROW()-ROW(РазликиЗаМаркетинг[[#Headers],[Апр]]),1),INDEX(ПланираниЗаМаркетинг[],,1),0),MATCH(РазликиЗаМаркетинг[[#Headers],[Апр]],ДействителниЗаМаркетинг[#Headers],0))","v":{"v":100,"d":"100.00 лв."}},{"$f":"INDEX(ПланираниЗаМаркетинг[],MATCH(INDEX(РазликиЗаМаркетинг[],ROW()-ROW(РазликиЗаМаркетинг[[#Headers],[Май]]),1),INDEX(ПланираниЗаМаркетинг[],,1),0),MATCH(РазликиЗаМаркетинг[[#Headers],[Май]],ПланираниЗаМаркетинг[#Headers],0))-INDEX(ДействителниЗаМаркетинг[],MATCH(INDEX(РазликиЗаМаркетинг[],ROW()-ROW(РазликиЗаМаркетинг[[#Headers],[Май]]),1),INDEX(ПланираниЗаМаркетинг[],,1),0),MATCH(РазликиЗаМаркетинг[[#Headers],[Май]],ДействителниЗаМаркетинг[#Headers],0))","v":{"v":-400,"d":"-400.00 лв."}},{"$f":"INDEX(ПланираниЗаМаркетинг[],MATCH(INDEX(РазликиЗаМаркетинг[],ROW()-ROW(РазликиЗаМаркетинг[[#Headers],[Юни]]),1),INDEX(ПланираниЗаМаркетинг[],,1),0),MATCH(РазликиЗаМаркетинг[[#Headers],[Юни]],ПланираниЗаМаркетинг[#Headers],0))-INDEX(ДействителниЗаМаркетинг[],MATCH(INDEX(РазликиЗаМаркетинг[],ROW()-ROW(РазликиЗаМаркетинг[[#Headers],[Юни]]),1),INDEX(ПланираниЗаМаркетинг[],,1),0),MATCH(РазликиЗаМаркетинг[[#Headers],[Юни]],ДействителниЗаМаркетинг[#Headers],0))","v":{"v":20,"d":"20.00 лв."}},{"$f":"INDEX(ПланираниЗаМаркетинг[],MATCH(INDEX(РазликиЗаМаркетинг[],ROW()-ROW(РазликиЗаМаркетинг[[#Headers],[Юли]]),1),INDEX(ПланираниЗаМаркетинг[],,1),0),MATCH(РазликиЗаМаркетинг[[#Headers],[Юли]],ПланираниЗаМаркетинг[#Headers],0))-INDEX(ДействителниЗаМаркетинг[],MATCH(INDEX(РазликиЗаМаркетинг[],ROW()-ROW(РазликиЗаМаркетинг[[#Headers],[Юли]]),1),INDEX(ПланираниЗаМаркетинг[],,1),0),MATCH(РазликиЗаМаркетинг[[#Headers],[Юли]],ДействителниЗаМаркетинг[#Headers],0))","v":{"v":200,"d":"200.00 лв."}},{"$f":"INDEX(ПланираниЗаМаркетинг[],MATCH(INDEX(РазликиЗаМаркетинг[],ROW()-ROW(РазликиЗаМаркетинг[[#Headers],[Авг]]),1),INDEX(ПланираниЗаМаркетинг[],,1),0),MATCH(РазликиЗаМаркетинг[[#Headers],[Авг]],ПланираниЗаМаркетинг[#Headers],0))-INDEX(ДействителниЗаМаркетинг[],MATCH(INDEX(РазликиЗаМаркетинг[],ROW()-ROW(РазликиЗаМаркетинг[[#Headers],[Авг]]),1),INDEX(ПланираниЗаМаркетинг[],,1),0),MATCH(РазликиЗаМаркетинг[[#Headers],[Авг]],ДействителниЗаМаркетинг[#Headers],0))","v":{"v":200,"d":"200.00 лв."}},{"$f":"INDEX(ПланираниЗаМаркетинг[],MATCH(INDEX(РазликиЗаМаркетинг[],ROW()-ROW(РазликиЗаМаркетинг[[#Headers],[Сеп]]),1),INDEX(ПланираниЗаМаркетинг[],,1),0),MATCH(РазликиЗаМаркетинг[[#Headers],[Сеп]],ПланираниЗаМаркетинг[#Headers],0))-INDEX(ДействителниЗаМаркетинг[],MATCH(INDEX(РазликиЗаМаркетинг[],ROW()-ROW(РазликиЗаМаркетинг[[#Headers],[Сеп]]),1),INDEX(ПланираниЗаМаркетинг[],,1),0),MATCH(РазликиЗаМаркетинг[[#Headers],[Сеп]],ДействителниЗаМаркетинг[#Headers],0))","v":{"v":200,"d":"200.00 лв."}},{"$f":"INDEX(ПланираниЗаМаркетинг[],MATCH(INDEX(РазликиЗаМаркетинг[],ROW()-ROW(РазликиЗаМаркетинг[[#Headers],[Окт]]),1),INDEX(ПланираниЗаМаркетинг[],,1),0),MATCH(РазликиЗаМаркетинг[[#Headers],[Окт]],ПланираниЗаМаркетинг[#Headers],0))-INDEX(ДействителниЗаМаркетинг[],MATCH(INDEX(РазликиЗаМаркетинг[],ROW()-ROW(РазликиЗаМаркетинг[[#Headers],[Окт]]),1),INDEX(ПланираниЗаМаркетинг[],,1),0),MATCH(РазликиЗаМаркетинг[[#Headers],[Окт]],ДействителниЗаМаркетинг[#Headers],0))","v":{"v":200,"d":"200.00 лв."}},{"$f":"INDEX(ПланираниЗаМаркетинг[],MATCH(INDEX(РазликиЗаМаркетинг[],ROW()-ROW(РазликиЗаМаркетинг[[#Headers],[Ное]]),1),INDEX(ПланираниЗаМаркетинг[],,1),0),MATCH(РазликиЗаМаркетинг[[#Headers],[Ное]],ПланираниЗаМаркетинг[#Headers],0))-INDEX(ДействителниЗаМаркетинг[],MATCH(INDEX(РазликиЗаМаркетинг[],ROW()-ROW(РазликиЗаМаркетинг[[#Headers],[Ное]]),1),INDEX(ПланираниЗаМаркетинг[],,1),0),MATCH(РазликиЗаМаркетинг[[#Headers],[Ное]],ДействителниЗаМаркетинг[#Headers],0))","v":{"v":200,"d":"200.00 лв."}},{"$f":"INDEX(ПланираниЗаМаркетинг[],MATCH(INDEX(РазликиЗаМаркетинг[],ROW()-ROW(РазликиЗаМаркетинг[[#Headers],[Дек]]),1),INDEX(ПланираниЗаМаркетинг[],,1),0),MATCH(РазликиЗаМаркетинг[[#Headers],[Дек]],ПланираниЗаМаркетинг[#Headers],0))-INDEX(ДействителниЗаМаркетинг[],MATCH(INDEX(РазликиЗаМаркетинг[],ROW()-ROW(РазликиЗаМаркетинг[[#Headers],[Дек]]),1),INDEX(ПланираниЗаМаркетинг[],,1),0),MATCH(РазликиЗаМаркетинг[[#Headers],[Дек]],ДействителниЗаМаркетинг[#Headers],0))","v":{"v":200,"d":"200.00 лв."}},{"$f":"SUM(РазликиЗаМаркетинг[[#This Row],[Янр]:[Дек]])","v":{"v":820,"d":"820.00 лв."}}]
[null,"Маркетингови събития",{"$f":"INDEX(ПланираниЗаМаркетинг[],MATCH(INDEX(РазликиЗаМаркетинг[],ROW()-ROW(РазликиЗаМаркетинг[[#Headers],[Янр]]),1),INDEX(ПланираниЗаМаркетинг[],,1),0),MATCH(РазликиЗаМаркетинг[[#Headers],[Янр]],ПланираниЗаМаркетинг[#Headers],0))-INDEX(ДействителниЗаМаркетинг[],MATCH(INDEX(РазликиЗаМаркетинг[],ROW()-ROW(РазликиЗаМаркетинг[[#Headers],[Янр]]),1),INDEX(ПланираниЗаМаркетинг[],,1),0),MATCH(РазликиЗаМаркетинг[[#Headers],[Янр]],ДействителниЗаМаркетинг[#Headers],0))","v":{"v":200,"d":"200.00 лв."}},{"$f":"INDEX(ПланираниЗаМаркетинг[],MATCH(INDEX(РазликиЗаМаркетинг[],ROW()-ROW(РазликиЗаМаркетинг[[#Headers],[Фев]]),1),INDEX(ПланираниЗаМаркетинг[],,1),0),MATCH(РазликиЗаМаркетинг[[#Headers],[Фев]],ПланираниЗаМаркетинг[#Headers],0))-INDEX(ДействителниЗаМаркетинг[],MATCH(INDEX(РазликиЗаМаркетинг[],ROW()-ROW(РазликиЗаМаркетинг[[#Headers],[Фев]]),1),INDEX(ПланираниЗаМаркетинг[],,1),0),MATCH(РазликиЗаМаркетинг[[#Headers],[Фев]],ДействителниЗаМаркетинг[#Headers],0))","v":{"v":-200,"d":"-200.00 лв."}},{"$f":"INDEX(ПланираниЗаМаркетинг[],MATCH(INDEX(РазликиЗаМаркетинг[],ROW()-ROW(РазликиЗаМаркетинг[[#Headers],[Мар]]),1),INDEX(ПланираниЗаМаркетинг[],,1),0),MATCH(РазликиЗаМаркетинг[[#Headers],[Мар]],ПланираниЗаМаркетинг[#Headers],0))-INDEX(ДействителниЗаМаркетинг[],MATCH(INDEX(РазликиЗаМаркетинг[],ROW()-ROW(РазликиЗаМаркетинг[[#Headers],[Мар]]),1),INDEX(ПланираниЗаМаркетинг[],,1),0),MATCH(РазликиЗаМаркетинг[[#Headers],[Мар]],ДействителниЗаМаркетинг[#Headers],0))","v":{"v":-200,"d":"-200.00 лв."}},{"$f":"INDEX(ПланираниЗаМаркетинг[],MATCH(INDEX(РазликиЗаМаркетинг[],ROW()-ROW(РазликиЗаМаркетинг[[#Headers],[Апр]]),1),INDEX(ПланираниЗаМаркетинг[],,1),0),MATCH(РазликиЗаМаркетинг[[#Headers],[Апр]],ПланираниЗаМаркетинг[#Headers],0))-INDEX(ДействителниЗаМаркетинг[],MATCH(INDEX(РазликиЗаМаркетинг[],ROW()-ROW(РазликиЗаМаркетинг[[#Headers],[Апр]]),1),INDEX(ПланираниЗаМаркетинг[],,1),0),MATCH(РазликиЗаМаркетинг[[#Headers],[Апр]],ДействителниЗаМаркетинг[#Headers],0))","v":{"v":300,"d":"300.00 лв."}},{"$f":"INDEX(ПланираниЗаМаркетинг[],MATCH(INDEX(РазликиЗаМаркетинг[],ROW()-ROW(РазликиЗаМаркетинг[[#Headers],[Май]]),1),INDEX(ПланираниЗаМаркетинг[],,1),0),MATCH(РазликиЗаМаркетинг[[#Headers],[Май]],ПланираниЗаМаркетинг[#Headers],0))-INDEX(ДействителниЗаМаркетинг[],MATCH(INDEX(РазликиЗаМаркетинг[],ROW()-ROW(РазликиЗаМаркетинг[[#Headers],[Май]]),1),INDEX(ПланираниЗаМаркетинг[],,1),0),MATCH(РазликиЗаМаркетинг[[#Headers],[Май]],ДействителниЗаМаркетинг[#Headers],0))","v":{"v":500,"d":"500.00 лв."}},{"$f":"INDEX(ПланираниЗаМаркетинг[],MATCH(INDEX(РазликиЗаМаркетинг[],ROW()-ROW(РазликиЗаМаркетинг[[#Headers],[Юни]]),1),INDEX(ПланираниЗаМаркетинг[],,1),0),MATCH(РазликиЗаМаркетинг[[#Headers],[Юни]],ПланираниЗаМаркетинг[#Headers],0))-INDEX(ДействителниЗаМаркетинг[],MATCH(INDEX(РазликиЗаМаркетинг[],ROW()-ROW(РазликиЗаМаркетинг[[#Headers],[Юни]]),1),INDEX(ПланираниЗаМаркетинг[],,1),0),MATCH(РазликиЗаМаркетинг[[#Headers],[Юни]],ДействителниЗаМаркетинг[#Headers],0))","v":{"v":-300,"d":"-300.00 лв."}},{"$f":"INDEX(ПланираниЗаМаркетинг[],MATCH(INDEX(РазликиЗаМаркетинг[],ROW()-ROW(РазликиЗаМаркетинг[[#Headers],[Юли]]),1),INDEX(ПланираниЗаМаркетинг[],,1),0),MATCH(РазликиЗаМаркетинг[[#Headers],[Юли]],ПланираниЗаМаркетинг[#Headers],0))-INDEX(ДействителниЗаМаркетинг[],MATCH(INDEX(РазликиЗаМаркетинг[],ROW()-ROW(РазликиЗаМаркетинг[[#Headers],[Юли]]),1),INDEX(ПланираниЗаМаркетинг[],,1),0),MATCH(РазликиЗаМаркетинг[[#Headers],[Юли]],ДействителниЗаМаркетинг[#Headers],0))","v":{"v":2000,"d":"2,000.00 лв."}},{"$f":"INDEX(ПланираниЗаМаркетинг[],MATCH(INDEX(РазликиЗаМаркетинг[],ROW()-ROW(РазликиЗаМаркетинг[[#Headers],[Авг]]),1),INDEX(ПланираниЗаМаркетинг[],,1),0),MATCH(РазликиЗаМаркетинг[[#Headers],[Авг]],ПланираниЗаМаркетинг[#Headers],0))-INDEX(ДействителниЗаМаркетинг[],MATCH(INDEX(РазликиЗаМаркетинг[],ROW()-ROW(РазликиЗаМаркетинг[[#Headers],[Авг]]),1),INDEX(ПланираниЗаМаркетинг[],,1),0),MATCH(РазликиЗаМаркетинг[[#Headers],[Авг]],ДействителниЗаМаркетинг[#Headers],0))","v":{"v":5000,"d":"5,000.00 лв."}},{"$f":"INDEX(ПланираниЗаМаркетинг[],MATCH(INDEX(РазликиЗаМаркетинг[],ROW()-ROW(РазликиЗаМаркетинг[[#Headers],[Сеп]]),1),INDEX(ПланираниЗаМаркетинг[],,1),0),MATCH(РазликиЗаМаркетинг[[#Headers],[Сеп]],ПланираниЗаМаркетинг[#Headers],0))-INDEX(ДействителниЗаМаркетинг[],MATCH(INDEX(РазликиЗаМаркетинг[],ROW()-ROW(РазликиЗаМаркетинг[[#Headers],[Сеп]]),1),INDEX(ПланираниЗаМаркетинг[],,1),0),MATCH(РазликиЗаМаркетинг[[#Headers],[Сеп]],ДействителниЗаМаркетинг[#Headers],0))","v":{"v":2000,"d":"2,000.00 лв."}},{"$f":"INDEX(ПланираниЗаМаркетинг[],MATCH(INDEX(РазликиЗаМаркетинг[],ROW()-ROW(РазликиЗаМаркетинг[[#Headers],[Окт]]),1),INDEX(ПланираниЗаМаркетинг[],,1),0),MATCH(РазликиЗаМаркетинг[[#Headers],[Окт]],ПланираниЗаМаркетинг[#Headers],0))-INDEX(ДействителниЗаМаркетинг[],MATCH(INDEX(РазликиЗаМаркетинг[],ROW()-ROW(РазликиЗаМаркетинг[[#Headers],[Окт]]),1),INDEX(ПланираниЗаМаркетинг[],,1),0),MATCH(РазликиЗаМаркетинг[[#Headers],[Окт]],ДействителниЗаМаркетинг[#Headers],0))","v":{"v":2000,"d":"2,000.00 лв."}},{"$f":"INDEX(ПланираниЗаМаркетинг[],MATCH(INDEX(РазликиЗаМаркетинг[],ROW()-ROW(РазликиЗаМаркетинг[[#Headers],[Ное]]),1),INDEX(ПланираниЗаМаркетинг[],,1),0),MATCH(РазликиЗаМаркетинг[[#Headers],[Ное]],ПланираниЗаМаркетинг[#Headers],0))-INDEX(ДействителниЗаМаркетинг[],MATCH(INDEX(РазликиЗаМаркетинг[],ROW()-ROW(РазликиЗаМаркетинг[[#Headers],[Ное]]),1),INDEX(ПланираниЗаМаркетинг[],,1),0),MATCH(РазликиЗаМаркетинг[[#Headers],[Ное]],ДействителниЗаМаркетинг[#Headers],0))","v":{"v":2000,"d":"2,000.00 лв."}},{"$f":"INDEX(ПланираниЗаМаркетинг[],MATCH(INDEX(РазликиЗаМаркетинг[],ROW()-ROW(РазликиЗаМаркетинг[[#Headers],[Дек]]),1),INDEX(ПланираниЗаМаркетинг[],,1),0),MATCH(РазликиЗаМаркетинг[[#Headers],[Дек]],ПланираниЗаМаркетинг[#Headers],0))-INDEX(ДействителниЗаМаркетинг[],MATCH(INDEX(РазликиЗаМаркетинг[],ROW()-ROW(РазликиЗаМаркетинг[[#Headers],[Дек]]),1),INDEX(ПланираниЗаМаркетинг[],,1),0),MATCH(РазликиЗаМаркетинг[[#Headers],[Дек]],ДействителниЗаМаркетинг[#Headers],0))","v":{"v":5000,"d":"5,000.00 лв."}},{"$f":"SUM(РазликиЗаМаркетинг[[#This Row],[Янр]:[Дек]])","v":{"v":18300,"d":"18,300.00 лв."}}]
[null,"Разни разходи",{"$f":"INDEX(ПланираниЗаМаркетинг[],MATCH(INDEX(РазликиЗаМаркетинг[],ROW()-ROW(РазликиЗаМаркетинг[[#Headers],[Янр]]),1),INDEX(ПланираниЗаМаркетинг[],,1),0),MATCH(РазликиЗаМаркетинг[[#Headers],[Янр]],ПланираниЗаМаркетинг[#Headers],0))-INDEX(ДействителниЗаМаркетинг[],MATCH(INDEX(РазликиЗаМаркетинг[],ROW()-ROW(РазликиЗаМаркетинг[[#Headers],[Янр]]),1),INDEX(ПланираниЗаМаркетинг[],,1),0),MATCH(РазликиЗаМаркетинг[[#Headers],[Янр]],ДействителниЗаМаркетинг[#Headers],0))","v":{"v":55,"d":"55.00 лв."}},{"$f":"INDEX(ПланираниЗаМаркетинг[],MATCH(INDEX(РазликиЗаМаркетинг[],ROW()-ROW(РазликиЗаМаркетинг[[#Headers],[Фев]]),1),INDEX(ПланираниЗаМаркетинг[],,1),0),MATCH(РазликиЗаМаркетинг[[#Headers],[Фев]],ПланираниЗаМаркетинг[#Headers],0))-INDEX(ДействителниЗаМаркетинг[],MATCH(INDEX(РазликиЗаМаркетинг[],ROW()-ROW(РазликиЗаМаркетинг[[#Headers],[Фев]]),1),INDEX(ПланираниЗаМаркетинг[],,1),0),MATCH(РазликиЗаМаркетинг[[#Headers],[Фев]],ДействителниЗаМаркетинг[#Headers],0))","v":{"v":44,"d":"44.00 лв."}},{"$f":"INDEX(ПланираниЗаМаркетинг[],MATCH(INDEX(РазликиЗаМаркетинг[],ROW()-ROW(РазликиЗаМаркетинг[[#Headers],[Мар]]),1),INDEX(ПланираниЗаМаркетинг[],,1),0),MATCH(РазликиЗаМаркетинг[[#Headers],[Мар]],ПланираниЗаМаркетинг[#Headers],0))-INDEX(ДействителниЗаМаркетинг[],MATCH(INDEX(РазликиЗаМаркетинг[],ROW()-ROW(РазликиЗаМаркетинг[[#Headers],[Мар]]),1),INDEX(ПланираниЗаМаркетинг[],,1),0),MATCH(РазликиЗаМаркетинг[[#Headers],[Мар]],ДействителниЗаМаркетинг[#Headers],0))","v":{"v":77,"d":"77.00 лв."}},{"$f":"INDEX(ПланираниЗаМаркетинг[],MATCH(INDEX(РазликиЗаМаркетинг[],ROW()-ROW(РазликиЗаМаркетинг[[#Headers],[Апр]]),1),INDEX(ПланираниЗаМаркетинг[],,1),0),MATCH(РазликиЗаМаркетинг[[#Headers],[Апр]],ПланираниЗаМаркетинг[#Headers],0))-INDEX(ДействителниЗаМаркетинг[],MATCH(INDEX(РазликиЗаМаркетинг[],ROW()-ROW(РазликиЗаМаркетинг[[#Headers],[Апр]]),1),INDEX(ПланираниЗаМаркетинг[],,1),0),MATCH(РазликиЗаМаркетинг[[#Headers],[Апр]],ДействителниЗаМаркетинг[#Headers],0))","v":{"v":-23,"d":"-23.00 лв."}},{"$f":"INDEX(ПланираниЗаМаркетинг[],MATCH(INDEX(РазликиЗаМаркетинг[],ROW()-ROW(РазликиЗаМаркетинг[[#Headers],[Май]]),1),INDEX(ПланираниЗаМаркетинг[],,1),0),MATCH(РазликиЗаМаркетинг[[#Headers],[Май]],ПланираниЗаМаркетинг[#Headers],0))-INDEX(ДействителниЗаМаркетинг[],MATCH(INDEX(РазликиЗаМаркетинг[],ROW()-ROW(РазликиЗаМаркетинг[[#Headers],[Май]]),1),INDEX(ПланираниЗаМаркетинг[],,1),0),MATCH(РазликиЗаМаркетинг[[#Headers],[Май]],ДействителниЗаМаркетинг[#Headers],0))","v":{"v":13,"d":"13.00 лв."}},{"$f":"INDEX(ПланираниЗаМаркетинг[],MATCH(INDEX(РазликиЗаМаркетинг[],ROW()-ROW(РазликиЗаМаркетинг[[#Headers],[Юни]]),1),INDEX(ПланираниЗаМаркетинг[],,1),0),MATCH(РазликиЗаМаркетинг[[#Headers],[Юни]],ПланираниЗаМаркетинг[#Headers],0))-INDEX(ДействителниЗаМаркетинг[],MATCH(INDEX(РазликиЗаМаркетинг[],ROW()-ROW(РазликиЗаМаркетинг[[#Headers],[Юни]]),1),INDEX(ПланираниЗаМаркетинг[],,1),0),MATCH(РазликиЗаМаркетинг[[#Headers],[Юни]],ДействителниЗаМаркетинг[#Headers],0))","v":{"v":-45,"d":"-45.00 лв."}},{"$f":"INDEX(ПланираниЗаМаркетинг[],MATCH(INDEX(РазликиЗаМаркетинг[],ROW()-ROW(РазликиЗаМаркетинг[[#Headers],[Юли]]),1),INDEX(ПланираниЗаМаркетинг[],,1),0),MATCH(РазликиЗаМаркетинг[[#Headers],[Юли]],ПланираниЗаМаркетинг[#Headers],0))-INDEX(ДействителниЗаМаркетинг[],MATCH(INDEX(РазликиЗаМаркетинг[],ROW()-ROW(РазликиЗаМаркетинг[[#Headers],[Юли]]),1),INDEX(ПланираниЗаМаркетинг[],,1),0),MATCH(РазликиЗаМаркетинг[[#Headers],[Юли]],ДействителниЗаМаркетинг[#Headers],0))","v":{"v":200,"d":"200.00 лв."}},{"$f":"INDEX(ПланираниЗаМаркетинг[],MATCH(INDEX(РазликиЗаМаркетинг[],ROW()-ROW(РазликиЗаМаркетинг[[#Headers],[Авг]]),1),INDEX(ПланираниЗаМаркетинг[],,1),0),MATCH(РазликиЗаМаркетинг[[#Headers],[Авг]],ПланираниЗаМаркетинг[#Headers],0))-INDEX(ДействителниЗаМаркетинг[],MATCH(INDEX(РазликиЗаМаркетинг[],ROW()-ROW(РазликиЗаМаркетинг[[#Headers],[Авг]]),1),INDEX(ПланираниЗаМаркетинг[],,1),0),MATCH(РазликиЗаМаркетинг[[#Headers],[Авг]],ДействителниЗаМаркетинг[#Headers],0))","v":{"v":200,"d":"200.00 лв."}},{"$f":"INDEX(ПланираниЗаМаркетинг[],MATCH(INDEX(РазликиЗаМаркетинг[],ROW()-ROW(РазликиЗаМаркетинг[[#Headers],[Сеп]]),1),INDEX(ПланираниЗаМаркетинг[],,1),0),MATCH(РазликиЗаМаркетинг[[#Headers],[Сеп]],ПланираниЗаМаркетинг[#Headers],0))-INDEX(ДействителниЗаМаркетинг[],MATCH(INDEX(РазликиЗаМаркетинг[],ROW()-ROW(РазликиЗаМаркетинг[[#Headers],[Сеп]]),1),INDEX(ПланираниЗаМаркетинг[],,1),0),MATCH(РазликиЗаМаркетинг[[#Headers],[Сеп]],ДействителниЗаМаркетинг[#Headers],0))","v":{"v":200,"d":"200.00 лв."}},{"$f":"INDEX(ПланираниЗаМаркетинг[],MATCH(INDEX(РазликиЗаМаркетинг[],ROW()-ROW(РазликиЗаМаркетинг[[#Headers],[Окт]]),1),INDEX(ПланираниЗаМаркетинг[],,1),0),MATCH(РазликиЗаМаркетинг[[#Headers],[Окт]],ПланираниЗаМаркетинг[#Headers],0))-INDEX(ДействителниЗаМаркетинг[],MATCH(INDEX(РазликиЗаМаркетинг[],ROW()-ROW(РазликиЗаМаркетинг[[#Headers],[Окт]]),1),INDEX(ПланираниЗаМаркетинг[],,1),0),MATCH(РазликиЗаМаркетинг[[#Headers],[Окт]],ДействителниЗаМаркетинг[#Headers],0))","v":{"v":200,"d":"200.00 лв."}},{"$f":"INDEX(ПланираниЗаМаркетинг[],MATCH(INDEX(РазликиЗаМаркетинг[],ROW()-ROW(РазликиЗаМаркетинг[[#Headers],[Ное]]),1),INDEX(ПланираниЗаМаркетинг[],,1),0),MATCH(РазликиЗаМаркетинг[[#Headers],[Ное]],ПланираниЗаМаркетинг[#Headers],0))-INDEX(ДействителниЗаМаркетинг[],MATCH(INDEX(РазликиЗаМаркетинг[],ROW()-ROW(РазликиЗаМаркетинг[[#Headers],[Ное]]),1),INDEX(ПланираниЗаМаркетинг[],,1),0),MATCH(РазликиЗаМаркетинг[[#Headers],[Ное]],ДействителниЗаМаркетинг[#Headers],0))","v":{"v":200,"d":"200.00 лв."}},{"$f":"INDEX(ПланираниЗаМаркетинг[],MATCH(INDEX(РазликиЗаМаркетинг[],ROW()-ROW(РазликиЗаМаркетинг[[#Headers],[Дек]]),1),INDEX(ПланираниЗаМаркетинг[],,1),0),MATCH(РазликиЗаМаркетинг[[#Headers],[Дек]],ПланираниЗаМаркетинг[#Headers],0))-INDEX(ДействителниЗаМаркетинг[],MATCH(INDEX(РазликиЗаМаркетинг[],ROW()-ROW(РазликиЗаМаркетинг[[#Headers],[Дек]]),1),INDEX(ПланираниЗаМаркетинг[],,1),0),MATCH(РазликиЗаМаркетинг[[#Headers],[Дек]],ДействителниЗаМаркетинг[#Headers],0))","v":{"v":200,"d":"200.00 лв."}},{"$f":"SUM(РазликиЗаМаркетинг[[#This Row],[Янр]:[Дек]])","v":{"v":1321,"d":"1,321.00 лв."}}]
[null,"Междинна сума",{"$f":"SUBTOTAL(109,РазликиЗаМаркетинг[Янр])","v":{"v":555,"d":"555.00 лв."}},{"$f":"SUBTOTAL(109,РазликиЗаМаркетинг[Фев])","v":{"v":-456,"d":"-456.00 лв."}},{"$f":"SUBTOTAL(109,РазликиЗаМаркетинг[Мар])","v":{"v":-23,"d":"-23.00 лв."}},{"$f":"SUBTOTAL(109,РазликиЗаМаркетинг[Апр])","v":{"v":-123,"d":"-123.00 лв."}},{"$f":"SUBTOTAL(109,РазликиЗаМаркетинг[Май])","v":{"v":113,"d":"113.00 лв."}},{"$f":"SUBTOTAL(109,РазликиЗаМаркетинг[Юни])","v":{"v":-825,"d":"-825.00 лв."}},{"$f":"SUBTOTAL(109,РазликиЗаМаркетинг[Юли])","v":{"v":8100,"d":"8,100.00 лв."}},{"$f":"SUBTOTAL(109,РазликиЗаМаркетинг[Авг])","v":{"v":6100,"d":"6,100.00 лв."}},{"$f":"SUBTOTAL(109,РазликиЗаМаркетинг[Сеп])","v":{"v":3100,"d":"3,100.00 лв."}},{"$f":"SUBTOTAL(109,РазликиЗаМаркетинг[Окт])","v":{"v":8100,"d":"8,100.00 лв."}},{"$f":"SUBTOTAL(109,РазликиЗаМаркетинг[Ное])","v":{"v":3100,"d":"3,100.00 лв."}},{"$f":"SUBTOTAL(109,РазликиЗаМаркетинг[Дек])","v":{"v":6900,"d":"6,900.00 лв."}},{"$f":"SUBTOTAL(109,РазликиЗаМаркетинг[ГОДИНА])","v":{"v":34641,"d":"34,641.00 лв."}}]
[]
["Разликата в разходите за обучения или пътувания се изчислява автоматично в таблицата \"Разлики за обучения ип ътувания\", започваща от клетката вдясно. Следващата инструкция е в клетка A35.","Обучения/пътувания","Янр","Фев","Мар","Апр","Май","Юни","Юли","Авг","Сеп","Окт","Ное","Дек","ГОДИНА"]
[null,"Курсове за обучение",{"$f":"INDEX(ПланираниЗаОбученияИПътувания[],MATCH(INDEX(РазликиЗаОбученияИПътувания[],ROW()-ROW(РазликиЗаОбученияИПътувания[[#Headers],[Янр]]),1),INDEX(ПланираниЗаОбученияИПътувания[],,1),0),MATCH(РазликиЗаОбученияИПътувания[[#Headers],[Янр]],ПланираниЗаОбученияИПътувания[#Headers],0))-INDEX(ДействителниЗаОбученияИПътувания[],MATCH(INDEX(РазликиЗаОбученияИПътувания[],ROW()-ROW(РазликиЗаОбученияИПътувания[[#Headers],[Янр]]),1),INDEX(ПланираниЗаОбученияИПътувания[],,1),0),MATCH(РазликиЗаОбученияИПътувания[[#Headers],[Янр]],ДействителниЗаОбученияИПътувания[#Headers],0))","v":{"v":400,"d":"400.00 лв."}},{"$f":"INDEX(ПланираниЗаОбученияИПътувания[],MATCH(INDEX(РазликиЗаОбученияИПътувания[],ROW()-ROW(РазликиЗаОбученияИПътувания[[#Headers],[Фев]]),1),INDEX(ПланираниЗаОбученияИПътувания[],,1),0),MATCH(РазликиЗаОбученияИПътувания[[#Headers],[Фев]],ПланираниЗаОбученияИПътувания[#Headers],0))-INDEX(ДействителниЗаОбученияИПътувания[],MATCH(INDEX(РазликиЗаОбученияИПътувания[],ROW()-ROW(РазликиЗаОбученияИПътувания[[#Headers],[Фев]]),1),INDEX(ПланираниЗаОбученияИПътувания[],,1),0),MATCH(РазликиЗаОбученияИПътувания[[#Headers],[Фев]],ДействителниЗаОбученияИПътувания[#Headers],0))","v":{"v":-400,"d":"-400.00 лв."}},{"$f":"INDEX(ПланираниЗаОбученияИПътувания[],MATCH(INDEX(РазликиЗаОбученияИПътувания[],ROW()-ROW(РазликиЗаОбученияИПътувания[[#Headers],[Мар]]),1),INDEX(ПланираниЗаОбученияИПътувания[],,1),0),MATCH(РазликиЗаОбученияИПътувания[[#Headers],[Мар]],ПланираниЗаОбученияИПътувания[#Headers],0))-INDEX(ДействителниЗаОбученияИПътувания[],MATCH(INDEX(РазликиЗаОбученияИПътувания[],ROW()-ROW(РазликиЗаОбученияИПътувания[[#Headers],[Мар]]),1),INDEX(ПланираниЗаОбученияИПътувания[],,1),0),MATCH(РазликиЗаОбученияИПътувания[[#Headers],[Мар]],ДействителниЗаОбученияИПътувания[#Headers],0))","v":{"v":600,"d":"600.00 лв."}},{"$f":"INDEX(ПланираниЗаОбученияИПътувания[],MATCH(INDEX(РазликиЗаОбученияИПътувания[],ROW()-ROW(РазликиЗаОбученияИПътувания[[#Headers],[Апр]]),1),INDEX(ПланираниЗаОбученияИПътувания[],,1),0),MATCH(РазликиЗаОбученияИПътувания[[#Headers],[Апр]],ПланираниЗаОбученияИПътувания[#Headers],0))-INDEX(ДействителниЗаОбученияИПътувания[],MATCH(INDEX(РазликиЗаОбученияИПътувания[],ROW()-ROW(РазликиЗаОбученияИПътувания[[#Headers],[Апр]]),1),INDEX(ПланираниЗаОбученияИПътувания[],,1),0),MATCH(РазликиЗаОбученияИПътувания[[#Headers],[Апр]],ДействителниЗаОбученияИПътувания[#Headers],0))","v":{"v":400,"d":"400.00 лв."}},{"$f":"INDEX(ПланираниЗаОбученияИПътувания[],MATCH(INDEX(РазликиЗаОбученияИПътувания[],ROW()-ROW(РазликиЗаОбученияИПътувания[[#Headers],[Май]]),1),INDEX(ПланираниЗаОбученияИПътувания[],,1),0),MATCH(РазликиЗаОбученияИПътувания[[#Headers],[Май]],ПланираниЗаОбученияИПътувания[#Headers],0))-INDEX(ДействителниЗаОбученияИПътувания[],MATCH(INDEX(РазликиЗаОбученияИПътувания[],ROW()-ROW(РазликиЗаОбученияИПътувания[[#Headers],[Май]]),1),INDEX(ПланираниЗаОбученияИПътувания[],,1),0),MATCH(РазликиЗаОбученияИПътувания[[#Headers],[Май]],ДействителниЗаОбученияИПътувания[#Headers],0))","v":{"v":800,"d":"800.00 лв."}},{"$f":"INDEX(ПланираниЗаОбученияИПътувания[],MATCH(INDEX(РазликиЗаОбученияИПътувания[],ROW()-ROW(РазликиЗаОбученияИПътувания[[#Headers],[Юни]]),1),INDEX(ПланираниЗаОбученияИПътувания[],,1),0),MATCH(РазликиЗаОбученияИПътувания[[#Headers],[Юни]],ПланираниЗаОбученияИПътувания[#Headers],0))-INDEX(ДействителниЗаОбученияИПътувания[],MATCH(INDEX(РазликиЗаОбученияИПътувания[],ROW()-ROW(РазликиЗаОбученияИПътувания[[#Headers],[Юни]]),1),INDEX(ПланираниЗаОбученияИПътувания[],,1),0),MATCH(РазликиЗаОбученияИПътувания[[#Headers],[Юни]],ДействителниЗаОбученияИПътувания[#Headers],0))","v":{"v":-800,"d":"-800.00 лв."}},{"$f":"INDEX(ПланираниЗаОбученияИПътувания[],MATCH(INDEX(РазликиЗаОбученияИПътувания[],ROW()-ROW(РазликиЗаОбученияИПътувания[[#Headers],[Юли]]),1),INDEX(ПланираниЗаОбученияИПътувания[],,1),0),MATCH(РазликиЗаОбученияИПътувания[[#Headers],[Юли]],ПланираниЗаОбученияИПътувания[#Headers],0))-INDEX(ДействителниЗаОбученияИПътувания[],MATCH(INDEX(РазликиЗаОбученияИПътувания[],ROW()-ROW(РазликиЗаОбученияИПътувания[[#Headers],[Юли]]),1),INDEX(ПланираниЗаОбученияИПътувания[],,1),0),MATCH(РазликиЗаОбученияИПътувания[[#Headers],[Юли]],ДействителниЗаОбученияИПътувания[#Headers],0))","v":{"v":2000,"d":"2,000.00 лв."}},{"$f":"INDEX(ПланираниЗаОбученияИПътувания[],MATCH(INDEX(РазликиЗаОбученияИПътувания[],ROW()-ROW(РазликиЗаОбученияИПътувания[[#Headers],[Авг]]),1),INDEX(ПланираниЗаОбученияИПътувания[],,1),0),MATCH(РазликиЗаОбученияИПътувания[[#Headers],[Авг]],ПланираниЗаОбученияИПътувания[#Headers],0))-INDEX(ДействителниЗаОбученияИПътувания[],MATCH(INDEX(РазликиЗаОбученияИПътувания[],ROW()-ROW(РазликиЗаОбученияИПътувания[[#Headers],[Авг]]),1),INDEX(ПланираниЗаОбученияИПътувания[],,1),0),MATCH(РазликиЗаОбученияИПътувания[[#Headers],[Авг]],ДействителниЗаОбученияИПътувания[#Headers],0))","v":{"v":2000,"d":"2,000.00 лв."}},{"$f":"INDEX(ПланираниЗаОбученияИПътувания[],MATCH(INDEX(РазликиЗаОбученияИПътувания[],ROW()-ROW(РазликиЗаОбученияИПътувания[[#Headers],[Сеп]]),1),INDEX(ПланираниЗаОбученияИПътувания[],,1),0),MATCH(РазликиЗаОбученияИПътувания[[#Headers],[Сеп]],ПланираниЗаОбученияИПътувания[#Headers],0))-INDEX(ДействителниЗаОбученияИПътувания[],MATCH(INDEX(РазликиЗаОбученияИПътувания[],ROW()-ROW(РазликиЗаОбученияИПътувания[[#Headers],[Сеп]]),1),INDEX(ПланираниЗаОбученияИПътувания[],,1),0),MATCH(РазликиЗаОбученияИПътувания[[#Headers],[Сеп]],ДействителниЗаОбученияИПътувания[#Headers],0))","v":{"v":2000,"d":"2,000.00 лв."}},{"$f":"INDEX(ПланираниЗаОбученияИПътувания[],MATCH(INDEX(РазликиЗаОбученияИПътувания[],ROW()-ROW(РазликиЗаОбученияИПътувания[[#Headers],[Окт]]),1),INDEX(ПланираниЗаОбученияИПътувания[],,1),0),MATCH(РазликиЗаОбученияИПътувания[[#Headers],[Окт]],ПланираниЗаОбученияИПътувания[#Headers],0))-INDEX(ДействителниЗаОбученияИПътувания[],MATCH(INDEX(РазликиЗаОбученияИПътувания[],ROW()-ROW(РазликиЗаОбученияИПътувания[[#Headers],[Окт]]),1),INDEX(ПланираниЗаОбученияИПътувания[],,1),0),MATCH(РазликиЗаОбученияИПътувания[[#Headers],[Окт]],ДействителниЗаОбученияИПътувания[#Headers],0))","v":{"v":2000,"d":"2,000.00 лв."}},{"$f":"INDEX(ПланираниЗаОбученияИПътувания[],MATCH(INDEX(РазликиЗаОбученияИПътувания[],ROW()-ROW(РазликиЗаОбученияИПътувания[[#Headers],[Ное]]),1),INDEX(ПланираниЗаОбученияИПътувания[],,1),0),MATCH(РазликиЗаОбученияИПътувания[[#Headers],[Ное]],ПланираниЗаОбученияИПътувания[#Headers],0))-INDEX(ДействителниЗаОбученияИПътувания[],MATCH(INDEX(РазликиЗаОбученияИПътувания[],ROW()-ROW(РазликиЗаОбученияИПътувания[[#Headers],[Ное]]),1),INDEX(ПланираниЗаОбученияИПътувания[],,1),0),MATCH(РазликиЗаОбученияИПътувания[[#Headers],[Ное]],ДействителниЗаОбученияИПътувания[#Headers],0))","v":{"v":2000,"d":"2,000.00 лв."}},{"$f":"INDEX(ПланираниЗаОбученияИПътувания[],MATCH(INDEX(РазликиЗаОбученияИПътувания[],ROW()-ROW(РазликиЗаОбученияИПътувания[[#Headers],[Дек]]),1),INDEX(ПланираниЗаОбученияИПътувания[],,1),0),MATCH(РазликиЗаОбученияИПътувания[[#Headers],[Дек]],ПланираниЗаОбученияИПътувания[#Headers],0))-INDEX(ДействителниЗаОбученияИПътувания[],MATCH(INDEX(РазликиЗаОбученияИПътувания[],ROW()-ROW(РазликиЗаОбученияИПътувания[[#Headers],[Дек]]),1),INDEX(ПланираниЗаОбученияИПътувания[],,1),0),MATCH(РазликиЗаОбученияИПътувания[[#Headers],[Дек]],ДействителниЗаОбученияИПътувания[#Headers],0))","v":{"v":2000,"d":"2,000.00 лв."}},{"$f":"SUM(РазликиЗаОбученияИПътувания[[#This Row],[Янр]:[Дек]])","v":{"v":13000,"d":"13,000.00 лв."}}]
[null,"Пътни разходи, свързани с обучение",{"$f":"INDEX(ПланираниЗаОбученияИПътувания[],MATCH(INDEX(РазликиЗаОбученияИПътувания[],ROW()-ROW(РазликиЗаОбученияИПътувания[[#Headers],[Янр]]),1),INDEX(ПланираниЗаОбученияИПътувания[],,1),0),MATCH(РазликиЗаОбученияИПътувания[[#Headers],[Янр]],ПланираниЗаОбученияИПътувания[#Headers],0))-INDEX(ДействителниЗаОбученияИПътувания[],MATCH(INDEX(РазликиЗаОбученияИПътувания[],ROW()-ROW(РазликиЗаОбученияИПътувания[[#Headers],[Янр]]),1),INDEX(ПланираниЗаОбученияИПътувания[],,1),0),MATCH(РазликиЗаОбученияИПътувания[[#Headers],[Янр]],ДействителниЗаОбученияИПътувания[#Headers],0))","v":{"v":800,"d":"800.00 лв."}},{"$f":"INDEX(ПланираниЗаОбученияИПътувания[],MATCH(INDEX(РазликиЗаОбученияИПътувания[],ROW()-ROW(РазликиЗаОбученияИПътувания[[#Headers],[Фев]]),1),INDEX(ПланираниЗаОбученияИПътувания[],,1),0),MATCH(РазликиЗаОбученияИПътувания[[#Headers],[Фев]],ПланираниЗаОбученияИПътувания[#Headers],0))-INDEX(ДействителниЗаОбученияИПътувания[],MATCH(INDEX(РазликиЗаОбученияИПътувания[],ROW()-ROW(РазликиЗаОбученияИПътувания[[#Headers],[Фев]]),1),INDEX(ПланираниЗаОбученияИПътувания[],,1),0),MATCH(РазликиЗаОбученияИПътувания[[#Headers],[Фев]],ДействителниЗаОбученияИПътувания[#Headers],0))","v":{"v":-200,"d":"-200.00 лв."}},{"$f":"INDEX(ПланираниЗаОбученияИПътувания[],MATCH(INDEX(РазликиЗаОбученияИПътувания[],ROW()-ROW(РазликиЗаОбученияИПътувания[[#Headers],[Мар]]),1),INDEX(ПланираниЗаОбученияИПътувания[],,1),0),MATCH(РазликиЗаОбученияИПътувания[[#Headers],[Мар]],ПланираниЗаОбученияИПътувания[#Headers],0))-INDEX(ДействителниЗаОбученияИПътувания[],MATCH(INDEX(РазликиЗаОбученияИПътувания[],ROW()-ROW(РазликиЗаОбученияИПътувания[[#Headers],[Мар]]),1),INDEX(ПланираниЗаОбученияИПътувания[],,1),0),MATCH(РазликиЗаОбученияИПътувания[[#Headers],[Мар]],ДействителниЗаОбученияИПътувания[#Headers],0))","v":{"v":600,"d":"600.00 лв."}},{"$f":"INDEX(ПланираниЗаОбученияИПътувания[],MATCH(INDEX(РазликиЗаОбученияИПътувания[],ROW()-ROW(РазликиЗаОбученияИПътувания[[#Headers],[Апр]]),1),INDEX(ПланираниЗаОбученияИПътувания[],,1),0),MATCH(РазликиЗаОбученияИПътувания[[#Headers],[Апр]],ПланираниЗаОбученияИПътувания[#Headers],0))-INDEX(ДействителниЗаОбученияИПътувания[],MATCH(INDEX(РазликиЗаОбученияИПътувания[],ROW()-ROW(РазликиЗаОбученияИПътувания[[#Headers],[Апр]]),1),INDEX(ПланираниЗаОбученияИПътувания[],,1),0),MATCH(РазликиЗаОбученияИПътувания[[#Headers],[Апр]],ДействителниЗаОбученияИПътувания[#Headers],0))","v":{"v":800,"d":"800.00 лв."}},{"$f":"INDEX(ПланираниЗаОбученияИПътувания[],MATCH(INDEX(РазликиЗаОбученияИПътувания[],ROW()-ROW(РазликиЗаОбученияИПътувания[[#Headers],[Май]]),1),INDEX(ПланираниЗаОбученияИПътувания[],,1),0),MATCH(РазликиЗаОбученияИПътувания[[#Headers],[Май]],ПланираниЗаОбученияИПътувания[#Headers],0))-INDEX(ДействителниЗаОбученияИПътувания[],MATCH(INDEX(РазликиЗаОбученияИПътувания[],ROW()-ROW(РазликиЗаОбученияИПътувания[[#Headers],[Май]]),1),INDEX(ПланираниЗаОбученияИПътувания[],,1),0),MATCH(РазликиЗаОбученияИПътувания[[#Headers],[Май]],ДействителниЗаОбученияИПътувания[#Headers],0))","v":{"v":1200,"d":"1,200.00 лв."}},{"$f":"INDEX(ПланираниЗаОбученияИПътувания[],MATCH(INDEX(РазликиЗаОбученияИПътувания[],ROW()-ROW(РазликиЗаОбученияИПътувания[[#Headers],[Юни]]),1),INDEX(ПланираниЗаОбученияИПътувания[],,1),0),MATCH(РазликиЗаОбученияИПътувания[[#Headers],[Юни]],ПланираниЗаОбученияИПътувания[#Headers],0))-INDEX(ДействителниЗаОбученияИПътувания[],MATCH(INDEX(РазликиЗаОбученияИПътувания[],ROW()-ROW(РазликиЗаОбученияИПътувания[[#Headers],[Юни]]),1),INDEX(ПланираниЗаОбученияИПътувания[],,1),0),MATCH(РазликиЗаОбученияИПътувания[[#Headers],[Юни]],ДействителниЗаОбученияИПътувания[#Headers],0))","v":{"v":-1500,"d":"-1,500.00 лв."}},{"$f":"INDEX(ПланираниЗаОбученияИПътувания[],MATCH(INDEX(РазликиЗаОбученияИПътувания[],ROW()-ROW(РазликиЗаОбученияИПътувания[[#Headers],[Юли]]),1),INDEX(ПланираниЗаОбученияИПътувания[],,1),0),MATCH(РазликиЗаОбученияИПътувания[[#Headers],[Юли]],ПланираниЗаОбученияИПътувания[#Headers],0))-INDEX(ДействителниЗаОбученияИПътувания[],MATCH(INDEX(РазликиЗаОбученияИПътувания[],ROW()-ROW(РазликиЗаОбученияИПътувания[[#Headers],[Юли]]),1),INDEX(ПланираниЗаОбученияИПътувания[],,1),0),MATCH(РазликиЗаОбученияИПътувания[[#Headers],[Юли]],ДействителниЗаОбученияИПътувания[#Headers],0))","v":{"v":2000,"d":"2,000.00 лв."}},{"$f":"INDEX(ПланираниЗаОбученияИПътувания[],MATCH(INDEX(РазликиЗаОбученияИПътувания[],ROW()-ROW(РазликиЗаОбученияИПътувания[[#Headers],[Авг]]),1),INDEX(ПланираниЗаОбученияИПътувания[],,1),0),MATCH(РазликиЗаОбученияИПътувания[[#Headers],[Авг]],ПланираниЗаОбученияИПътувания[#Headers],0))-INDEX(ДействителниЗаОбученияИПътувания[],MATCH(INDEX(РазликиЗаОбученияИПътувания[],ROW()-ROW(РазликиЗаОбученияИПътувания[[#Headers],[Авг]]),1),INDEX(ПланираниЗаОбученияИПътувания[],,1),0),MATCH(РазликиЗаОбученияИПътувания[[#Headers],[Авг]],ДействителниЗаОбученияИПътувания[#Headers],0))","v":{"v":2000,"d":"2,000.00 лв."}},{"$f":"INDEX(ПланираниЗаОбученияИПътувания[],MATCH(INDEX(РазликиЗаОбученияИПътувания[],ROW()-ROW(РазликиЗаОбученияИПътувания[[#Headers],[Сеп]]),1),INDEX(ПланираниЗаОбученияИПътувания[],,1),0),MATCH(РазликиЗаОбученияИПътувания[[#Headers],[Сеп]],ПланираниЗаОбученияИПътувания[#Headers],0))-INDEX(ДействителниЗаОбученияИПътувания[],MATCH(INDEX(РазликиЗаОбученияИПътувания[],ROW()-ROW(РазликиЗаОбученияИПътувания[[#Headers],[Сеп]]),1),INDEX(ПланираниЗаОбученияИПътувания[],,1),0),MATCH(РазликиЗаОбученияИПътувания[[#Headers],[Сеп]],ДействителниЗаОбученияИПътувания[#Headers],0))","v":{"v":2000,"d":"2,000.00 лв."}},{"$f":"INDEX(ПланираниЗаОбученияИПътувания[],MATCH(INDEX(РазликиЗаОбученияИПътувания[],ROW()-ROW(РазликиЗаОбученияИПътувания[[#Headers],[Окт]]),1),INDEX(ПланираниЗаОбученияИПътувания[],,1),0),MATCH(РазликиЗаОбученияИПътувания[[#Headers],[Окт]],ПланираниЗаОбученияИПътувания[#Headers],0))-INDEX(ДействителниЗаОбученияИПътувания[],MATCH(INDEX(РазликиЗаОбученияИПътувания[],ROW()-ROW(РазликиЗаОбученияИПътувания[[#Headers],[Окт]]),1),INDEX(ПланираниЗаОбученияИПътувания[],,1),0),MATCH(РазликиЗаОбученияИПътувания[[#Headers],[Окт]],ДействителниЗаОбученияИПътувания[#Headers],0))","v":{"v":2000,"d":"2,000.00 лв."}},{"$f":"INDEX(ПланираниЗаОбученияИПътувания[],MATCH(INDEX(РазликиЗаОбученияИПътувания[],ROW()-ROW(РазликиЗаОбученияИПътувания[[#Headers],[Ное]]),1),INDEX(ПланираниЗаОбученияИПътувания[],,1),0),MATCH(РазликиЗаОбученияИПътувания[[#Headers],[Ное]],ПланираниЗаОбученияИПътувания[#Headers],0))-INDEX(ДействителниЗаОбученияИПътувания[],MATCH(INDEX(РазликиЗаОбученияИПътувания[],ROW()-ROW(РазликиЗаОбученияИПътувания[[#Headers],[Ное]]),1),INDEX(ПланираниЗаОбученияИПътувания[],,1),0),MATCH(РазликиЗаОбученияИПътувания[[#Headers],[Ное]],ДействителниЗаОбученияИПътувания[#Headers],0))","v":{"v":2000,"d":"2,000.00 лв."}},{"$f":"INDEX(ПланираниЗаОбученияИПътувания[],MATCH(INDEX(РазликиЗаОбученияИПътувания[],ROW()-ROW(РазликиЗаОбученияИПътувания[[#Headers],[Дек]]),1),INDEX(ПланираниЗаОбученияИПътувания[],,1),0),MATCH(РазликиЗаОбученияИПътувания[[#Headers],[Дек]],ПланираниЗаОбученияИПътувания[#Headers],0))-INDEX(ДействителниЗаОбученияИПътувания[],MATCH(INDEX(РазликиЗаОбученияИПътувания[],ROW()-ROW(РазликиЗаОбученияИПътувания[[#Headers],[Дек]]),1),INDEX(ПланираниЗаОбученияИПътувания[],,1),0),MATCH(РазликиЗаОбученияИПътувания[[#Headers],[Дек]],ДействителниЗаОбученияИПътувания[#Headers],0))","v":{"v":2000,"d":"2,000.00 лв."}},{"$f":"SUM(РазликиЗаОбученияИПътувания[[#This Row],[Янр]:[Дек]])","v":{"v":13700,"d":"13,700.00 лв."}}]
[null,"Междинна сума",{"$f":"SUBTOTAL(109,РазликиЗаОбученияИПътувания[Янр])","v":{"v":1200,"d":"1,200.00 лв."}},{"$f":"SUBTOTAL(109,РазликиЗаОбученияИПътувания[Фев])","v":{"v":-600,"d":"-600.00 лв."}},{"$f":"SUBTOTAL(109,РазликиЗаОбученияИПътувания[Мар])","v":{"v":1200,"d":"1,200.00 лв."}},{"$f":"SUBTOTAL(109,РазликиЗаОбученияИПътувания[Апр])","v":{"v":1200,"d":"1,200.00 лв."}},{"$f":"SUBTOTAL(109,РазликиЗаОбученияИПътувания[Май])","v":{"v":2000,"d":"2,000.00 лв."}},{"$f":"SUBTOTAL(109,РазликиЗаОбученияИПътувания[Юни])","v":{"v":-2300,"d":"-2,300.00 лв."}},{"$f":"SUBTOTAL(109,РазликиЗаОбученияИПътувания[Юли])","v":{"v":4000,"d":"4,000.00 лв."}},{"$f":"SUBTOTAL(109,РазликиЗаОбученияИПътувания[Авг])","v":{"v":4000,"d":"4,000.00 лв."}},{"$f":"SUBTOTAL(109,РазликиЗаОбученияИПътувания[Сеп])","v":{"v":4000,"d":"4,000.00 лв."}},{"$f":"SUBTOTAL(109,РазликиЗаОбученияИПътувания[Окт])","v":{"v":4000,"d":"4,000.00 лв."}},{"$f":"SUBTOTAL(109,РазликиЗаОбученияИПътувания[Ное])","v":{"v":4000,"d":"4,000.00 лв."}},{"$f":"SUBTOTAL(109,РазликиЗаОбученияИПътувания[Дек])","v":{"v":4000,"d":"4,000.00 лв."}},{"$f":"SUBTOTAL(109,РазликиЗаОбученияИПътувания[ГОДИНА])","v":{"v":26700,"d":"26,700.00 лв."}}]
[]
["Разлики в разходите се изчисляват автоматично в таблицата \"Общи Разлики\", започваща от клетката вдясно.","ОБЩИ СУМИ","Янр","Фев","Мар","Апр","Май","Юни","Юли","Авг","Сеп","Окт","Ное","Дек","Година"]
[null,"Месечни действителни разходи",{"$f":"РазликиЗаОбученияИПътувания[[#Totals],[Янр]]+РазликиЗаМаркетинг[[#Totals],[Янр]]+РазликиЗаОфис[[#Totals],[Янр]]+РазликиЗаСлужители[[#Totals],[Янр]]","v":{"v":1738,"d":"1,738.00 лв."}},{"$f":"РазликиЗаОбученияИПътувания[[#Totals],[Фев]]+РазликиЗаМаркетинг[[#Totals],[Фев]]+РазликиЗаОфис[[#Totals],[Фев]]+РазликиЗаСлужители[[#Totals],[Фев]]","v":{"v":-984,"d":"-984.00 лв."}},{"$f":"РазликиЗаОбученияИПътувания[[#Totals],[Мар]]+РазликиЗаМаркетинг[[#Totals],[Мар]]+РазликиЗаОфис[[#Totals],[Мар]]+РазликиЗаСлужители[[#Totals],[Мар]]","v":{"v":1255,"d":"1,255.00 лв."}},{"$f":"РазликиЗаОбученияИПътувания[[#Totals],[Апр]]+РазликиЗаМаркетинг[[#Totals],[Апр]]+РазликиЗаОфис[[#Totals],[Апр]]+РазликиЗаСлужители[[#Totals],[Апр]]","v":{"v":301,"d":"301.00 лв."}},{"$f":"РазликиЗаОбученияИПътувания[[#Totals],[Май]]+РазликиЗаМаркетинг[[#Totals],[Май]]+РазликиЗаОфис[[#Totals],[Май]]+РазликиЗаСлужители[[#Totals],[Май]]","v":{"v":1440,"d":"1,440.00 лв."}},{"$f":"РазликиЗаОбученияИПътувания[[#Totals],[Юни]]+РазликиЗаМаркетинг[[#Totals],[Юни]]+РазликиЗаОфис[[#Totals],[Юни]]+РазликиЗаСлужители[[#Totals],[Юни]]","v":{"v":-3744,"d":"-3,744.00 лв."}},{"$f":"РазликиЗаОбученияИПътувания[[#Totals],[Юли]]+РазликиЗаМаркетинг[[#Totals],[Юли]]+РазликиЗаОфис[[#Totals],[Юли]]+РазликиЗаСлужители[[#Totals],[Юли]]","v":{"v":134695,"d":"134,695.00 лв."}},{"$f":"РазликиЗаОбученияИПътувания[[#Totals],[Авг]]+РазликиЗаМаркетинг[[#Totals],[Авг]]+РазликиЗаОфис[[#Totals],[Авг]]+РазликиЗаСлужители[[#Totals],[Авг]]","v":{"v":138918,"d":"138,918.00 лв."}},{"$f":"РазликиЗаОбученияИПътувания[[#Totals],[Сеп]]+РазликиЗаМаркетинг[[#Totals],[Сеп]]+РазликиЗаОфис[[#Totals],[Сеп]]+РазликиЗаСлужители[[#Totals],[Сеп]]","v":{"v":135918,"d":"135,918.00 лв."}},{"$f":"РазликиЗаОбученияИПътувания[[#Totals],[Окт]]+РазликиЗаМаркетинг[[#Totals],[Окт]]+РазликиЗаОфис[[#Totals],[Окт]]+РазликиЗаСлужители[[#Totals],[Окт]]","v":{"v":140918,"d":"140,918.00 лв."}},{"$f":"РазликиЗаОбученияИПътувания[[#Totals],[Ное]]+РазликиЗаМаркетинг[[#Totals],[Ное]]+РазликиЗаОфис[[#Totals],[Ное]]+РазликиЗаСлужители[[#Totals],[Ное]]","v":{"v":136218,"d":"136,218.00 лв."}},{"$f":"РазликиЗаОбученияИПътувания[[#Totals],[Дек]]+РазликиЗаМаркетинг[[#Totals],[Дек]]+РазликиЗаОфис[[#Totals],[Дек]]+РазликиЗаСлужители[[#Totals],[Дек]]","v":{"v":140018,"d":"140,018.00 лв."}},{"$f":"РазликиЗаОбученияИПътувания[[#Totals],[ГОДИНА]]+РазликиЗаМаркетинг[[#Totals],[ГОДИНА]]+РазликиЗаОфис[[#Totals],[ГОДИНА]]+РазликиЗаСлужители[[#Totals],[ГОДИНА]]","v":{"v":826691,"d":"826,691.00 лв."}}]
[null,"ОБЩИ действителни разходи",{"$f":"SUM($C$36:C36)","v":{"v":1738,"d":"1,738.00 лв."}},{"$f":"SUM($C$36:D36)","v":{"v":754,"d":"754.00 лв."}},{"$f":"SUM($C$36:E36)","v":{"v":2009,"d":"2,009.00 лв."}},{"$f":"SUM($C$36:F36)","v":{"v":2310,"d":"2,310.00 лв."}},{"$f":"SUM($C$36:G36)","v":{"v":3750,"d":"3,750.00 лв."}},{"$f":"SUM($C$36:H36)","v":{"v":6,"d":"6.00 лв."}},{"$f":"SUM($C$36:I36)","v":{"v":134701,"d":"134,701.00 лв."}},{"$f":"SUM($C$36:J36)","v":{"v":273619,"d":"273,619.00 лв."}},{"$f":"SUM($C$36:K36)","v":{"v":409537,"d":"409,537.00 лв."}},{"$f":"SUM($C$36:L36)","v":{"v":550455,"d":"550,455.00 лв."}},{"$f":"SUM($C$36:M36)","v":{"v":686673,"d":"686,673.00 лв."}},{"$f":"SUM($C$36:N36)","v":{"v":826691,"d":"826,691.00 лв."}}]

{"sheet":"АНАЛИЗ НА РАЗХОДИТЕ","index":4,"n_rows":14,"n_cols":16,"rows_kept":14,"merged":[[1,1,2,3],[1,5,1,6],[2,4,2,6],[11,1,11,2],[11,3,11,5],[13,1,36,5]]}
["Годишните планирани и действителни разходи, разлики в разходите и процент на разликата се актуализират автоматично за всяка категория разходи в този работен лист. Полезни инструкции как да използвате този работен лист, можете да намерите в клетките в тази колона. Натиснете стрелката надолу, за да започнете. ",{"$nulls":5}," ",{"$nulls":8}," "]
["Име на фирмата се актуализира автоматично в клетката отдясно. Добавете емблема в клетка F2.",{"$f":"'ПЛАНИРАНИ РАЗХОДИ'!B2:D3","v":"Име на фирмата"},{"$nulls":3},"Контейнерът за емблемата е в тази клетка."]
["Заглавието на този работен лист е в клетка E3. Следващата инструкция е в клетка A5.",{"$nulls":3},{"$f":"заглавие_работен_лист","v":"Подробни прогнози за разходите"}]
[]
["Планирани разходи, действителни разходи, разликата в разходите и процентът на разликата се изчисляват автоматично в таблицата \"Анализ\", започваща от клетката вдясно. Следващата инструкция е в клетка A12.","Категория разходи","Планирани разходи","Действителни разходи","Разлики в разходите","Процент на разликата"]
[null,"Разходи за служители",{"$f":"ПланираниЗаСлужители[[#Totals],[ГОДИНА]]","v":{"v":1355090,"d":"1,355,090.00 лв."}},{"$f":"ДействителниЗаСлужители[[#Totals],[ГОДИНА]]","v":{"v":659130,"d":"659,130.00 лв."}},{"$f":"C6-D6","v":{"v":695960,"d":"695,960.00 лв."}},{"$f":"E6/C6","v":{"v":0.5135895032802249,"d":"51%"}}]
[null,{"$f":"'ПЛАНИРАНИ РАЗХОДИ'!B10","v":"Разходи за офис"},{"$f":"ПланираниЗаОфис[[#Totals],[ГОДИНА]]","v":{"v":138740,"d":"138,740.00 лв."}},{"$f":"ДействителиЗаОфис[[#Totals],[ГОДИНА]]","v":{"v":69350,"d":"69,350.00 лв."}},{"$f":"C7-D7","v":{"v":69390,"d":"69,390.00 лв."}},{"$f":"E7/C7","v":{"v":0.5001441545336601,"d":"50%"}}]
[null,{"$f":"'ПЛАНИРАНИ РАЗХОДИ'!B21","v":"Разходи за маркетинг"},{"$f":"ПланираниЗаМаркетинг[[#Totals],[ГОДИНА]]","v":{"v":67800,"d":"67,800.00 лв."}},{"$f":"ДействителниЗаМаркетинг[[#Totals],[ГОДИНА]]","v":{"v":33159,"d":"33,159.00 лв."}},{"$f":"C8-D8","v":{"v":34641,"d":"34,641.00 лв."}},{"$f":"E8/C8","v":{"v":0.510929203539823,"d":"51%"}}]
[null,{"$f":"'ПЛАНИРАНИ РАЗХОДИ'!B30","v":"Обучения/пътувания"},{"$f":"ПланираниЗаОбученияИПътувания[[#Totals],[ГОДИНА]]","v":{"v":48000,"d":"48,000.00 лв."}},{"$f":"ДействителниЗаОбученияИПътувания[[#Totals],[ГОДИНА]]","v":{"v":21300,"d":"21,300.00 лв."}},{"$f":"C9-D9","v":{"v":26700,"d":"26,700.00 лв."}},{"$f":"E9/C9","v":{"v":0.55625,"d":"56%"}}]
[null,{"$f":"'ПЛАНИРАНИ РАЗХОДИ'!B35","v":"ОБЩИ СУМИ"},{"$f":"'ПЛАНИРАНИ РАЗХОДИ'!O36","v":{"v":1609630,"d":"1,609,630.00 лв."}},{"$f":"'ДЕЙСТВИТЕЛНИ РАЗХОДИ'!O36","v":{"v":782939,"d":"782,939.00 лв."}},{"$f":"C10-D10","v":{"v":826691,"d":"826,691.00 лв."}},{"$f":"E10/C10","v":{"v":0.5135907009685455,"d":"51%"}}]
[]
["Кръговата диаграма на планирани разходи е в клетката отдясно, а кръговата диаграма на действителни разходи – в клетка D12. Следващата инструкция е в клетка A14.","Кръговата диаграма, показваща планираните разходи в различни категории, е в тази клетка.",null,"Кръговата диаграма, показваща действително направените разходи в различни категории, е в тази клетка."]
[]
["Диаграмата, показваща планирани разходи, действителни разходи и разлика между месечни разходи, е в клетката отдясно."]